BODY,BODY NAME,SUPPLIER CODE,SUPPLIER NAME,TRANSACTION NUMBER,INVOICE DATE,THEIR REF,NARR1,PAID DATE,VAT AMOUNT,EXCLUSIVE AMOUNT,INCLUSIVE AMOUNT,EXPENSE AREA,EXPENSE TYPE,EXPENSE CODE
http://statistics.data.gov.uk/id/local-authority/12UE,Huntingdonshire District Council,201328,HEGARTY LLP SOLICITORS,30640,10/02/2020,305012,PROF CHARGES - LAND DISPOSAL,27/02/2020,600,3000,3600,Bridge Place Car Park Const,Agency Staff,60011
http://statistics.data.gov.uk/id/local-authority/12UE,Huntingdonshire District Council,200181,CFL ESTATE SERVICES CFL ESTATE SERVICES,27478,17/12/2019,HDC110,PROFESSIONAL ADVICE,09/01/2020,0,444,444,Bridge Place Car Park Const,Agency Staff,60011
http://statistics.data.gov.uk/id/local-authority/12UE,Huntingdonshire District Council,200682,RIDGE AND PARTNERS LLP RIDGE AND PARTNERS LLP,29716,31/01/2020,169679,ST IVES BUS STATION,27/02/2020,249.49,1247.44,1496.93,St Ives Bus Station,Asbestos Investingation/Surveys,60260
http://statistics.data.gov.uk/id/local-authority/12UE,Huntingdonshire District Council,200280,ERNST & YOUNG ERNST & YOUNG,30919,30/01/2020,GB01G000045759,AUDIT SERVICES,05/03/2020,2049.6,10248,12297.6,Corporate Finance,Audit Fees,62100
http://statistics.data.gov.uk/id/local-authority/12UE,Huntingdonshire District Council,200090,BDO LLP BDO LLP,28194,31/12/2019,1920403,IT AUDIT PLAN 19-20,23/01/2020,528,2640,3168,Audit,Audit Fees,62100
http://statistics.data.gov.uk/id/local-authority/12UE,Huntingdonshire District Council,200090,BDO LLP BDO LLP,28194,31/12/2019,1920403,IT AUDIT PLAN 19-20,23/01/2020,792,3960,4752,Audit,Audit Fees,62100
http://statistics.data.gov.uk/id/local-authority/12UE,Huntingdonshire District Council,201012,COACH & HORSES,31914,16/03/2020,427,09-15/03/20,19/03/2020,8,40,48,Homelessness,B&B Accommodation,64401
http://statistics.data.gov.uk/id/local-authority/12UE,Huntingdonshire District Council,201012,COACH & HORSES,31482,09/03/2020,426,02-08/03/20,12/03/2020,24,120,144,Homelessness,B&B Accommodation,64401
http://statistics.data.gov.uk/id/local-authority/12UE,Huntingdonshire District Council,201011,CENTENNIAL PROPERTY LTD,27790,17/12/2019,CP-HDC073,1-16 DEC 19,02/01/2020,0,608,608,Homelessness,B&B Accommodation,64401
http://statistics.data.gov.uk/id/local-authority/12UE,Huntingdonshire District Council,201011,CENTENNIAL PROPERTY LTD,28938,17/01/2020,CP-HDC075,1-16/1/20,23/01/2020,0,608,608,Homelessness,B&B Accommodation,64401
http://statistics.data.gov.uk/id/local-authority/12UE,Huntingdonshire District Council,201011,CENTENNIAL PROPERTY LTD,28092,01/01/2020,CP-HDC074,17-31 DEC 19,09/01/2020,0,570,570,Homelessness,B&B Accommodation,64401
http://statistics.data.gov.uk/id/local-authority/12UE,Huntingdonshire District Council,201011,CENTENNIAL PROPERTY LTD,29683,01/02/2020,CP-HDC076,17-31/01/20,06/02/2020,0,418,418,Homelessness,B&B Accommodation,64401
http://statistics.data.gov.uk/id/local-authority/12UE,Huntingdonshire District Council,201011,CENTENNIAL PROPERTY LTD,27790,17/12/2019,CP-HDC073,1-16 DEC 19,02/01/2020,0,190,190,Homelessness,B&B Accommodation,64401
http://statistics.data.gov.uk/id/local-authority/12UE,Huntingdonshire District Council,200673,RENT CONNECT RENT CONNECT,27801,17/12/2019,RC-HDC073,Dec-19,02/01/2020,0,560,560,Homelessness,B&B Accommodation,64401
http://statistics.data.gov.uk/id/local-authority/12UE,Huntingdonshire District Council,200673,RENT CONNECT RENT CONNECT,32045,17/03/2020,RC-HDC079,Mar-20,26/03/2020,0,525,525,Homelessness,B&B Accommodation,64401
http://statistics.data.gov.uk/id/local-authority/12UE,Huntingdonshire District Council,200673,RENT CONNECT RENT CONNECT,29794,01/02/2020,RC-HDC076,Jan-20,13/02/2020,0,525,525,Homelessness,B&B Accommodation,64401
http://statistics.data.gov.uk/id/local-authority/12UE,Huntingdonshire District Council,200673,RENT CONNECT RENT CONNECT,31130,01/03/2020,RC-HDC078,Feb-20,05/03/2020,0,525,525,Homelessness,B&B Accommodation,64401
http://statistics.data.gov.uk/id/local-authority/12UE,Huntingdonshire District Council,200673,RENT CONNECT RENT CONNECT,28939,17/01/2020,RC-HDC075,Jan-20,23/01/2020,0,560,560,Homelessness,B&B Accommodation,64401
http://statistics.data.gov.uk/id/local-authority/12UE,Huntingdonshire District Council,200673,RENT CONNECT RENT CONNECT,28093,01/01/2020,RC-HDC074,Dec-19,09/01/2020,0,525,525,Homelessness,B&B Accommodation,64401
http://statistics.data.gov.uk/id/local-authority/12UE,Huntingdonshire District Council,200673,RENT CONNECT RENT CONNECT,30476,14/02/2020,RC-HDC077,Feb-20,20/02/2020,0,490,490,Homelessness,B&B Accommodation,64401
http://statistics.data.gov.uk/id/local-authority/12UE,Huntingdonshire District Council,200808,IMPERIAL PORTFOLIOS LTD,28091,01/01/2020,DEC001_HUNT_2019,Dec-19,09/01/2020,234,1170,1404,Homelessness,B&B Accommodation,64401
http://statistics.data.gov.uk/id/local-authority/12UE,Huntingdonshire District Council,200808,IMPERIAL PORTFOLIOS LTD,29684,02/02/2020,JAN001_HUNT_2020,Jan-20,06/02/2020,182.4,912,1094.4,Homelessness,B&B Accommodation,64401
http://statistics.data.gov.uk/id/local-authority/12UE,Huntingdonshire District Council,200808,IMPERIAL PORTFOLIOS LTD,31109,01/03/2020,FEB001_HUNT_2020,Feb-20,05/03/2020,220.4,1102,1322.4,Homelessness,B&B Accommodation,64401
http://statistics.data.gov.uk/id/local-authority/12UE,Huntingdonshire District Council,201012,COACH & HORSES,31482,09/03/2020,426,02-08/03/20,12/03/2020,56,280,336,Homelessness,B&B Accommodation,64401
http://statistics.data.gov.uk/id/local-authority/12UE,Huntingdonshire District Council,201012,COACH & HORSES,31059,02/03/2020,425,24/02 - 01/03/20,05/03/2020,56,280,336,Homelessness,B&B Accommodation,64401
http://statistics.data.gov.uk/id/local-authority/12UE,Huntingdonshire District Council,201012,COACH & HORSES,30742,24/02/2020,424,17-23/02/20,27/02/2020,56,280,336,Homelessness,B&B Accommodation,64401
http://statistics.data.gov.uk/id/local-authority/12UE,Huntingdonshire District Council,201012,COACH & HORSES,30404,17/02/2020,423,10-16/02/20,20/02/2020,56,280,336,Homelessness,B&B Accommodation,64401
http://statistics.data.gov.uk/id/local-authority/12UE,Huntingdonshire District Council,201012,COACH & HORSES,29080,20/01/2020,419,13-19/01/20,23/01/2020,56,280,336,Homelessness,B&B Accommodation,64401
http://statistics.data.gov.uk/id/local-authority/12UE,Huntingdonshire District Council,201012,COACH & HORSES,31914,16/03/2020,427,09-15/03/20,19/03/2020,56,280,336,Homelessness,B&B Accommodation,64401
http://statistics.data.gov.uk/id/local-authority/12UE,Huntingdonshire District Council,201012,COACH & HORSES,28173,06/01/2020,417,30/12/19 - 05/01/20,09/01/2020,56,280,336,Homelessness,B&B Accommodation,64401
http://statistics.data.gov.uk/id/local-authority/12UE,Huntingdonshire District Council,201012,COACH & HORSES,29676,03/02/2020,421,28/01 - 02/02/20,06/02/2020,56,280,336,Homelessness,B&B Accommodation,64401
http://statistics.data.gov.uk/id/local-authority/12UE,Huntingdonshire District Council,201012,COACH & HORSES,28666,13/01/2020,418,05-12/01/20,16/01/2020,56,280,336,Homelessness,B&B Accommodation,64401
http://statistics.data.gov.uk/id/local-authority/12UE,Huntingdonshire District Council,201012,COACH & HORSES,29254,27/01/2020,420,20-26/01/20,30/01/2020,56,280,336,Homelessness,B&B Accommodation,64401
http://statistics.data.gov.uk/id/local-authority/12UE,Huntingdonshire District Council,201012,COACH & HORSES,32113,23/03/2020,428,16-22/03/20,26/03/2020,56,280,336,Homelessness,B&B Accommodation,64401
http://statistics.data.gov.uk/id/local-authority/12UE,Huntingdonshire District Council,201012,COACH & HORSES,27923,30/12/2019,416,23-29/12/19,02/01/2020,56,280,336,Homelessness,B&B Accommodation,64401
http://statistics.data.gov.uk/id/local-authority/12UE,Huntingdonshire District Council,201012,COACH & HORSES,27832,23/12/2019,415,16-22/12/19,02/01/2020,24,120,144,Homelessness,B&B Accommodation,64401
http://statistics.data.gov.uk/id/local-authority/12UE,Huntingdonshire District Council,201012,COACH & HORSES,27832,23/12/2019,415,16-22/12/19,02/01/2020,32,160,192,Homelessness,B&B Accommodation,64401
http://statistics.data.gov.uk/id/local-authority/12UE,Huntingdonshire District Council,201012,COACH & HORSES,27791,09/12/2019,414,09-15/12/19,02/01/2020,56,280,336,Homelessness,B&B Accommodation,64401
http://statistics.data.gov.uk/id/local-authority/12UE,Huntingdonshire District Council,201011,CENTENNIAL PROPERTY LTD,27790,17/12/2019,CP-HDC073,1-16 DEC 19,02/01/2020,0,720,720,Homelessness,B&B Accommodation,64401
http://statistics.data.gov.uk/id/local-authority/12UE,Huntingdonshire District Council,201011,CENTENNIAL PROPERTY LTD,28938,17/01/2020,CP-HDC075,1-16/1/20,23/01/2020,0,405,405,Homelessness,B&B Accommodation,64401
http://statistics.data.gov.uk/id/local-authority/12UE,Huntingdonshire District Council,201011,CENTENNIAL PROPERTY LTD,28092,01/01/2020,CP-HDC074,17-31 DEC 19,09/01/2020,0,675,675,Homelessness,B&B Accommodation,64401
http://statistics.data.gov.uk/id/local-authority/12UE,Huntingdonshire District Council,200808,IMPERIAL PORTFOLIOS LTD,28091,01/01/2020,DEC001_HUNT_2019,Dec-19,09/01/2020,279,1395,1674,Homelessness,B&B Accommodation,64401
http://statistics.data.gov.uk/id/local-authority/12UE,Huntingdonshire District Council,200808,IMPERIAL PORTFOLIOS LTD,29684,02/02/2020,JAN001_HUNT_2020,Jan-20,06/02/2020,279,1395,1674,Homelessness,B&B Accommodation,64401
http://statistics.data.gov.uk/id/local-authority/12UE,Huntingdonshire District Council,200808,IMPERIAL PORTFOLIOS LTD,31109,01/03/2020,FEB001_HUNT_2020,Feb-20,05/03/2020,261,1305,1566,Homelessness,B&B Accommodation,64401
http://statistics.data.gov.uk/id/local-authority/12UE,Huntingdonshire District Council,200673,RENT CONNECT RENT CONNECT,27801,17/12/2019,RC-HDC073,Dec-19,02/01/2020,0,342,342,Homelessness,B&B Accommodation,64401
http://statistics.data.gov.uk/id/local-authority/12UE,Huntingdonshire District Council,201012,COACH & HORSES,31482,09/03/2020,426,02-08/03/20,12/03/2020,56,280,336,Homelessness,B&B Accommodation,64401
http://statistics.data.gov.uk/id/local-authority/12UE,Huntingdonshire District Council,201012,COACH & HORSES,31059,02/03/2020,425,24/02 - 01/03/20,05/03/2020,56,280,336,Homelessness,B&B Accommodation,64401
http://statistics.data.gov.uk/id/local-authority/12UE,Huntingdonshire District Council,201012,COACH & HORSES,29925,10/02/2020,422,04-09/02/20,13/02/2020,56,280,336,Homelessness,B&B Accommodation,64401
http://statistics.data.gov.uk/id/local-authority/12UE,Huntingdonshire District Council,201012,COACH & HORSES,30742,24/02/2020,424,17-23/02/20,27/02/2020,56,280,336,Homelessness,B&B Accommodation,64401
http://statistics.data.gov.uk/id/local-authority/12UE,Huntingdonshire District Council,201012,COACH & HORSES,30404,17/02/2020,423,10-16/02/20,20/02/2020,56,280,336,Homelessness,B&B Accommodation,64401
http://statistics.data.gov.uk/id/local-authority/12UE,Huntingdonshire District Council,201012,COACH & HORSES,29080,20/01/2020,419,13-19/01/20,23/01/2020,56,280,336,Homelessness,B&B Accommodation,64401
http://statistics.data.gov.uk/id/local-authority/12UE,Huntingdonshire District Council,201012,COACH & HORSES,31914,16/03/2020,427,09-15/03/20,19/03/2020,56,280,336,Homelessness,B&B Accommodation,64401
http://statistics.data.gov.uk/id/local-authority/12UE,Huntingdonshire District Council,201012,COACH & HORSES,28173,06/01/2020,417,30/12/19 - 05/01/20,09/01/2020,56,280,336,Homelessness,B&B Accommodation,64401
http://statistics.data.gov.uk/id/local-authority/12UE,Huntingdonshire District Council,201012,COACH & HORSES,29676,03/02/2020,421,28/01 - 02/02/20,06/02/2020,56,280,336,Homelessness,B&B Accommodation,64401
http://statistics.data.gov.uk/id/local-authority/12UE,Huntingdonshire District Council,201012,COACH & HORSES,28666,13/01/2020,418,05-12/01/20,16/01/2020,56,280,336,Homelessness,B&B Accommodation,64401
http://statistics.data.gov.uk/id/local-authority/12UE,Huntingdonshire District Council,201012,COACH & HORSES,29254,27/01/2020,420,20-26/01/20,30/01/2020,56,280,336,Homelessness,B&B Accommodation,64401
http://statistics.data.gov.uk/id/local-authority/12UE,Huntingdonshire District Council,201012,COACH & HORSES,32113,23/03/2020,428,16-22/03/20,26/03/2020,16,80,96,Homelessness,B&B Accommodation,64401
http://statistics.data.gov.uk/id/local-authority/12UE,Huntingdonshire District Council,201011,CENTENNIAL PROPERTY LTD,27790,17/12/2019,CP-HDC073,1-16 DEC 19,02/01/2020,0,880,880,Homelessness,B&B Accommodation,64401
http://statistics.data.gov.uk/id/local-authority/12UE,Huntingdonshire District Council,201011,CENTENNIAL PROPERTY LTD,28938,17/01/2020,CP-HDC075,1-16/1/20,23/01/2020,0,880,880,Homelessness,B&B Accommodation,64401
http://statistics.data.gov.uk/id/local-authority/12UE,Huntingdonshire District Council,201011,CENTENNIAL PROPERTY LTD,28092,01/01/2020,CP-HDC074,17-31 DEC 19,09/01/2020,0,825,825,Homelessness,B&B Accommodation,64401
http://statistics.data.gov.uk/id/local-authority/12UE,Huntingdonshire District Council,201011,CENTENNIAL PROPERTY LTD,29683,01/02/2020,CP-HDC076,17-31/01/20,06/02/2020,0,825,825,Homelessness,B&B Accommodation,64401
http://statistics.data.gov.uk/id/local-authority/12UE,Huntingdonshire District Council,201011,CENTENNIAL PROPERTY LTD,30405,16/02/2020,CP-HDC077,01-15 FEB 20,20/02/2020,0,825,825,Homelessness,B&B Accommodation,64401
http://statistics.data.gov.uk/id/local-authority/12UE,Huntingdonshire District Council,201011,CENTENNIAL PROPERTY LTD,32044,17/03/2020,CP-HDC079,1-16 MAR 20,26/03/2020,176,880,1056,Homelessness,B&B Accommodation,64401
http://statistics.data.gov.uk/id/local-authority/12UE,Huntingdonshire District Council,201011,CENTENNIAL PROPERTY LTD,31108,01/03/2020,CP-HDC078,16-29 FEB 20,05/03/2020,154,770,924,Homelessness,B&B Accommodation,64401
http://statistics.data.gov.uk/id/local-authority/12UE,Huntingdonshire District Council,200673,RENT CONNECT RENT CONNECT,27801,17/12/2019,RC-HDC073,Dec-19,02/01/2020,0,720,720,Homelessness,B&B Accommodation,64401
http://statistics.data.gov.uk/id/local-authority/12UE,Huntingdonshire District Council,200673,RENT CONNECT RENT CONNECT,32045,17/03/2020,RC-HDC079,Mar-20,26/03/2020,0,720,720,Homelessness,B&B Accommodation,64401
http://statistics.data.gov.uk/id/local-authority/12UE,Huntingdonshire District Council,200673,RENT CONNECT RENT CONNECT,29794,01/02/2020,RC-HDC076,Jan-20,13/02/2020,0,675,675,Homelessness,B&B Accommodation,64401
http://statistics.data.gov.uk/id/local-authority/12UE,Huntingdonshire District Council,200673,RENT CONNECT RENT CONNECT,31130,01/03/2020,RC-HDC078,Feb-20,05/03/2020,0,675,675,Homelessness,B&B Accommodation,64401
http://statistics.data.gov.uk/id/local-authority/12UE,Huntingdonshire District Council,200673,RENT CONNECT RENT CONNECT,28093,01/01/2020,RC-HDC074,Dec-19,09/01/2020,0,675,675,Homelessness,B&B Accommodation,64401
http://statistics.data.gov.uk/id/local-authority/12UE,Huntingdonshire District Council,200673,RENT CONNECT RENT CONNECT,30476,14/02/2020,RC-HDC077,Feb-20,20/02/2020,0,630,630,Homelessness,B&B Accommodation,64401
http://statistics.data.gov.uk/id/local-authority/12UE,Huntingdonshire District Council,200808,IMPERIAL PORTFOLIOS LTD,28091,01/01/2020,DEC001_HUNT_2019,Dec-19,09/01/2020,248,1240,1488,Homelessness,B&B Accommodation,64401
http://statistics.data.gov.uk/id/local-authority/12UE,Huntingdonshire District Council,200808,IMPERIAL PORTFOLIOS LTD,29684,02/02/2020,JAN001_HUNT_2020,Jan-20,06/02/2020,248,1240,1488,Homelessness,B&B Accommodation,64401
http://statistics.data.gov.uk/id/local-authority/12UE,Huntingdonshire District Council,201011,CENTENNIAL PROPERTY LTD,27790,17/12/2019,CP-HDC073,1-16 DEC 19,02/01/2020,0,608,608,Homelessness,B&B Accommodation,64401
http://statistics.data.gov.uk/id/local-authority/12UE,Huntingdonshire District Council,201011,CENTENNIAL PROPERTY LTD,28938,17/01/2020,CP-HDC075,1-16/1/20,23/01/2020,0,608,608,Homelessness,B&B Accommodation,64401
http://statistics.data.gov.uk/id/local-authority/12UE,Huntingdonshire District Council,201011,CENTENNIAL PROPERTY LTD,29683,01/02/2020,CP-HDC076,17-31/01/20,06/02/2020,0,570,570,Homelessness,B&B Accommodation,64401
http://statistics.data.gov.uk/id/local-authority/12UE,Huntingdonshire District Council,201011,CENTENNIAL PROPERTY LTD,30405,16/02/2020,CP-HDC077,01-15 FEB 20,20/02/2020,0,570,570,Homelessness,B&B Accommodation,64401
http://statistics.data.gov.uk/id/local-authority/12UE,Huntingdonshire District Council,201011,CENTENNIAL PROPERTY LTD,32044,17/03/2020,CP-HDC079,1-16 MAR 20,26/03/2020,30.4,152,182.4,Homelessness,B&B Accommodation,64401
http://statistics.data.gov.uk/id/local-authority/12UE,Huntingdonshire District Council,201011,CENTENNIAL PROPERTY LTD,31108,01/03/2020,CP-HDC078,16-29 FEB 20,05/03/2020,106.4,532,638.4,Homelessness,B&B Accommodation,64401
http://statistics.data.gov.uk/id/local-authority/12UE,Huntingdonshire District Council,201012,COACH & HORSES,31482,09/03/2020,426,02-08/03/20,12/03/2020,56,280,336,Homelessness,B&B Accommodation,64401
http://statistics.data.gov.uk/id/local-authority/12UE,Huntingdonshire District Council,201012,COACH & HORSES,31059,02/03/2020,425,24/02 - 01/03/20,05/03/2020,40,200,240,Homelessness,B&B Accommodation,64401
http://statistics.data.gov.uk/id/local-authority/12UE,Huntingdonshire District Council,201012,COACH & HORSES,31482,09/03/2020,426,02-08/03/20,12/03/2020,56,280,336,Homelessness,B&B Accommodation,64401
http://statistics.data.gov.uk/id/local-authority/12UE,Huntingdonshire District Council,201012,COACH & HORSES,31059,02/03/2020,425,24/02 - 01/03/20,05/03/2020,48,240,288,Homelessness,B&B Accommodation,64401
http://statistics.data.gov.uk/id/local-authority/12UE,Huntingdonshire District Council,201012,COACH & HORSES,29925,10/02/2020,422,04-09/02/20,13/02/2020,24,120,144,Homelessness,B&B Accommodation,64401
http://statistics.data.gov.uk/id/local-authority/12UE,Huntingdonshire District Council,201012,COACH & HORSES,30742,24/02/2020,424,17-23/02/20,27/02/2020,32,160,192,Homelessness,B&B Accommodation,64401
http://statistics.data.gov.uk/id/local-authority/12UE,Huntingdonshire District Council,201012,COACH & HORSES,30404,17/02/2020,423,10-16/02/20,20/02/2020,24,120,144,Homelessness,B&B Accommodation,64401
http://statistics.data.gov.uk/id/local-authority/12UE,Huntingdonshire District Council,201012,COACH & HORSES,29676,03/02/2020,421,28/01 - 02/02/20,06/02/2020,8,40,48,Homelessness,B&B Accommodation,64401
http://statistics.data.gov.uk/id/local-authority/12UE,Huntingdonshire District Council,201012,COACH & HORSES,32113,23/03/2020,428,16-22/03/20,26/03/2020,24,120,144,Homelessness,B&B Accommodation,64401
http://statistics.data.gov.uk/id/local-authority/12UE,Huntingdonshire District Council,201012,COACH & HORSES,31482,09/03/2020,426,02-08/03/20,12/03/2020,56,280,336,Homelessness,B&B Accommodation,64401
http://statistics.data.gov.uk/id/local-authority/12UE,Huntingdonshire District Council,201012,COACH & HORSES,31059,02/03/2020,425,24/02 - 01/03/20,05/03/2020,48,240,288,Homelessness,B&B Accommodation,64401
http://statistics.data.gov.uk/id/local-authority/12UE,Huntingdonshire District Council,201012,COACH & HORSES,29925,10/02/2020,422,04-09/02/20,13/02/2020,16,80,96,Homelessness,B&B Accommodation,64401
http://statistics.data.gov.uk/id/local-authority/12UE,Huntingdonshire District Council,201012,COACH & HORSES,29925,10/02/2020,422,04-09/02/20,13/02/2020,24,120,144,Homelessness,B&B Accommodation,64401
http://statistics.data.gov.uk/id/local-authority/12UE,Huntingdonshire District Council,201012,COACH & HORSES,30742,24/02/2020,424,17-23/02/20,27/02/2020,32,160,192,Homelessness,B&B Accommodation,64401
http://statistics.data.gov.uk/id/local-authority/12UE,Huntingdonshire District Council,201012,COACH & HORSES,30404,17/02/2020,423,10-16/02/20,20/02/2020,24,120,144,Homelessness,B&B Accommodation,64401
http://statistics.data.gov.uk/id/local-authority/12UE,Huntingdonshire District Council,201012,COACH & HORSES,29080,20/01/2020,419,13-19/01/20,23/01/2020,24,120,144,Homelessness,B&B Accommodation,64401
http://statistics.data.gov.uk/id/local-authority/12UE,Huntingdonshire District Council,201012,COACH & HORSES,29676,03/02/2020,421,28/01 - 02/02/20,06/02/2020,8,40,48,Homelessness,B&B Accommodation,64401
http://statistics.data.gov.uk/id/local-authority/12UE,Huntingdonshire District Council,201012,COACH & HORSES,32113,23/03/2020,428,16-22/03/20,26/03/2020,24,120,144,Homelessness,B&B Accommodation,64401
http://statistics.data.gov.uk/id/local-authority/12UE,Huntingdonshire District Council,200673,RENT CONNECT RENT CONNECT,27801,17/12/2019,RC-HDC073,Dec-19,02/01/2020,0,720,720,Homelessness,B&B Accommodation,64401
http://statistics.data.gov.uk/id/local-authority/12UE,Huntingdonshire District Council,200673,RENT CONNECT RENT CONNECT,32045,17/03/2020,RC-HDC079,Mar-20,26/03/2020,0,720,720,Homelessness,B&B Accommodation,64401
http://statistics.data.gov.uk/id/local-authority/12UE,Huntingdonshire District Council,200673,RENT CONNECT RENT CONNECT,29794,01/02/2020,RC-HDC076,Jan-20,13/02/2020,0,675,675,Homelessness,B&B Accommodation,64401
http://statistics.data.gov.uk/id/local-authority/12UE,Huntingdonshire District Council,200673,RENT CONNECT RENT CONNECT,31130,01/03/2020,RC-HDC078,Feb-20,05/03/2020,0,675,675,Homelessness,B&B Accommodation,64401
http://statistics.data.gov.uk/id/local-authority/12UE,Huntingdonshire District Council,200673,RENT CONNECT RENT CONNECT,28939,17/01/2020,RC-HDC075,Jan-20,23/01/2020,0,720,720,Homelessness,B&B Accommodation,64401
http://statistics.data.gov.uk/id/local-authority/12UE,Huntingdonshire District Council,200673,RENT CONNECT RENT CONNECT,28093,01/01/2020,RC-HDC074,Dec-19,09/01/2020,0,675,675,Homelessness,B&B Accommodation,64401
http://statistics.data.gov.uk/id/local-authority/12UE,Huntingdonshire District Council,200673,RENT CONNECT RENT CONNECT,28093,01/01/2020,RC-HDC074,Dec-19,09/01/2020,0,570,570,Homelessness,B&B Accommodation,64401
http://statistics.data.gov.uk/id/local-authority/12UE,Huntingdonshire District Council,200673,RENT CONNECT RENT CONNECT,30476,14/02/2020,RC-HDC077,Feb-20,20/02/2020,0,630,630,Homelessness,B&B Accommodation,64401
http://statistics.data.gov.uk/id/local-authority/12UE,Huntingdonshire District Council,200808,IMPERIAL PORTFOLIOS LTD,28091,01/01/2020,DEC001_HUNT_2019,Dec-19,09/01/2020,240,1200,1440,Homelessness,B&B Accommodation,64401
http://statistics.data.gov.uk/id/local-authority/12UE,Huntingdonshire District Council,201012,COACH & HORSES,29925,10/02/2020,422,04-09/02/20,13/02/2020,32,160,192,Homelessness,B&B Accommodation,64401
http://statistics.data.gov.uk/id/local-authority/12UE,Huntingdonshire District Council,201012,COACH & HORSES,30404,17/02/2020,423,10-16/02/20,20/02/2020,16,80,96,Homelessness,B&B Accommodation,64401
http://statistics.data.gov.uk/id/local-authority/12UE,Huntingdonshire District Council,200673,RENT CONNECT RENT CONNECT,27801,17/12/2019,RC-HDC073,Dec-19,02/01/2020,0,880,880,Homelessness,B&B Accommodation,64401
http://statistics.data.gov.uk/id/local-authority/12UE,Huntingdonshire District Council,200673,RENT CONNECT RENT CONNECT,28093,01/01/2020,RC-HDC074,Dec-19,09/01/2020,0,110,110,Homelessness,B&B Accommodation,64401
http://statistics.data.gov.uk/id/local-authority/12UE,Huntingdonshire District Council,200808,IMPERIAL PORTFOLIOS LTD,28091,01/01/2020,DEC001_HUNT_2019,Dec-19,09/01/2020,235.6,1178,1413.6,Homelessness,B&B Accommodation,64401
http://statistics.data.gov.uk/id/local-authority/12UE,Huntingdonshire District Council,200808,IMPERIAL PORTFOLIOS LTD,29684,02/02/2020,JAN001_HUNT_2020,Jan-20,06/02/2020,235.6,1178,1413.6,Homelessness,B&B Accommodation,64401
http://statistics.data.gov.uk/id/local-authority/12UE,Huntingdonshire District Council,200808,IMPERIAL PORTFOLIOS LTD,31109,01/03/2020,FEB001_HUNT_2020,Feb-20,05/03/2020,220.4,1102,1322.4,Homelessness,B&B Accommodation,64401
http://statistics.data.gov.uk/id/local-authority/12UE,Huntingdonshire District Council,201011,CENTENNIAL PROPERTY LTD,27790,17/12/2019,CP-HDC073,1-16 DEC 19,02/01/2020,0,720,720,Homelessness,B&B Accommodation,64401
http://statistics.data.gov.uk/id/local-authority/12UE,Huntingdonshire District Council,201011,CENTENNIAL PROPERTY LTD,28092,01/01/2020,CP-HDC074,17-31 DEC 19,09/01/2020,0,675,675,Homelessness,B&B Accommodation,64401
http://statistics.data.gov.uk/id/local-authority/12UE,Huntingdonshire District Council,200673,RENT CONNECT RENT CONNECT,27801,17/12/2019,RC-HDC073,Dec-19,02/01/2020,0,190,190,Homelessness,B&B Accommodation,64401
http://statistics.data.gov.uk/id/local-authority/12UE,Huntingdonshire District Council,200808,IMPERIAL PORTFOLIOS LTD,28091,01/01/2020,DEC001_HUNT_2019,Dec-19,09/01/2020,235.6,1178,1413.6,Homelessness,B&B Accommodation,64401
http://statistics.data.gov.uk/id/local-authority/12UE,Huntingdonshire District Council,200808,IMPERIAL PORTFOLIOS LTD,29684,02/02/2020,JAN001_HUNT_2020,Jan-20,06/02/2020,235.6,1178,1413.6,Homelessness,B&B Accommodation,64401
http://statistics.data.gov.uk/id/local-authority/12UE,Huntingdonshire District Council,200808,IMPERIAL PORTFOLIOS LTD,31109,01/03/2020,FEB001_HUNT_2020,Feb-20,05/03/2020,220.4,1102,1322.4,Homelessness,B&B Accommodation,64401
http://statistics.data.gov.uk/id/local-authority/12UE,Huntingdonshire District Council,201011,CENTENNIAL PROPERTY LTD,27790,17/12/2019,CP-HDC073,1-16 DEC 19,02/01/2020,0,720,720,Homelessness,B&B Accommodation,64401
http://statistics.data.gov.uk/id/local-authority/12UE,Huntingdonshire District Council,201011,CENTENNIAL PROPERTY LTD,28938,17/01/2020,CP-HDC075,1-16/1/20,23/01/2020,0,720,720,Homelessness,B&B Accommodation,64401
http://statistics.data.gov.uk/id/local-authority/12UE,Huntingdonshire District Council,201011,CENTENNIAL PROPERTY LTD,28092,01/01/2020,CP-HDC074,17-31 DEC 19,09/01/2020,0,675,675,Homelessness,B&B Accommodation,64401
http://statistics.data.gov.uk/id/local-authority/12UE,Huntingdonshire District Council,201011,CENTENNIAL PROPERTY LTD,29683,01/02/2020,CP-HDC076,17-31/01/20,06/02/2020,0,675,675,Homelessness,B&B Accommodation,64401
http://statistics.data.gov.uk/id/local-authority/12UE,Huntingdonshire District Council,201011,CENTENNIAL PROPERTY LTD,30405,16/02/2020,CP-HDC077,01-15 FEB 20,20/02/2020,0,675,675,Homelessness,B&B Accommodation,64401
http://statistics.data.gov.uk/id/local-authority/12UE,Huntingdonshire District Council,201011,CENTENNIAL PROPERTY LTD,32044,17/03/2020,CP-HDC079,1-16 MAR 20,26/03/2020,144,720,864,Homelessness,B&B Accommodation,64401
http://statistics.data.gov.uk/id/local-authority/12UE,Huntingdonshire District Council,201011,CENTENNIAL PROPERTY LTD,31108,01/03/2020,CP-HDC078,16-29 FEB 20,05/03/2020,126,630,756,Homelessness,B&B Accommodation,64401
http://statistics.data.gov.uk/id/local-authority/12UE,Huntingdonshire District Council,201011,CENTENNIAL PROPERTY LTD,27790,17/12/2019,CP-HDC073,1-16 DEC 19,02/01/2020,0,456,456,Homelessness,B&B Accommodation,64401
http://statistics.data.gov.uk/id/local-authority/12UE,Huntingdonshire District Council,200673,RENT CONNECT RENT CONNECT,27801,17/12/2019,RC-HDC073,Dec-19,02/01/2020,0,540,540,Homelessness,B&B Accommodation,64401
http://statistics.data.gov.uk/id/local-authority/12UE,Huntingdonshire District Council,200808,IMPERIAL PORTFOLIOS LTD,28091,01/01/2020,DEC001_HUNT_2019,Dec-19,09/01/2020,120,600,720,Homelessness,B&B Accommodation,64401
http://statistics.data.gov.uk/id/local-authority/12UE,Huntingdonshire District Council,200673,RENT CONNECT RENT CONNECT,27801,17/12/2019,RC-HDC073,Dec-19,02/01/2020,0,675,675,Homelessness,B&B Accommodation,64401
http://statistics.data.gov.uk/id/local-authority/12UE,Huntingdonshire District Council,201012,COACH & HORSES,29080,20/01/2020,419,13-19/01/20,23/01/2020,24,120,144,Homelessness,B&B Accommodation,64401
http://statistics.data.gov.uk/id/local-authority/12UE,Huntingdonshire District Council,201012,COACH & HORSES,29254,27/01/2020,420,20-26/01/20,30/01/2020,8,40,48,Homelessness,B&B Accommodation,64401
http://statistics.data.gov.uk/id/local-authority/12UE,Huntingdonshire District Council,201012,COACH & HORSES,32113,23/03/2020,428,16-22/03/20,26/03/2020,24,120,144,Homelessness,B&B Accommodation,64401
http://statistics.data.gov.uk/id/local-authority/12UE,Huntingdonshire District Council,201012,COACH & HORSES,27791,09/12/2019,414,09-15/12/19,02/01/2020,40,200,240,Homelessness,B&B Accommodation,64401
http://statistics.data.gov.uk/id/local-authority/12UE,Huntingdonshire District Council,200673,RENT CONNECT RENT CONNECT,27801,17/12/2019,RC-HDC073,Dec-19,02/01/2020,0,440,440,Homelessness,B&B Accommodation,64401
http://statistics.data.gov.uk/id/local-authority/12UE,Huntingdonshire District Council,200808,IMPERIAL PORTFOLIOS LTD,28091,01/01/2020,DEC001_HUNT_2019,Dec-19,09/01/2020,32,160,192,Homelessness,B&B Accommodation,64401
http://statistics.data.gov.uk/id/local-authority/12UE,Huntingdonshire District Council,200673,RENT CONNECT RENT CONNECT,27801,17/12/2019,RC-HDC073,Dec-19,02/01/2020,0,720,720,Homelessness,B&B Accommodation,64401
http://statistics.data.gov.uk/id/local-authority/12UE,Huntingdonshire District Council,200673,RENT CONNECT RENT CONNECT,32045,17/03/2020,RC-HDC079,Mar-20,26/03/2020,0,720,720,Homelessness,B&B Accommodation,64401
http://statistics.data.gov.uk/id/local-authority/12UE,Huntingdonshire District Council,200673,RENT CONNECT RENT CONNECT,29794,01/02/2020,RC-HDC076,Jan-20,13/02/2020,0,675,675,Homelessness,B&B Accommodation,64401
http://statistics.data.gov.uk/id/local-authority/12UE,Huntingdonshire District Council,200673,RENT CONNECT RENT CONNECT,31130,01/03/2020,RC-HDC078,Feb-20,05/03/2020,0,675,675,Homelessness,B&B Accommodation,64401
http://statistics.data.gov.uk/id/local-authority/12UE,Huntingdonshire District Council,200673,RENT CONNECT RENT CONNECT,28939,17/01/2020,RC-HDC075,Jan-20,23/01/2020,0,720,720,Homelessness,B&B Accommodation,64401
http://statistics.data.gov.uk/id/local-authority/12UE,Huntingdonshire District Council,200673,RENT CONNECT RENT CONNECT,28093,01/01/2020,RC-HDC074,Dec-19,09/01/2020,0,675,675,Homelessness,B&B Accommodation,64401
http://statistics.data.gov.uk/id/local-authority/12UE,Huntingdonshire District Council,200673,RENT CONNECT RENT CONNECT,30476,14/02/2020,RC-HDC077,Feb-20,20/02/2020,0,630,630,Homelessness,B&B Accommodation,64401
http://statistics.data.gov.uk/id/local-authority/12UE,Huntingdonshire District Council,200673,RENT CONNECT RENT CONNECT,27801,17/12/2019,RC-HDC073,Dec-19,02/01/2020,0,880,880,Homelessness,B&B Accommodation,64401
http://statistics.data.gov.uk/id/local-authority/12UE,Huntingdonshire District Council,200673,RENT CONNECT RENT CONNECT,32045,17/03/2020,RC-HDC079,Mar-20,26/03/2020,0,825,825,Homelessness,B&B Accommodation,64401
http://statistics.data.gov.uk/id/local-authority/12UE,Huntingdonshire District Council,200673,RENT CONNECT RENT CONNECT,29794,01/02/2020,RC-HDC076,Jan-20,13/02/2020,0,825,825,Homelessness,B&B Accommodation,64401
http://statistics.data.gov.uk/id/local-authority/12UE,Huntingdonshire District Council,200673,RENT CONNECT RENT CONNECT,31130,01/03/2020,RC-HDC078,Feb-20,05/03/2020,0,825,825,Homelessness,B&B Accommodation,64401
http://statistics.data.gov.uk/id/local-authority/12UE,Huntingdonshire District Council,200673,RENT CONNECT RENT CONNECT,28939,17/01/2020,RC-HDC075,Jan-20,23/01/2020,0,880,880,Homelessness,B&B Accommodation,64401
http://statistics.data.gov.uk/id/local-authority/12UE,Huntingdonshire District Council,200673,RENT CONNECT RENT CONNECT,28093,01/01/2020,RC-HDC074,Dec-19,09/01/2020,0,825,825,Homelessness,B&B Accommodation,64401
http://statistics.data.gov.uk/id/local-authority/12UE,Huntingdonshire District Council,200673,RENT CONNECT RENT CONNECT,30476,14/02/2020,RC-HDC077,Feb-20,20/02/2020,0,770,770,Homelessness,B&B Accommodation,64401
http://statistics.data.gov.uk/id/local-authority/12UE,Huntingdonshire District Council,200673,RENT CONNECT RENT CONNECT,27801,17/12/2019,RC-HDC073,Dec-19,02/01/2020,0,720,720,Homelessness,B&B Accommodation,64401
http://statistics.data.gov.uk/id/local-authority/12UE,Huntingdonshire District Council,200673,RENT CONNECT RENT CONNECT,32045,17/03/2020,RC-HDC079,Mar-20,26/03/2020,0,720,720,Homelessness,B&B Accommodation,64401
http://statistics.data.gov.uk/id/local-authority/12UE,Huntingdonshire District Council,200673,RENT CONNECT RENT CONNECT,29794,01/02/2020,RC-HDC076,Jan-20,13/02/2020,0,675,675,Homelessness,B&B Accommodation,64401
http://statistics.data.gov.uk/id/local-authority/12UE,Huntingdonshire District Council,200673,RENT CONNECT RENT CONNECT,31130,01/03/2020,RC-HDC078,Feb-20,05/03/2020,0,675,675,Homelessness,B&B Accommodation,64401
http://statistics.data.gov.uk/id/local-authority/12UE,Huntingdonshire District Council,200673,RENT CONNECT RENT CONNECT,28939,17/01/2020,RC-HDC075,Jan-20,23/01/2020,0,720,720,Homelessness,B&B Accommodation,64401
http://statistics.data.gov.uk/id/local-authority/12UE,Huntingdonshire District Council,200673,RENT CONNECT RENT CONNECT,28093,01/01/2020,RC-HDC074,Dec-19,09/01/2020,0,675,675,Homelessness,B&B Accommodation,64401
http://statistics.data.gov.uk/id/local-authority/12UE,Huntingdonshire District Council,200673,RENT CONNECT RENT CONNECT,30476,14/02/2020,RC-HDC077,Feb-20,20/02/2020,0,630,630,Homelessness,B&B Accommodation,64401
http://statistics.data.gov.uk/id/local-authority/12UE,Huntingdonshire District Council,200808,IMPERIAL PORTFOLIOS LTD,28091,01/01/2020,DEC001_HUNT_2019,Dec-19,09/01/2020,279,1395,1674,Homelessness,B&B Accommodation,64401
http://statistics.data.gov.uk/id/local-authority/12UE,Huntingdonshire District Council,200808,IMPERIAL PORTFOLIOS LTD,29684,02/02/2020,JAN001_HUNT_2020,Jan-20,06/02/2020,279,1395,1674,Homelessness,B&B Accommodation,64401
http://statistics.data.gov.uk/id/local-authority/12UE,Huntingdonshire District Council,200808,IMPERIAL PORTFOLIOS LTD,31109,01/03/2020,FEB001_HUNT_2020,Feb-20,05/03/2020,261,1305,1566,Homelessness,B&B Accommodation,64401
http://statistics.data.gov.uk/id/local-authority/12UE,Huntingdonshire District Council,200808,IMPERIAL PORTFOLIOS LTD,28091,01/01/2020,DEC001_HUNT_2019,Dec-19,09/01/2020,279,1395,1674,Homelessness,B&B Accommodation,64401
http://statistics.data.gov.uk/id/local-authority/12UE,Huntingdonshire District Council,200808,IMPERIAL PORTFOLIOS LTD,29684,02/02/2020,JAN001_HUNT_2020,Jan-20,06/02/2020,279,1395,1674,Homelessness,B&B Accommodation,64401
http://statistics.data.gov.uk/id/local-authority/12UE,Huntingdonshire District Council,200808,IMPERIAL PORTFOLIOS LTD,31109,01/03/2020,FEB001_HUNT_2020,Feb-20,05/03/2020,261,1305,1566,Homelessness,B&B Accommodation,64401
http://statistics.data.gov.uk/id/local-authority/12UE,Huntingdonshire District Council,201011,CENTENNIAL PROPERTY LTD,27790,17/12/2019,CP-HDC073,1-16 DEC 19,02/01/2020,0,608,608,Homelessness,B&B Accommodation,64401
http://statistics.data.gov.uk/id/local-authority/12UE,Huntingdonshire District Council,201011,CENTENNIAL PROPERTY LTD,28938,17/01/2020,CP-HDC075,1-16/1/20,23/01/2020,0,608,608,Homelessness,B&B Accommodation,64401
http://statistics.data.gov.uk/id/local-authority/12UE,Huntingdonshire District Council,201011,CENTENNIAL PROPERTY LTD,28092,01/01/2020,CP-HDC074,17-31 DEC 19,09/01/2020,0,570,570,Homelessness,B&B Accommodation,64401
http://statistics.data.gov.uk/id/local-authority/12UE,Huntingdonshire District Council,201011,CENTENNIAL PROPERTY LTD,29683,01/02/2020,CP-HDC076,17-31/01/20,06/02/2020,0,570,570,Homelessness,B&B Accommodation,64401
http://statistics.data.gov.uk/id/local-authority/12UE,Huntingdonshire District Council,201011,CENTENNIAL PROPERTY LTD,30405,16/02/2020,CP-HDC077,01-15 FEB 20,20/02/2020,0,570,570,Homelessness,B&B Accommodation,64401
http://statistics.data.gov.uk/id/local-authority/12UE,Huntingdonshire District Council,201011,CENTENNIAL PROPERTY LTD,32044,17/03/2020,CP-HDC079,1-16 MAR 20,26/03/2020,121.6,608,729.6,Homelessness,B&B Accommodation,64401
http://statistics.data.gov.uk/id/local-authority/12UE,Huntingdonshire District Council,201011,CENTENNIAL PROPERTY LTD,31108,01/03/2020,CP-HDC078,16-29 FEB 20,05/03/2020,106.4,532,638.4,Homelessness,B&B Accommodation,64401
http://statistics.data.gov.uk/id/local-authority/12UE,Huntingdonshire District Council,201011,CENTENNIAL PROPERTY LTD,27790,17/12/2019,CP-HDC073,1-16 DEC 19,02/01/2020,0,608,608,Homelessness,B&B Accommodation,64401
http://statistics.data.gov.uk/id/local-authority/12UE,Huntingdonshire District Council,201011,CENTENNIAL PROPERTY LTD,29683,01/02/2020,CP-HDC076,17-31/01/20,06/02/2020,0,570,570,Homelessness,B&B Accommodation,64401
http://statistics.data.gov.uk/id/local-authority/12UE,Huntingdonshire District Council,201011,CENTENNIAL PROPERTY LTD,30405,16/02/2020,CP-HDC077,01-15 FEB 20,20/02/2020,0,570,570,Homelessness,B&B Accommodation,64401
http://statistics.data.gov.uk/id/local-authority/12UE,Huntingdonshire District Council,201011,CENTENNIAL PROPERTY LTD,32044,17/03/2020,CP-HDC079,1-16 MAR 20,26/03/2020,121.6,608,729.6,Homelessness,B&B Accommodation,64401
http://statistics.data.gov.uk/id/local-authority/12UE,Huntingdonshire District Council,201011,CENTENNIAL PROPERTY LTD,31108,01/03/2020,CP-HDC078,16-29 FEB 20,05/03/2020,106.4,532,638.4,Homelessness,B&B Accommodation,64401
http://statistics.data.gov.uk/id/local-authority/12UE,Huntingdonshire District Council,200808,IMPERIAL PORTFOLIOS LTD,28091,01/01/2020,DEC001_HUNT_2019,Dec-19,09/01/2020,279,1395,1674,Homelessness,B&B Accommodation,64401
http://statistics.data.gov.uk/id/local-authority/12UE,Huntingdonshire District Council,200808,IMPERIAL PORTFOLIOS LTD,29684,02/02/2020,JAN001_HUNT_2020,Jan-20,06/02/2020,279,1395,1674,Homelessness,B&B Accommodation,64401
http://statistics.data.gov.uk/id/local-authority/12UE,Huntingdonshire District Council,200808,IMPERIAL PORTFOLIOS LTD,31109,01/03/2020,FEB001_HUNT_2020,Feb-20,05/03/2020,261,1305,1566,Homelessness,B&B Accommodation,64401
http://statistics.data.gov.uk/id/local-authority/12UE,Huntingdonshire District Council,201011,CENTENNIAL PROPERTY LTD,27790,17/12/2019,CP-HDC073,1-16 DEC 19,02/01/2020,0,608,608,Homelessness,B&B Accommodation,64401
http://statistics.data.gov.uk/id/local-authority/12UE,Huntingdonshire District Council,201011,CENTENNIAL PROPERTY LTD,28938,17/01/2020,CP-HDC075,1-16/1/20,23/01/2020,0,608,608,Homelessness,B&B Accommodation,64401
http://statistics.data.gov.uk/id/local-authority/12UE,Huntingdonshire District Council,201011,CENTENNIAL PROPERTY LTD,28092,01/01/2020,CP-HDC074,17-31 DEC 19,09/01/2020,0,570,570,Homelessness,B&B Accommodation,64401
http://statistics.data.gov.uk/id/local-authority/12UE,Huntingdonshire District Council,201011,CENTENNIAL PROPERTY LTD,29683,01/02/2020,CP-HDC076,17-31/01/20,06/02/2020,0,570,570,Homelessness,B&B Accommodation,64401
http://statistics.data.gov.uk/id/local-authority/12UE,Huntingdonshire District Council,201011,CENTENNIAL PROPERTY LTD,30405,16/02/2020,CP-HDC077,01-15 FEB 20,20/02/2020,0,570,570,Homelessness,B&B Accommodation,64401
http://statistics.data.gov.uk/id/local-authority/12UE,Huntingdonshire District Council,201011,CENTENNIAL PROPERTY LTD,32044,17/03/2020,CP-HDC079,1-16 MAR 20,26/03/2020,121.6,608,729.6,Homelessness,B&B Accommodation,64401
http://statistics.data.gov.uk/id/local-authority/12UE,Huntingdonshire District Council,201011,CENTENNIAL PROPERTY LTD,31108,01/03/2020,CP-HDC078,16-29 FEB 20,05/03/2020,106.4,532,638.4,Homelessness,B&B Accommodation,64401
http://statistics.data.gov.uk/id/local-authority/12UE,Huntingdonshire District Council,201011,CENTENNIAL PROPERTY LTD,27790,17/12/2019,CP-HDC073,1-16 DEC 19,02/01/2020,0,608,608,Homelessness,B&B Accommodation,64401
http://statistics.data.gov.uk/id/local-authority/12UE,Huntingdonshire District Council,201011,CENTENNIAL PROPERTY LTD,28938,17/01/2020,CP-HDC075,1-16/1/20,23/01/2020,0,608,608,Homelessness,B&B Accommodation,64401
http://statistics.data.gov.uk/id/local-authority/12UE,Huntingdonshire District Council,201011,CENTENNIAL PROPERTY LTD,28092,01/01/2020,CP-HDC074,17-31 DEC 19,09/01/2020,0,570,570,Homelessness,B&B Accommodation,64401
http://statistics.data.gov.uk/id/local-authority/12UE,Huntingdonshire District Council,201011,CENTENNIAL PROPERTY LTD,29683,01/02/2020,CP-HDC076,17-31/01/20,06/02/2020,0,570,570,Homelessness,B&B Accommodation,64401
http://statistics.data.gov.uk/id/local-authority/12UE,Huntingdonshire District Council,201011,CENTENNIAL PROPERTY LTD,30405,16/02/2020,CP-HDC077,01-15 FEB 20,20/02/2020,0,570,570,Homelessness,B&B Accommodation,64401
http://statistics.data.gov.uk/id/local-authority/12UE,Huntingdonshire District Council,201011,CENTENNIAL PROPERTY LTD,32044,17/03/2020,CP-HDC079,1-16 MAR 20,26/03/2020,121.6,608,729.6,Homelessness,B&B Accommodation,64401
http://statistics.data.gov.uk/id/local-authority/12UE,Huntingdonshire District Council,201011,CENTENNIAL PROPERTY LTD,31108,01/03/2020,CP-HDC078,16-29 FEB 20,05/03/2020,106.4,532,638.4,Homelessness,B&B Accommodation,64401
http://statistics.data.gov.uk/id/local-authority/12UE,Huntingdonshire District Council,200673,RENT CONNECT RENT CONNECT,27801,17/12/2019,RC-HDC073,Dec-19,02/01/2020,0,560,560,Homelessness,B&B Accommodation,64401
http://statistics.data.gov.uk/id/local-authority/12UE,Huntingdonshire District Council,200673,RENT CONNECT RENT CONNECT,32045,17/03/2020,RC-HDC079,Mar-20,26/03/2020,0,560,560,Homelessness,B&B Accommodation,64401
http://statistics.data.gov.uk/id/local-authority/12UE,Huntingdonshire District Council,200673,RENT CONNECT RENT CONNECT,29794,01/02/2020,RC-HDC076,Jan-20,13/02/2020,0,525,525,Homelessness,B&B Accommodation,64401
http://statistics.data.gov.uk/id/local-authority/12UE,Huntingdonshire District Council,200673,RENT CONNECT RENT CONNECT,31130,01/03/2020,RC-HDC078,Feb-20,05/03/2020,0,525,525,Homelessness,B&B Accommodation,64401
http://statistics.data.gov.uk/id/local-authority/12UE,Huntingdonshire District Council,200673,RENT CONNECT RENT CONNECT,28939,17/01/2020,RC-HDC075,Jan-20,23/01/2020,0,560,560,Homelessness,B&B Accommodation,64401
http://statistics.data.gov.uk/id/local-authority/12UE,Huntingdonshire District Council,200673,RENT CONNECT RENT CONNECT,28093,01/01/2020,RC-HDC074,Dec-19,09/01/2020,0,525,525,Homelessness,B&B Accommodation,64401
http://statistics.data.gov.uk/id/local-authority/12UE,Huntingdonshire District Council,200673,RENT CONNECT RENT CONNECT,30476,14/02/2020,RC-HDC077,Feb-20,20/02/2020,0,490,490,Homelessness,B&B Accommodation,64401
http://statistics.data.gov.uk/id/local-authority/12UE,Huntingdonshire District Council,201011,CENTENNIAL PROPERTY LTD,27790,17/12/2019,CP-HDC073,1-16 DEC 19,02/01/2020,0,608,608,Homelessness,B&B Accommodation,64401
http://statistics.data.gov.uk/id/local-authority/12UE,Huntingdonshire District Council,201011,CENTENNIAL PROPERTY LTD,28938,17/01/2020,CP-HDC075,1-16/1/20,23/01/2020,0,304,304,Homelessness,B&B Accommodation,64401
http://statistics.data.gov.uk/id/local-authority/12UE,Huntingdonshire District Council,201011,CENTENNIAL PROPERTY LTD,28092,01/01/2020,CP-HDC074,17-31 DEC 19,09/01/2020,0,570,570,Homelessness,B&B Accommodation,64401
http://statistics.data.gov.uk/id/local-authority/12UE,Huntingdonshire District Council,201011,CENTENNIAL PROPERTY LTD,27790,17/12/2019,CP-HDC073,1-16 DEC 19,02/01/2020,0,720,720,Homelessness,B&B Accommodation,64401
http://statistics.data.gov.uk/id/local-authority/12UE,Huntingdonshire District Council,201011,CENTENNIAL PROPERTY LTD,28938,17/01/2020,CP-HDC075,1-16/1/20,23/01/2020,0,720,720,Homelessness,B&B Accommodation,64401
http://statistics.data.gov.uk/id/local-authority/12UE,Huntingdonshire District Council,201011,CENTENNIAL PROPERTY LTD,28092,01/01/2020,CP-HDC074,17-31 DEC 19,09/01/2020,0,675,675,Homelessness,B&B Accommodation,64401
http://statistics.data.gov.uk/id/local-authority/12UE,Huntingdonshire District Council,201011,CENTENNIAL PROPERTY LTD,29683,01/02/2020,CP-HDC076,17-31/01/20,06/02/2020,0,675,675,Homelessness,B&B Accommodation,64401
http://statistics.data.gov.uk/id/local-authority/12UE,Huntingdonshire District Council,201011,CENTENNIAL PROPERTY LTD,30405,16/02/2020,CP-HDC077,01-15 FEB 20,20/02/2020,0,675,675,Homelessness,B&B Accommodation,64401
http://statistics.data.gov.uk/id/local-authority/12UE,Huntingdonshire District Council,201011,CENTENNIAL PROPERTY LTD,32044,17/03/2020,CP-HDC079,1-16 MAR 20,26/03/2020,144,720,864,Homelessness,B&B Accommodation,64401
http://statistics.data.gov.uk/id/local-authority/12UE,Huntingdonshire District Council,201011,CENTENNIAL PROPERTY LTD,31108,01/03/2020,CP-HDC078,16-29 FEB 20,05/03/2020,126,630,756,Homelessness,B&B Accommodation,64401
http://statistics.data.gov.uk/id/local-authority/12UE,Huntingdonshire District Council,201011,CENTENNIAL PROPERTY LTD,27790,17/12/2019,CP-HDC073,1-16 DEC 19,02/01/2020,0,720,720,Homelessness,B&B Accommodation,64401
http://statistics.data.gov.uk/id/local-authority/12UE,Huntingdonshire District Council,201011,CENTENNIAL PROPERTY LTD,28938,17/01/2020,CP-HDC075,1-16/1/20,23/01/2020,0,630,630,Homelessness,B&B Accommodation,64401
http://statistics.data.gov.uk/id/local-authority/12UE,Huntingdonshire District Council,201011,CENTENNIAL PROPERTY LTD,28092,01/01/2020,CP-HDC074,17-31 DEC 19,09/01/2020,0,675,675,Homelessness,B&B Accommodation,64401
http://statistics.data.gov.uk/id/local-authority/12UE,Huntingdonshire District Council,200673,RENT CONNECT RENT CONNECT,27801,17/12/2019,RC-HDC073,Dec-19,02/01/2020,0,720,720,Homelessness,B&B Accommodation,64401
http://statistics.data.gov.uk/id/local-authority/12UE,Huntingdonshire District Council,200673,RENT CONNECT RENT CONNECT,32045,17/03/2020,RC-HDC079,Mar-20,26/03/2020,0,720,720,Homelessness,B&B Accommodation,64401
http://statistics.data.gov.uk/id/local-authority/12UE,Huntingdonshire District Council,200673,RENT CONNECT RENT CONNECT,29794,01/02/2020,RC-HDC076,Jan-20,13/02/2020,0,675,675,Homelessness,B&B Accommodation,64401
http://statistics.data.gov.uk/id/local-authority/12UE,Huntingdonshire District Council,200673,RENT CONNECT RENT CONNECT,31130,01/03/2020,RC-HDC078,Feb-20,05/03/2020,0,675,675,Homelessness,B&B Accommodation,64401
http://statistics.data.gov.uk/id/local-authority/12UE,Huntingdonshire District Council,200673,RENT CONNECT RENT CONNECT,28939,17/01/2020,RC-HDC075,Jan-20,23/01/2020,0,720,720,Homelessness,B&B Accommodation,64401
http://statistics.data.gov.uk/id/local-authority/12UE,Huntingdonshire District Council,200673,RENT CONNECT RENT CONNECT,28093,01/01/2020,RC-HDC074,Dec-19,09/01/2020,0,675,675,Homelessness,B&B Accommodation,64401
http://statistics.data.gov.uk/id/local-authority/12UE,Huntingdonshire District Council,200673,RENT CONNECT RENT CONNECT,30476,14/02/2020,RC-HDC077,Feb-20,20/02/2020,0,630,630,Homelessness,B&B Accommodation,64401
http://statistics.data.gov.uk/id/local-authority/12UE,Huntingdonshire District Council,201012,COACH & HORSES,31482,09/03/2020,426,02-08/03/20,12/03/2020,56,280,336,Homelessness,B&B Accommodation,64401
http://statistics.data.gov.uk/id/local-authority/12UE,Huntingdonshire District Council,201012,COACH & HORSES,31059,02/03/2020,425,24/02 - 01/03/20,05/03/2020,56,280,336,Homelessness,B&B Accommodation,64401
http://statistics.data.gov.uk/id/local-authority/12UE,Huntingdonshire District Council,201012,COACH & HORSES,29925,10/02/2020,422,04-09/02/20,13/02/2020,56,280,336,Homelessness,B&B Accommodation,64401
http://statistics.data.gov.uk/id/local-authority/12UE,Huntingdonshire District Council,201012,COACH & HORSES,30742,24/02/2020,424,17-23/02/20,27/02/2020,56,280,336,Homelessness,B&B Accommodation,64401
http://statistics.data.gov.uk/id/local-authority/12UE,Huntingdonshire District Council,201012,COACH & HORSES,30404,17/02/2020,423,10-16/02/20,20/02/2020,56,280,336,Homelessness,B&B Accommodation,64401
http://statistics.data.gov.uk/id/local-authority/12UE,Huntingdonshire District Council,201012,COACH & HORSES,29080,20/01/2020,419,13-19/01/20,23/01/2020,56,280,336,Homelessness,B&B Accommodation,64401
http://statistics.data.gov.uk/id/local-authority/12UE,Huntingdonshire District Council,201012,COACH & HORSES,31914,16/03/2020,427,09-15/03/20,19/03/2020,32,160,192,Homelessness,B&B Accommodation,64401
http://statistics.data.gov.uk/id/local-authority/12UE,Huntingdonshire District Council,201012,COACH & HORSES,28173,06/01/2020,417,30/12/19 - 05/01/20,09/01/2020,56,280,336,Homelessness,B&B Accommodation,64401
http://statistics.data.gov.uk/id/local-authority/12UE,Huntingdonshire District Council,201012,COACH & HORSES,29676,03/02/2020,421,28/01 - 02/02/20,06/02/2020,56,280,336,Homelessness,B&B Accommodation,64401
http://statistics.data.gov.uk/id/local-authority/12UE,Huntingdonshire District Council,201012,COACH & HORSES,28666,13/01/2020,418,05-12/01/20,16/01/2020,16,80,96,Homelessness,B&B Accommodation,64401
http://statistics.data.gov.uk/id/local-authority/12UE,Huntingdonshire District Council,201012,COACH & HORSES,29254,27/01/2020,420,20-26/01/20,30/01/2020,56,280,336,Homelessness,B&B Accommodation,64401
http://statistics.data.gov.uk/id/local-authority/12UE,Huntingdonshire District Council,201012,COACH & HORSES,27923,30/12/2019,416,23-29/12/19,02/01/2020,56,280,336,Homelessness,B&B Accommodation,64401
http://statistics.data.gov.uk/id/local-authority/12UE,Huntingdonshire District Council,201012,COACH & HORSES,27832,23/12/2019,415,16-22/12/19,02/01/2020,56,280,336,Homelessness,B&B Accommodation,64401
http://statistics.data.gov.uk/id/local-authority/12UE,Huntingdonshire District Council,201012,COACH & HORSES,27791,09/12/2019,414,09-15/12/19,02/01/2020,56,280,336,Homelessness,B&B Accommodation,64401
http://statistics.data.gov.uk/id/local-authority/12UE,Huntingdonshire District Council,200787,THE STATION HOTEL THE STATION HOTEL,27799,11/12/2019,63/2019,REDACTED,02/01/2020,0,420,420,Homelessness,B&B Accommodation,64401
http://statistics.data.gov.uk/id/local-authority/12UE,Huntingdonshire District Council,200673,RENT CONNECT RENT CONNECT,27801,17/12/2019,RC-HDC073,Dec-19,02/01/2020,0,720,720,Homelessness,B&B Accommodation,64401
http://statistics.data.gov.uk/id/local-authority/12UE,Huntingdonshire District Council,200673,RENT CONNECT RENT CONNECT,28093,01/01/2020,RC-HDC074,Dec-19,09/01/2020,0,135,135,Homelessness,B&B Accommodation,64401
http://statistics.data.gov.uk/id/local-authority/12UE,Huntingdonshire District Council,201011,CENTENNIAL PROPERTY LTD,27790,17/12/2019,CP-HDC073,1-16 DEC 19,02/01/2020,0,585,585,Homelessness,B&B Accommodation,64401
http://statistics.data.gov.uk/id/local-authority/12UE,Huntingdonshire District Council,201011,CENTENNIAL PROPERTY LTD,28938,17/01/2020,CP-HDC075,1-16/1/20,23/01/2020,0,720,720,Homelessness,B&B Accommodation,64401
http://statistics.data.gov.uk/id/local-authority/12UE,Huntingdonshire District Council,201011,CENTENNIAL PROPERTY LTD,28092,01/01/2020,CP-HDC074,17-31 DEC 19,09/01/2020,0,675,675,Homelessness,B&B Accommodation,64401
http://statistics.data.gov.uk/id/local-authority/12UE,Huntingdonshire District Council,201011,CENTENNIAL PROPERTY LTD,29683,01/02/2020,CP-HDC076,17-31/01/20,06/02/2020,0,585,585,Homelessness,B&B Accommodation,64401
http://statistics.data.gov.uk/id/local-authority/12UE,Huntingdonshire District Council,201012,COACH & HORSES,28173,06/01/2020,417,30/12/19 - 05/01/20,09/01/2020,56,280,336,Homelessness,B&B Accommodation,64401
http://statistics.data.gov.uk/id/local-authority/12UE,Huntingdonshire District Council,201012,COACH & HORSES,28666,13/01/2020,418,05-12/01/20,16/01/2020,56,280,336,Homelessness,B&B Accommodation,64401
http://statistics.data.gov.uk/id/local-authority/12UE,Huntingdonshire District Council,201012,COACH & HORSES,27923,30/12/2019,416,23-29/12/19,02/01/2020,56,280,336,Homelessness,B&B Accommodation,64401
http://statistics.data.gov.uk/id/local-authority/12UE,Huntingdonshire District Council,201012,COACH & HORSES,27832,23/12/2019,415,16-22/12/19,02/01/2020,56,280,336,Homelessness,B&B Accommodation,64401
http://statistics.data.gov.uk/id/local-authority/12UE,Huntingdonshire District Council,201012,COACH & HORSES,27791,09/12/2019,414,09-15/12/19,02/01/2020,56,280,336,Homelessness,B&B Accommodation,64401
http://statistics.data.gov.uk/id/local-authority/12UE,Huntingdonshire District Council,201012,COACH & HORSES,29925,10/02/2020,422,04-09/02/20,13/02/2020,56,280,336,Homelessness,B&B Accommodation,64401
http://statistics.data.gov.uk/id/local-authority/12UE,Huntingdonshire District Council,201012,COACH & HORSES,30404,17/02/2020,423,10-16/02/20,20/02/2020,16,80,96,Homelessness,B&B Accommodation,64401
http://statistics.data.gov.uk/id/local-authority/12UE,Huntingdonshire District Council,201012,COACH & HORSES,29080,20/01/2020,419,13-19/01/20,23/01/2020,56,280,336,Homelessness,B&B Accommodation,64401
http://statistics.data.gov.uk/id/local-authority/12UE,Huntingdonshire District Council,201012,COACH & HORSES,28173,06/01/2020,417,30/12/19 - 05/01/20,09/01/2020,56,280,336,Homelessness,B&B Accommodation,64401
http://statistics.data.gov.uk/id/local-authority/12UE,Huntingdonshire District Council,201012,COACH & HORSES,29676,03/02/2020,421,28/01 - 02/02/20,06/02/2020,56,280,336,Homelessness,B&B Accommodation,64401
http://statistics.data.gov.uk/id/local-authority/12UE,Huntingdonshire District Council,201012,COACH & HORSES,28666,13/01/2020,418,05-12/01/20,16/01/2020,56,280,336,Homelessness,B&B Accommodation,64401
http://statistics.data.gov.uk/id/local-authority/12UE,Huntingdonshire District Council,201012,COACH & HORSES,29254,27/01/2020,420,20-26/01/20,30/01/2020,56,280,336,Homelessness,B&B Accommodation,64401
http://statistics.data.gov.uk/id/local-authority/12UE,Huntingdonshire District Council,201012,COACH & HORSES,27923,30/12/2019,416,23-29/12/19,02/01/2020,56,280,336,Homelessness,B&B Accommodation,64401
http://statistics.data.gov.uk/id/local-authority/12UE,Huntingdonshire District Council,201012,COACH & HORSES,27832,23/12/2019,415,16-22/12/19,02/01/2020,56,280,336,Homelessness,B&B Accommodation,64401
http://statistics.data.gov.uk/id/local-authority/12UE,Huntingdonshire District Council,201012,COACH & HORSES,27791,09/12/2019,414,09-15/12/19,02/01/2020,8,40,48,Homelessness,B&B Accommodation,64401
http://statistics.data.gov.uk/id/local-authority/12UE,Huntingdonshire District Council,200673,RENT CONNECT RENT CONNECT,27801,17/12/2019,RC-HDC073,Dec-19,02/01/2020,0,228,228,Homelessness,B&B Accommodation,64401
http://statistics.data.gov.uk/id/local-authority/12UE,Huntingdonshire District Council,200673,RENT CONNECT RENT CONNECT,32045,17/03/2020,RC-HDC079,Mar-20,26/03/2020,0,608,608,Homelessness,B&B Accommodation,64401
http://statistics.data.gov.uk/id/local-authority/12UE,Huntingdonshire District Council,200673,RENT CONNECT RENT CONNECT,29794,01/02/2020,RC-HDC076,Jan-20,13/02/2020,0,570,570,Homelessness,B&B Accommodation,64401
http://statistics.data.gov.uk/id/local-authority/12UE,Huntingdonshire District Council,200673,RENT CONNECT RENT CONNECT,31130,01/03/2020,RC-HDC078,Feb-20,05/03/2020,0,570,570,Homelessness,B&B Accommodation,64401
http://statistics.data.gov.uk/id/local-authority/12UE,Huntingdonshire District Council,200673,RENT CONNECT RENT CONNECT,28939,17/01/2020,RC-HDC075,Jan-20,23/01/2020,0,608,608,Homelessness,B&B Accommodation,64401
http://statistics.data.gov.uk/id/local-authority/12UE,Huntingdonshire District Council,200673,RENT CONNECT RENT CONNECT,30476,14/02/2020,RC-HDC077,Feb-20,20/02/2020,0,532,532,Homelessness,B&B Accommodation,64401
http://statistics.data.gov.uk/id/local-authority/12UE,Huntingdonshire District Council,200808,IMPERIAL PORTFOLIOS LTD,28091,01/01/2020,DEC001_HUNT_2019,Dec-19,09/01/2020,207,1035,1242,Homelessness,B&B Accommodation,64401
http://statistics.data.gov.uk/id/local-authority/12UE,Huntingdonshire District Council,200808,IMPERIAL PORTFOLIOS LTD,29684,02/02/2020,JAN001_HUNT_2020,Jan-20,06/02/2020,279,1395,1674,Homelessness,B&B Accommodation,64401
http://statistics.data.gov.uk/id/local-authority/12UE,Huntingdonshire District Council,200808,IMPERIAL PORTFOLIOS LTD,31109,01/03/2020,FEB001_HUNT_2020,Feb-20,05/03/2020,261,1305,1566,Homelessness,B&B Accommodation,64401
http://statistics.data.gov.uk/id/local-authority/12UE,Huntingdonshire District Council,201011,CENTENNIAL PROPERTY LTD,28938,17/01/2020,CP-HDC075,1-16/1/20,23/01/2020,0,720,720,Homelessness,B&B Accommodation,64401
http://statistics.data.gov.uk/id/local-authority/12UE,Huntingdonshire District Council,201011,CENTENNIAL PROPERTY LTD,28092,01/01/2020,CP-HDC074,17-31 DEC 19,09/01/2020,0,630,630,Homelessness,B&B Accommodation,64401
http://statistics.data.gov.uk/id/local-authority/12UE,Huntingdonshire District Council,201011,CENTENNIAL PROPERTY LTD,29683,01/02/2020,CP-HDC076,17-31/01/20,06/02/2020,0,495,495,Homelessness,B&B Accommodation,64401
http://statistics.data.gov.uk/id/local-authority/12UE,Huntingdonshire District Council,201012,COACH & HORSES,27923,30/12/2019,416,23-29/12/19,02/01/2020,22,110,132,Homelessness,B&B Accommodation,64401
http://statistics.data.gov.uk/id/local-authority/12UE,Huntingdonshire District Council,201012,COACH & HORSES,31482,09/03/2020,426,02-08/03/20,12/03/2020,56,280,336,Homelessness,B&B Accommodation,64401
http://statistics.data.gov.uk/id/local-authority/12UE,Huntingdonshire District Council,201012,COACH & HORSES,31059,02/03/2020,425,24/02 - 01/03/20,05/03/2020,56,280,336,Homelessness,B&B Accommodation,64401
http://statistics.data.gov.uk/id/local-authority/12UE,Huntingdonshire District Council,201012,COACH & HORSES,29925,10/02/2020,422,04-09/02/20,13/02/2020,56,280,336,Homelessness,B&B Accommodation,64401
http://statistics.data.gov.uk/id/local-authority/12UE,Huntingdonshire District Council,201012,COACH & HORSES,30742,24/02/2020,424,17-23/02/20,27/02/2020,56,280,336,Homelessness,B&B Accommodation,64401
http://statistics.data.gov.uk/id/local-authority/12UE,Huntingdonshire District Council,201012,COACH & HORSES,30404,17/02/2020,423,10-16/02/20,20/02/2020,56,280,336,Homelessness,B&B Accommodation,64401
http://statistics.data.gov.uk/id/local-authority/12UE,Huntingdonshire District Council,201012,COACH & HORSES,29080,20/01/2020,419,13-19/01/20,23/01/2020,56,280,336,Homelessness,B&B Accommodation,64401
http://statistics.data.gov.uk/id/local-authority/12UE,Huntingdonshire District Council,201012,COACH & HORSES,31914,16/03/2020,427,09-15/03/20,19/03/2020,56,280,336,Homelessness,B&B Accommodation,64401
http://statistics.data.gov.uk/id/local-authority/12UE,Huntingdonshire District Council,201012,COACH & HORSES,28173,06/01/2020,417,30/12/19 - 05/01/20,09/01/2020,48,240,288,Homelessness,B&B Accommodation,64401
http://statistics.data.gov.uk/id/local-authority/12UE,Huntingdonshire District Council,201012,COACH & HORSES,29676,03/02/2020,421,28/01 - 02/02/20,06/02/2020,56,280,336,Homelessness,B&B Accommodation,64401
http://statistics.data.gov.uk/id/local-authority/12UE,Huntingdonshire District Council,201012,COACH & HORSES,28666,13/01/2020,418,05-12/01/20,16/01/2020,56,280,336,Homelessness,B&B Accommodation,64401
http://statistics.data.gov.uk/id/local-authority/12UE,Huntingdonshire District Council,201012,COACH & HORSES,29254,27/01/2020,420,20-26/01/20,30/01/2020,56,280,336,Homelessness,B&B Accommodation,64401
http://statistics.data.gov.uk/id/local-authority/12UE,Huntingdonshire District Council,201012,COACH & HORSES,28666,13/01/2020,418,05-12/01/20,16/01/2020,8,40,48,Homelessness,B&B Accommodation,64401
http://statistics.data.gov.uk/id/local-authority/12UE,Huntingdonshire District Council,201011,CENTENNIAL PROPERTY LTD,28938,17/01/2020,CP-HDC075,1-16/1/20,23/01/2020,0,495,495,Homelessness,B&B Accommodation,64401
http://statistics.data.gov.uk/id/local-authority/12UE,Huntingdonshire District Council,201011,CENTENNIAL PROPERTY LTD,29683,01/02/2020,CP-HDC076,17-31/01/20,06/02/2020,0,675,675,Homelessness,B&B Accommodation,64401
http://statistics.data.gov.uk/id/local-authority/12UE,Huntingdonshire District Council,201011,CENTENNIAL PROPERTY LTD,30405,16/02/2020,CP-HDC077,01-15 FEB 20,20/02/2020,0,675,675,Homelessness,B&B Accommodation,64401
http://statistics.data.gov.uk/id/local-authority/12UE,Huntingdonshire District Council,201011,CENTENNIAL PROPERTY LTD,32044,17/03/2020,CP-HDC079,1-16 MAR 20,26/03/2020,144,720,864,Homelessness,B&B Accommodation,64401
http://statistics.data.gov.uk/id/local-authority/12UE,Huntingdonshire District Council,201011,CENTENNIAL PROPERTY LTD,31108,01/03/2020,CP-HDC078,16-29 FEB 20,05/03/2020,126,630,756,Homelessness,B&B Accommodation,64401
http://statistics.data.gov.uk/id/local-authority/12UE,Huntingdonshire District Council,200673,RENT CONNECT RENT CONNECT,32045,17/03/2020,RC-HDC079,Mar-20,26/03/2020,0,640,640,Homelessness,B&B Accommodation,64401
http://statistics.data.gov.uk/id/local-authority/12UE,Huntingdonshire District Council,200673,RENT CONNECT RENT CONNECT,29794,01/02/2020,RC-HDC076,Jan-20,13/02/2020,0,600,600,Homelessness,B&B Accommodation,64401
http://statistics.data.gov.uk/id/local-authority/12UE,Huntingdonshire District Council,200673,RENT CONNECT RENT CONNECT,31130,01/03/2020,RC-HDC078,Feb-20,05/03/2020,0,600,600,Homelessness,B&B Accommodation,64401
http://statistics.data.gov.uk/id/local-authority/12UE,Huntingdonshire District Council,200673,RENT CONNECT RENT CONNECT,28939,17/01/2020,RC-HDC075,Jan-20,23/01/2020,0,40,40,Homelessness,B&B Accommodation,64401
http://statistics.data.gov.uk/id/local-authority/12UE,Huntingdonshire District Council,200673,RENT CONNECT RENT CONNECT,30476,14/02/2020,RC-HDC077,Feb-20,20/02/2020,0,560,560,Homelessness,B&B Accommodation,64401
http://statistics.data.gov.uk/id/local-authority/12UE,Huntingdonshire District Council,201012,COACH & HORSES,29080,20/01/2020,419,13-19/01/20,23/01/2020,24,120,144,Homelessness,B&B Accommodation,64401
http://statistics.data.gov.uk/id/local-authority/12UE,Huntingdonshire District Council,201012,COACH & HORSES,29254,27/01/2020,420,20-26/01/20,30/01/2020,8,40,48,Homelessness,B&B Accommodation,64401
http://statistics.data.gov.uk/id/local-authority/12UE,Huntingdonshire District Council,201011,CENTENNIAL PROPERTY LTD,29683,01/02/2020,CP-HDC076,17-31/01/20,06/02/2020,0,110,110,Homelessness,B&B Accommodation,64401
http://statistics.data.gov.uk/id/local-authority/12UE,Huntingdonshire District Council,201011,CENTENNIAL PROPERTY LTD,30405,16/02/2020,CP-HDC077,01-15 FEB 20,20/02/2020,0,825,825,Homelessness,B&B Accommodation,64401
http://statistics.data.gov.uk/id/local-authority/12UE,Huntingdonshire District Council,201011,CENTENNIAL PROPERTY LTD,31108,01/03/2020,CP-HDC078,16-29 FEB 20,05/03/2020,154,770,924,Homelessness,B&B Accommodation,64401
http://statistics.data.gov.uk/id/local-authority/12UE,Huntingdonshire District Council,201012,COACH & HORSES,29676,03/02/2020,421,28/01 - 02/02/20,06/02/2020,24,120,144,Homelessness,B&B Accommodation,64401
http://statistics.data.gov.uk/id/local-authority/12UE,Huntingdonshire District Council,201012,COACH & HORSES,29925,10/02/2020,422,04-09/02/20,13/02/2020,8,40,48,Homelessness,B&B Accommodation,64401
http://statistics.data.gov.uk/id/local-authority/12UE,Huntingdonshire District Council,201012,COACH & HORSES,29925,10/02/2020,422,04-09/02/20,13/02/2020,8,40,48,Homelessness,B&B Accommodation,64401
http://statistics.data.gov.uk/id/local-authority/12UE,Huntingdonshire District Council,201012,COACH & HORSES,31482,09/03/2020,426,02-08/03/20,12/03/2020,56,280,336,Homelessness,B&B Accommodation,64401
http://statistics.data.gov.uk/id/local-authority/12UE,Huntingdonshire District Council,201012,COACH & HORSES,31059,02/03/2020,425,24/02 - 01/03/20,05/03/2020,48,240,288,Homelessness,B&B Accommodation,64401
http://statistics.data.gov.uk/id/local-authority/12UE,Huntingdonshire District Council,201012,COACH & HORSES,29925,10/02/2020,422,04-09/02/20,13/02/2020,16,80,96,Homelessness,B&B Accommodation,64401
http://statistics.data.gov.uk/id/local-authority/12UE,Huntingdonshire District Council,201012,COACH & HORSES,29925,10/02/2020,422,04-09/02/20,13/02/2020,24,120,144,Homelessness,B&B Accommodation,64401
http://statistics.data.gov.uk/id/local-authority/12UE,Huntingdonshire District Council,201012,COACH & HORSES,30742,24/02/2020,424,17-23/02/20,27/02/2020,32,160,192,Homelessness,B&B Accommodation,64401
http://statistics.data.gov.uk/id/local-authority/12UE,Huntingdonshire District Council,201012,COACH & HORSES,30404,17/02/2020,423,10-16/02/20,20/02/2020,24,120,144,Homelessness,B&B Accommodation,64401
http://statistics.data.gov.uk/id/local-authority/12UE,Huntingdonshire District Council,201012,COACH & HORSES,32113,23/03/2020,428,16-22/03/20,26/03/2020,24,120,144,Homelessness,B&B Accommodation,64401
http://statistics.data.gov.uk/id/local-authority/12UE,Huntingdonshire District Council,201012,COACH & HORSES,31482,09/03/2020,426,02-08/03/20,12/03/2020,56,280,336,Homelessness,B&B Accommodation,64401
http://statistics.data.gov.uk/id/local-authority/12UE,Huntingdonshire District Council,201012,COACH & HORSES,31059,02/03/2020,425,24/02 - 01/03/20,05/03/2020,48,240,288,Homelessness,B&B Accommodation,64401
http://statistics.data.gov.uk/id/local-authority/12UE,Huntingdonshire District Council,201012,COACH & HORSES,29925,10/02/2020,422,04-09/02/20,13/02/2020,24,120,144,Homelessness,B&B Accommodation,64401
http://statistics.data.gov.uk/id/local-authority/12UE,Huntingdonshire District Council,201012,COACH & HORSES,30742,24/02/2020,424,17-23/02/20,27/02/2020,32,160,192,Homelessness,B&B Accommodation,64401
http://statistics.data.gov.uk/id/local-authority/12UE,Huntingdonshire District Council,201012,COACH & HORSES,30404,17/02/2020,423,10-16/02/20,20/02/2020,24,120,144,Homelessness,B&B Accommodation,64401
http://statistics.data.gov.uk/id/local-authority/12UE,Huntingdonshire District Council,201012,COACH & HORSES,32113,23/03/2020,428,16-22/03/20,26/03/2020,24,120,144,Homelessness,B&B Accommodation,64401
http://statistics.data.gov.uk/id/local-authority/12UE,Huntingdonshire District Council,201012,COACH & HORSES,31482,09/03/2020,426,02-08/03/20,12/03/2020,56,280,336,Homelessness,B&B Accommodation,64401
http://statistics.data.gov.uk/id/local-authority/12UE,Huntingdonshire District Council,201012,COACH & HORSES,31059,02/03/2020,425,24/02 - 01/03/20,05/03/2020,40,200,240,Homelessness,B&B Accommodation,64401
http://statistics.data.gov.uk/id/local-authority/12UE,Huntingdonshire District Council,201012,COACH & HORSES,30742,24/02/2020,424,17-23/02/20,27/02/2020,32,160,192,Homelessness,B&B Accommodation,64401
http://statistics.data.gov.uk/id/local-authority/12UE,Huntingdonshire District Council,201012,COACH & HORSES,30404,17/02/2020,423,10-16/02/20,20/02/2020,24,120,144,Homelessness,B&B Accommodation,64401
http://statistics.data.gov.uk/id/local-authority/12UE,Huntingdonshire District Council,201011,CENTENNIAL PROPERTY LTD,30405,16/02/2020,CP-HDC077,01-15 FEB 20,20/02/2020,0,405,405,Homelessness,B&B Accommodation,64401
http://statistics.data.gov.uk/id/local-authority/12UE,Huntingdonshire District Council,201011,CENTENNIAL PROPERTY LTD,31108,01/03/2020,CP-HDC078,16-29 FEB 20,05/03/2020,9,45,54,Homelessness,B&B Accommodation,64401
http://statistics.data.gov.uk/id/local-authority/12UE,Huntingdonshire District Council,201012,COACH & HORSES,31482,09/03/2020,426,02-08/03/20,12/03/2020,56,280,336,Homelessness,B&B Accommodation,64401
http://statistics.data.gov.uk/id/local-authority/12UE,Huntingdonshire District Council,201012,COACH & HORSES,31059,02/03/2020,425,24/02 - 01/03/20,05/03/2020,56,280,336,Homelessness,B&B Accommodation,64401
http://statistics.data.gov.uk/id/local-authority/12UE,Huntingdonshire District Council,201012,COACH & HORSES,30742,24/02/2020,424,17-23/02/20,27/02/2020,32,160,192,Homelessness,B&B Accommodation,64401
http://statistics.data.gov.uk/id/local-authority/12UE,Huntingdonshire District Council,201012,COACH & HORSES,31914,16/03/2020,427,09-15/03/20,19/03/2020,56,280,336,Homelessness,B&B Accommodation,64401
http://statistics.data.gov.uk/id/local-authority/12UE,Huntingdonshire District Council,201012,COACH & HORSES,32113,23/03/2020,428,16-22/03/20,26/03/2020,24,120,144,Homelessness,B&B Accommodation,64401
http://statistics.data.gov.uk/id/local-authority/12UE,Huntingdonshire District Council,201012,COACH & HORSES,31482,09/03/2020,426,02-08/03/20,12/03/2020,56,280,336,Homelessness,B&B Accommodation,64401
http://statistics.data.gov.uk/id/local-authority/12UE,Huntingdonshire District Council,201012,COACH & HORSES,31059,02/03/2020,425,24/02 - 01/03/20,05/03/2020,40,200,240,Homelessness,B&B Accommodation,64401
http://statistics.data.gov.uk/id/local-authority/12UE,Huntingdonshire District Council,201012,COACH & HORSES,31914,16/03/2020,427,09-15/03/20,19/03/2020,56,280,336,Homelessness,B&B Accommodation,64401
http://statistics.data.gov.uk/id/local-authority/12UE,Huntingdonshire District Council,201012,COACH & HORSES,32113,23/03/2020,428,16-22/03/20,26/03/2020,56,280,336,Homelessness,B&B Accommodation,64401
http://statistics.data.gov.uk/id/local-authority/12UE,Huntingdonshire District Council,200673,RENT CONNECT RENT CONNECT,32045,17/03/2020,RC-HDC079,Mar-20,26/03/2020,0,320,320,Homelessness,B&B Accommodation,64401
http://statistics.data.gov.uk/id/local-authority/12UE,Huntingdonshire District Council,201012,COACH & HORSES,31914,16/03/2020,427,09-15/03/20,19/03/2020,32,160,192,Homelessness,B&B Accommodation,64401
http://statistics.data.gov.uk/id/local-authority/12UE,Huntingdonshire District Council,200673,RENT CONNECT RENT CONNECT,28939,17/01/2020,RC-HDC075,Jan-20,23/01/2020,0,720,720,Homelessness,B&B Costs Recovered,51406
http://statistics.data.gov.uk/id/local-authority/12UE,Huntingdonshire District Council,200808,IMPERIAL PORTFOLIOS LTD,31109,01/03/2020,FEB001_HUNT_2020,Feb-20,05/03/2020,232,1160,1392,Homelessness,B&B Costs Recovered,51406
http://statistics.data.gov.uk/id/local-authority/12UE,Huntingdonshire District Council,201011,CENTENNIAL PROPERTY LTD,28092,01/01/2020,CP-HDC074,17-31 DEC 19,09/01/2020,0,570,570,Homelessness,B&B Costs Recovered,51406
http://statistics.data.gov.uk/id/local-authority/12UE,Huntingdonshire District Council,201011,CENTENNIAL PROPERTY LTD,28938,17/01/2020,CP-HDC075,1-16/1/20,23/01/2020,0,405,405,Homelessness,B&B Costs Recovered,51406
http://statistics.data.gov.uk/id/local-authority/12UE,Huntingdonshire District Council,201011,CENTENNIAL PROPERTY LTD,28938,17/01/2020,CP-HDC075,1-16/1/20,23/01/2020,0,608,608,Homelessness,B&B Costs Recovered,51406
http://statistics.data.gov.uk/id/local-authority/12UE,Huntingdonshire District Council,201011,CENTENNIAL PROPERTY LTD,28092,01/01/2020,CP-HDC074,17-31 DEC 19,09/01/2020,0,570,570,Homelessness,B&B Costs Recovered,51406
http://statistics.data.gov.uk/id/local-authority/12UE,Huntingdonshire District Council,201011,CENTENNIAL PROPERTY LTD,32044,17/03/2020,CP-HDC079,1-16 MAR 20,26/03/2020,176,880,1056,Homelessness,B&B Costs Recovered,51406
http://statistics.data.gov.uk/id/local-authority/12UE,Huntingdonshire District Council,200825,VIRGIN MEDIA BUSINESS VIRGIN MEDIA BUSINESS,27967,03/12/2019,742878104/001/1219,LAND LINE RENTAL,02/01/2020,0.5,2.49,2.99,OLH - Site & Centre Management,Broadband Line Rental,64080
http://statistics.data.gov.uk/id/local-authority/12UE,Huntingdonshire District Council,200825,VIRGIN MEDIA BUSINESS VIRGIN MEDIA BUSINESS,28517,03/01/2020,742878104/001/0120,LAND LINE RENTAL,30/01/2020,0.29,1.43,1.72,OLH - Site & Centre Management,Broadband Line Rental,64080
http://statistics.data.gov.uk/id/local-authority/12UE,Huntingdonshire District Council,200825,VIRGIN MEDIA BUSINESS VIRGIN MEDIA BUSINESS,28497,01/01/2020,930635-075A,BROADBAND LINE RENTAL,23/01/2020,593.78,2968.89,3562.67,Cambridge City Business Case ,Broadband Line Rental,64080
http://statistics.data.gov.uk/id/local-authority/12UE,Huntingdonshire District Council,200951,ENTANET INTERNATIONAL LTD,29425,07/01/2020,EIL0000379,BROADBAND LINE RENTAL,30/01/2020,180,900,1080,Cambridge City Business Case ,Broadband Line Rental,64080
http://statistics.data.gov.uk/id/local-authority/12UE,Huntingdonshire District Council,200951,ENTANET INTERNATIONAL LTD,30046,07/02/2020,EIL0014933,BROADBAND LINE RENTAL,05/03/2020,180,900,1080,Cambridge City Business Case ,Broadband Line Rental,64080
http://statistics.data.gov.uk/id/local-authority/12UE,Huntingdonshire District Council,200951,ENTANET INTERNATIONAL LTD,31386,02/03/2020,EIL0021585,BROADBAND LINE RENTAL,26/03/2020,180,900,1080,Cambridge City Business Case ,Broadband Line Rental,64080
http://statistics.data.gov.uk/id/local-authority/12UE,Huntingdonshire District Council,200825,VIRGIN MEDIA BUSINESS VIRGIN MEDIA BUSINESS,31778,01/01/2020,930635075B,BROADBAND LINE RENTAL,19/03/2020,-593.78,-2968.89,-3562.67,Cambridge City Business Case ,Broadband Line Rental,64080
http://statistics.data.gov.uk/id/local-authority/12UE,Huntingdonshire District Council,200828,VODAFONE CABLE & WIRELESS VODAFONE CABLE & WIRELESS,31039,16/12/2019,UK10/122019/5930,BROADBAND LINE RENTAL,05/03/2020,2255.92,11279.61,13535.53,SCDC Business Case ,Broadband Line Rental,64080
http://statistics.data.gov.uk/id/local-authority/12UE,Huntingdonshire District Council,200828,VODAFONE CABLE & WIRELESS VODAFONE CABLE & WIRELESS,31038,01/01/2020,UK10/012020/8335,BROADBAND LINE RENTAL,05/03/2020,450.7,2253.48,2704.18,SCDC Business Case ,Broadband Line Rental,64080
http://statistics.data.gov.uk/id/local-authority/12UE,Huntingdonshire District Council,200825,VIRGIN MEDIA BUSINESS VIRGIN MEDIA BUSINESS,28513,01/01/2020,923186-100A,BROADBAND LINE RENTAL,23/01/2020,125.13,625.67,750.8,SCDC Business Case ,Broadband Line Rental,64080
http://statistics.data.gov.uk/id/local-authority/12UE,Huntingdonshire District Council,200825,VIRGIN MEDIA BUSINESS VIRGIN MEDIA BUSINESS,31779,01/01/2020,923186100B,BROADBAND LINE RENTAL,19/03/2020,-125.13,-625.67,-750.8,SCDC Business Case ,Broadband Line Rental,64080
http://statistics.data.gov.uk/id/local-authority/12UE,Huntingdonshire District Council,200825,VIRGIN MEDIA BUSINESS VIRGIN MEDIA BUSINESS,28512,01/01/2020,923469-112A,BROADBAND LINE RENTAL,23/01/2020,815.46,4077.29,4892.75,HDC Business Case ,Broadband Line Rental,64080
http://statistics.data.gov.uk/id/local-authority/12UE,Huntingdonshire District Council,200828,VODAFONE CABLE & WIRELESS VODAFONE CABLE & WIRELESS,29212,01/04/2019,UK10/042019/8020,BROADBAND LINE RENTAL,30/01/2020,419.5,2097.51,2517.01,HDC Business Case ,Broadband Line Rental,64080
http://statistics.data.gov.uk/id/local-authority/12UE,Huntingdonshire District Council,200828,VODAFONE CABLE & WIRELESS VODAFONE CABLE & WIRELESS,29213,01/07/2019,UK10/072019/2164,BROADBAND LINE RENTAL,30/01/2020,419.09,2095.47,2514.56,HDC Business Case ,Broadband Line Rental,64080
http://statistics.data.gov.uk/id/local-authority/12UE,Huntingdonshire District Council,200828,VODAFONE CABLE & WIRELESS VODAFONE CABLE & WIRELESS,29214,01/10/2019,UK10/102019/751,BROADBAND LINE RENTAL,30/01/2020,419.09,2095.47,2514.56,HDC Business Case ,Broadband Line Rental,64080
http://statistics.data.gov.uk/id/local-authority/12UE,Huntingdonshire District Council,200828,VODAFONE CABLE & WIRELESS VODAFONE CABLE & WIRELESS,29215,01/01/2020,UK10/012020/8027,BROADBAND LINE RENTAL,30/01/2020,419.09,2095.47,2514.56,HDC Business Case ,Broadband Line Rental,64080
http://statistics.data.gov.uk/id/local-authority/12UE,Huntingdonshire District Council,200825,VIRGIN MEDIA BUSINESS VIRGIN MEDIA BUSINESS,27967,03/12/2019,742878104/001/1219,LAND LINE RENTAL,02/01/2020,234.09,1170.46,1404.55,HDC Business Case ,Broadband Line Rental,64080
http://statistics.data.gov.uk/id/local-authority/12UE,Huntingdonshire District Council,200825,VIRGIN MEDIA BUSINESS VIRGIN MEDIA BUSINESS,28517,03/01/2020,742878104/001/0120,LAND LINE RENTAL,30/01/2020,180.16,900.79,1080.95,HDC Business Case ,Broadband Line Rental,64080
http://statistics.data.gov.uk/id/local-authority/12UE,Huntingdonshire District Council,200825,VIRGIN MEDIA BUSINESS VIRGIN MEDIA BUSINESS,31777,01/01/2020,923469112B,BROADBAND LINE RENTAL,19/03/2020,-815.46,-4077.29,-4892.75,HDC Business Case ,Broadband Line Rental,64080
http://statistics.data.gov.uk/id/local-authority/12UE,Huntingdonshire District Council,200825,VIRGIN MEDIA BUSINESS VIRGIN MEDIA BUSINESS,31788,01/02/2020,930635-076A,BROADBAND LINE RENTAL,19/03/2020,4872.62,24363.08,29235.7,Eastnet CPSN ,Broadband Line Rental,64080
http://statistics.data.gov.uk/id/local-authority/12UE,Huntingdonshire District Council,200825,VIRGIN MEDIA BUSINESS VIRGIN MEDIA BUSINESS,31790,01/02/2020,923469-113A,BROADBAND LINE RENTAL,19/03/2020,3811.43,19057.13,22868.56,Eastnet CPSN ,Broadband Line Rental,64080
http://statistics.data.gov.uk/id/local-authority/12UE,Huntingdonshire District Council,201980,MLL TELECOM LTD,28413,31/12/2019,SVI00961A,BROADBAND LINE RENTAL,23/01/2020,2609.73,13048.64,15658.37,Eastnet CPSN ,Broadband Line Rental,64080
http://statistics.data.gov.uk/id/local-authority/12UE,Huntingdonshire District Council,201980,MLL TELECOM LTD,28408,19/11/2019,SVI00888,BROADBAND LINE RENTAL,16/01/2020,992.62,4963.09,5955.71,Eastnet CPSN ,Broadband Line Rental,64080
http://statistics.data.gov.uk/id/local-authority/12UE,Huntingdonshire District Council,200825,VIRGIN MEDIA BUSINESS VIRGIN MEDIA BUSINESS,31789,01/02/2020,923186-101A,BROADBAND LINE RENTAL,19/03/2020,975.33,4876.63,5851.96,Eastnet CPSN ,Broadband Line Rental,64080
http://statistics.data.gov.uk/id/local-authority/12UE,Huntingdonshire District Council,201980,MLL TELECOM LTD,28414,31/12/2019,SVI00961B,BROADBAND LINE RENTAL,23/01/2020,863.9,4319.52,5183.42,Eastnet CPSN ,Broadband Line Rental,64080
http://statistics.data.gov.uk/id/local-authority/12UE,Huntingdonshire District Council,201980,MLL TELECOM LTD,28410,30/11/2019,SVI00932A,BROADBAND LINE RENTAL,16/01/2020,719.52,3597.59,4317.11,Eastnet CPSN ,Broadband Line Rental,64080
http://statistics.data.gov.uk/id/local-authority/12UE,Huntingdonshire District Council,201980,MLL TELECOM LTD,30392,17/02/2020,SVI01237,BROADBAND LINE RENTAL,12/03/2020,496.9,2484.5,2981.4,Eastnet CPSN ,Broadband Line Rental,64080
http://statistics.data.gov.uk/id/local-authority/12UE,Huntingdonshire District Council,201980,MLL TELECOM LTD,28409,14/11/2019,SVI00886,BROADBAND LINE RENTAL,16/01/2020,491.05,2455.24,2946.29,Eastnet CPSN ,Broadband Line Rental,64080
http://statistics.data.gov.uk/id/local-authority/12UE,Huntingdonshire District Council,201980,MLL TELECOM LTD,28411,30/11/2019,SVI00932B,BROADBAND LINE RENTAL,16/01/2020,377.28,1886.37,2263.65,Eastnet CPSN ,Broadband Line Rental,64080
http://statistics.data.gov.uk/id/local-authority/12UE,Huntingdonshire District Council,201980,MLL TELECOM LTD,30394,17/02/2020,SVI01233,BROADBAND LINE RENTAL,12/03/2020,262.52,1312.6,1575.12,Eastnet CPSN ,Broadband Line Rental,64080
http://statistics.data.gov.uk/id/local-authority/12UE,Huntingdonshire District Council,201980,MLL TELECOM LTD,30396,17/02/2020,SVI01232,BROADBAND LINE RENTAL,12/03/2020,137.07,685.34,822.41,Eastnet CPSN ,Broadband Line Rental,64080
http://statistics.data.gov.uk/id/local-authority/12UE,Huntingdonshire District Council,201980,MLL TELECOM LTD,28415,31/12/2019,SVI00961C,BROADBAND LINE RENTAL,23/01/2020,106.95,534.75,641.7,Eastnet CPSN ,Broadband Line Rental,64080
http://statistics.data.gov.uk/id/local-authority/12UE,Huntingdonshire District Council,202109,J S HOLMES LTD,31460,09/03/2020,284,VAN,26/03/2020,6098.53,30492.67,36591.2,Vehicles & Plant,CAPEX - Purchase of Vehicles,70016
http://statistics.data.gov.uk/id/local-authority/12UE,Huntingdonshire District Council,202109,J S HOLMES LTD,31460,09/03/2020,284,VAN,26/03/2020,0,-6169.8,-6169.8,Vehicles & Plant,CAPEX - Purchase of Vehicles,70016
http://statistics.data.gov.uk/id/local-authority/12UE,Huntingdonshire District Council,202109,J S HOLMES LTD,31460,09/03/2020,284,VAN,26/03/2020,0,55,55,Vehicles & Plant,CAPEX - Purchase of Vehicles,70016
http://statistics.data.gov.uk/id/local-authority/12UE,Huntingdonshire District Council,202117,INTELLIGENT FINGERPRINTING LTD,27388,16/12/2019,679,FINGER PRINTING/DRUG SCREENING,09/01/2020,640,3200,3840,Vehicles & Plant,CAPEX - Purchase of Vehicles,70016
http://statistics.data.gov.uk/id/local-authority/12UE,Huntingdonshire District Council,202117,INTELLIGENT FINGERPRINTING LTD,27388,16/12/2019,679,FINGER PRINTING/DRUG SCREENING,09/01/2020,24,120,144,Vehicles & Plant,CAPEX - Purchase of Vehicles,70016
http://statistics.data.gov.uk/id/local-authority/12UE,Huntingdonshire District Council,202117,INTELLIGENT FINGERPRINTING LTD,27388,16/12/2019,679,FINGER PRINTING/DRUG SCREENING,09/01/2020,50,250,300,Vehicles & Plant,CAPEX - Purchase of Vehicles,70016
http://statistics.data.gov.uk/id/local-authority/12UE,Huntingdonshire District Council,202117,INTELLIGENT FINGERPRINTING LTD,27388,16/12/2019,679,FINGER PRINTING/DRUG SCREENING,09/01/2020,79,395,474,Vehicles & Plant,CAPEX - Purchase of Vehicles,70016
http://statistics.data.gov.uk/id/local-authority/12UE,Huntingdonshire District Council,200000,A C COMMERCIALS A C COMMERCIALS,30666,18/02/2020,INV0004668,BATTERIES,12/03/2020,342.93,1714.65,2057.58,Parking Strategy,Cark Park Machines,61707
http://statistics.data.gov.uk/id/local-authority/12UE,Huntingdonshire District Council,200000,A C COMMERCIALS A C COMMERCIALS,30666,18/02/2020,INV0004668,BATTERIES,12/03/2020,70.39,351.96,422.35,Parking Strategy,Cark Park Machines,61707
http://statistics.data.gov.uk/id/local-authority/12UE,Huntingdonshire District Council,200726,SNACKLINE DIRECT LTD SNACKLINE DIRECT LTD,30878,27/01/2020,114425,OL HUNTINGDON,27/02/2020,100.36,501.81,602.17,OLH - Hospitality,Catering Supplies,61900
http://statistics.data.gov.uk/id/local-authority/12UE,Huntingdonshire District Council,200726,SNACKLINE DIRECT LTD SNACKLINE DIRECT LTD,30878,27/01/2020,114425,OL HUNTINGDON,27/02/2020,0,81.94,81.94,OLH - Hospitality,Catering Supplies,61900
http://statistics.data.gov.uk/id/local-authority/12UE,Huntingdonshire District Council,200113,BOOKER CASH AND CARRY BOOKER CASH AND CARRY,28078,20/11/2019,2109474704,OL ST IVES,09/01/2020,0,4.95,4.95,OLH - Hospitality,Catering Supplies,61900
http://statistics.data.gov.uk/id/local-authority/12UE,Huntingdonshire District Council,200113,BOOKER CASH AND CARRY BOOKER CASH AND CARRY,28078,20/11/2019,2109474704,OL ST IVES,09/01/2020,4,19.98,23.98,OLH - Hospitality,Catering Supplies,61900
http://statistics.data.gov.uk/id/local-authority/12UE,Huntingdonshire District Council,200726,SNACKLINE DIRECT LTD SNACKLINE DIRECT LTD,27267,09/12/2019,113025,OL HUNTINGDON,02/01/2020,65.95,329.74,395.69,OLH - Hospitality,Catering Supplies,61900
http://statistics.data.gov.uk/id/local-authority/12UE,Huntingdonshire District Council,200726,SNACKLINE DIRECT LTD SNACKLINE DIRECT LTD,27267,09/12/2019,113025,OL HUNTINGDON,02/01/2020,0,40.97,40.97,OLH - Hospitality,Catering Supplies,61900
http://statistics.data.gov.uk/id/local-authority/12UE,Huntingdonshire District Council,202087,ATHLETE NUTRITION LTD T/A AMSPORT UK,30275,13/02/2020,991270,OL HUNTINGDON,20/02/2020,22.7,113.51,136.21,OLH - Hospitality,Catering Supplies,61900
http://statistics.data.gov.uk/id/local-authority/12UE,Huntingdonshire District Council,200509,LUCOZADE RIBENA SUNTORY LTD LUCOZADE RIBENA SUNTORY LTD,31163,06/02/2020,9000173914,OL HUNTINGDON,05/03/2020,63.62,318.08,381.7,OLH - Hospitality,Catering Supplies,61900
http://statistics.data.gov.uk/id/local-authority/12UE,Huntingdonshire District Council,200723,SLUSH PUPPIE LTD SLUSH PUPPIE LTD,27783,17/12/2019,INVGB054273,OL HUNTINGDON,09/01/2020,54.65,273.24,327.89,OLH - Hospitality,Catering Supplies,61900
http://statistics.data.gov.uk/id/local-authority/12UE,Huntingdonshire District Council,200471,LACONS LACONS,31687,27/02/2020,828856,BURGESS HALL,26/03/2020,602.43,3012.17,3614.6,OLSI - Burgess Bar,Catering Supplies,61900
http://statistics.data.gov.uk/id/local-authority/12UE,Huntingdonshire District Council,200113,BOOKER CASH AND CARRY BOOKER CASH AND CARRY,27420,11/12/2019,2109651651,OL ST IVES,02/01/2020,561.04,2805.18,3366.22,OLSI - Burgess Bar,Catering Supplies,61900
http://statistics.data.gov.uk/id/local-authority/12UE,Huntingdonshire District Council,200113,BOOKER CASH AND CARRY BOOKER CASH AND CARRY,27420,11/12/2019,2109651651,OL ST IVES,02/01/2020,2.6,12.98,15.58,OLSI - Burgess Bar,Catering Supplies,61900
http://statistics.data.gov.uk/id/local-authority/12UE,Huntingdonshire District Council,200113,BOOKER CASH AND CARRY BOOKER CASH AND CARRY,27420,11/12/2019,2109651651,OL ST IVES,02/01/2020,0,49.04,49.04,OLSI - Burgess Bar,Catering Supplies,61900
http://statistics.data.gov.uk/id/local-authority/12UE,Huntingdonshire District Council,200471,LACONS LACONS,27255,05/12/2019,817846,OL ST IVES,02/01/2020,397.44,1987.22,2384.66,OLSI - Burgess Bar,Catering Supplies,61900
http://statistics.data.gov.uk/id/local-authority/12UE,Huntingdonshire District Council,200471,LACONS LACONS,28944,14/11/2019,814884,OL ST IVES,23/01/2020,386.19,1930.97,2317.16,OLSI - Burgess Bar,Catering Supplies,61900
http://statistics.data.gov.uk/id/local-authority/12UE,Huntingdonshire District Council,200471,LACONS LACONS,30321,06/02/2020,826172,OL ST IVES,05/03/2020,347.79,1738.96,2086.75,OLSI - Burgess Bar,Catering Supplies,61900
http://statistics.data.gov.uk/id/local-authority/12UE,Huntingdonshire District Council,200471,LACONS LACONS,28012,19/12/2019,819731,OL ST IVES,16/01/2020,313.93,1569.67,1883.6,OLSI - Burgess Bar,Catering Supplies,61900
http://statistics.data.gov.uk/id/local-authority/12UE,Huntingdonshire District Council,200113,BOOKER CASH AND CARRY BOOKER CASH AND CARRY,28090,20/11/2019,2109474703,OL ST IVES,09/01/2020,193.97,969.86,1163.83,OLSI - Burgess Bar,Catering Supplies,61900
http://statistics.data.gov.uk/id/local-authority/12UE,Huntingdonshire District Council,200113,BOOKER CASH AND CARRY BOOKER CASH AND CARRY,28090,20/11/2019,2109474703,OL ST IVES,09/01/2020,0,279.92,279.92,OLSI - Burgess Bar,Catering Supplies,61900
http://statistics.data.gov.uk/id/local-authority/12UE,Huntingdonshire District Council,200113,BOOKER CASH AND CARRY BOOKER CASH AND CARRY,28090,20/11/2019,2109474703,OL ST IVES,09/01/2020,9.71,48.55,58.26,OLSI - Burgess Bar,Catering Supplies,61900
http://statistics.data.gov.uk/id/local-authority/12UE,Huntingdonshire District Council,200113,BOOKER CASH AND CARRY BOOKER CASH AND CARRY,27931,18/12/2019,2109709042,OL ST IVES,09/01/2020,212.62,1063.1,1275.72,OLSI - Burgess Bar,Catering Supplies,61900
http://statistics.data.gov.uk/id/local-authority/12UE,Huntingdonshire District Council,200113,BOOKER CASH AND CARRY BOOKER CASH AND CARRY,27931,18/12/2019,2109709042,OL ST IVES,09/01/2020,0,138.74,138.74,OLSI - Burgess Bar,Catering Supplies,61900
http://statistics.data.gov.uk/id/local-authority/12UE,Huntingdonshire District Council,200113,BOOKER CASH AND CARRY BOOKER CASH AND CARRY,30467,08/01/2020,2109840345,OL ST IVES,20/02/2020,14.6,73.01,87.61,OLSI - Burgess Bar,Catering Supplies,61900
http://statistics.data.gov.uk/id/local-authority/12UE,Huntingdonshire District Council,200113,BOOKER CASH AND CARRY BOOKER CASH AND CARRY,30467,08/01/2020,2109840345,OL ST IVES,20/02/2020,141.91,709.54,851.45,OLSI - Burgess Bar,Catering Supplies,61900
http://statistics.data.gov.uk/id/local-authority/12UE,Huntingdonshire District Council,200113,BOOKER CASH AND CARRY BOOKER CASH AND CARRY,30467,08/01/2020,2109840345,OL ST IVES,20/02/2020,0,171.12,171.12,OLSI - Burgess Bar,Catering Supplies,61900
http://statistics.data.gov.uk/id/local-authority/12UE,Huntingdonshire District Council,200583,OAKHAM ALES OAKHAM ALES,28463,31/12/2019,I224366,OL ST IVES,16/01/2020,182.04,910.22,1092.26,OLSI - Burgess Bar,Catering Supplies,61900
http://statistics.data.gov.uk/id/local-authority/12UE,Huntingdonshire District Council,200583,OAKHAM ALES OAKHAM ALES,30471,14/02/2020,I226612,OL ST IVES,20/02/2020,179.02,895.08,1074.1,OLSI - Burgess Bar,Catering Supplies,61900
http://statistics.data.gov.uk/id/local-authority/12UE,Huntingdonshire District Council,200113,BOOKER CASH AND CARRY BOOKER CASH AND CARRY,30323,05/02/2020,2110060110,OL ST IVES,27/02/2020,0,273.61,273.61,OLSI - Burgess Bar,Catering Supplies,61900
http://statistics.data.gov.uk/id/local-authority/12UE,Huntingdonshire District Council,200113,BOOKER CASH AND CARRY BOOKER CASH AND CARRY,30323,05/02/2020,2110060110,OL ST IVES,27/02/2020,76.14,380.68,456.82,OLSI - Burgess Bar,Catering Supplies,61900
http://statistics.data.gov.uk/id/local-authority/12UE,Huntingdonshire District Council,200583,OAKHAM ALES OAKHAM ALES,28013,20/12/2019,I223938,OL ST IVES,09/01/2020,105.44,527.18,632.62,OLSI - Burgess Bar,Catering Supplies,61900
http://statistics.data.gov.uk/id/local-authority/12UE,Huntingdonshire District Council,200113,BOOKER CASH AND CARRY BOOKER CASH AND CARRY,31686,04/03/2020,2110279291,OL ST IVES,26/03/2020,0,429.4,429.4,OLSI - Burgess Bar,Catering Supplies,61900
http://statistics.data.gov.uk/id/local-authority/12UE,Huntingdonshire District Council,200113,BOOKER CASH AND CARRY BOOKER CASH AND CARRY,31686,04/03/2020,2110279291,OL ST IVES,26/03/2020,5.09,25.47,30.56,OLSI - Burgess Bar,Catering Supplies,61900
http://statistics.data.gov.uk/id/local-authority/12UE,Huntingdonshire District Council,200471,LACONS LACONS,29005,16/01/2020,823399,OL ST IVES,13/02/2020,98.94,494.69,593.63,OLSI - Burgess Bar,Catering Supplies,61900
http://statistics.data.gov.uk/id/local-authority/12UE,Huntingdonshire District Council,200734,SOUTH LINCS FOOD SERVICE SOUTH LINCS FOOD SERVICE,29832,04/02/2020,270493,OL ST IVES,27/02/2020,0,124.27,124.27,OLSI - Burgess Bar,Catering Supplies,61900
http://statistics.data.gov.uk/id/local-authority/12UE,Huntingdonshire District Council,200734,SOUTH LINCS FOOD SERVICE SOUTH LINCS FOOD SERVICE,29832,04/02/2020,270493,OL ST IVES,27/02/2020,70.28,351.4,421.68,OLSI - Burgess Bar,Catering Supplies,61900
http://statistics.data.gov.uk/id/local-authority/12UE,Huntingdonshire District Council,200734,SOUTH LINCS FOOD SERVICE SOUTH LINCS FOOD SERVICE,28950,11/01/2020,263102,BURGESS HALL,06/02/2020,37.3,186.52,223.82,OLSI - Burgess Bar,Catering Supplies,61900
http://statistics.data.gov.uk/id/local-authority/12UE,Huntingdonshire District Council,200734,SOUTH LINCS FOOD SERVICE SOUTH LINCS FOOD SERVICE,28950,11/01/2020,263102,BURGESS HALL,06/02/2020,0,266.99,266.99,OLSI - Burgess Bar,Catering Supplies,61900
http://statistics.data.gov.uk/id/local-authority/12UE,Huntingdonshire District Council,200113,BOOKER CASH AND CARRY BOOKER CASH AND CARRY,28931,15/01/2020,2109896322,OL ST IVES,06/02/2020,0,335.23,335.23,OLSI - Burgess Bar,Catering Supplies,61900
http://statistics.data.gov.uk/id/local-authority/12UE,Huntingdonshire District Council,200113,BOOKER CASH AND CARRY BOOKER CASH AND CARRY,28931,15/01/2020,2109896322,OL ST IVES,06/02/2020,8.8,44.02,52.82,OLSI - Burgess Bar,Catering Supplies,61900
http://statistics.data.gov.uk/id/local-authority/12UE,Huntingdonshire District Council,200113,BOOKER CASH AND CARRY BOOKER CASH AND CARRY,30423,12/02/2020,2110117984,OL ST IVES,05/03/2020,43.3,216.48,259.78,OLSI - Burgess Bar,Catering Supplies,61900
http://statistics.data.gov.uk/id/local-authority/12UE,Huntingdonshire District Council,200113,BOOKER CASH AND CARRY BOOKER CASH AND CARRY,30423,12/02/2020,2110117984,OL ST IVES,05/03/2020,0,83.59,83.59,OLSI - Burgess Bar,Catering Supplies,61900
http://statistics.data.gov.uk/id/local-authority/12UE,Huntingdonshire District Council,200113,BOOKER CASH AND CARRY BOOKER CASH AND CARRY,29232,10/01/2020,2109859614,OL ST IVES,06/02/2020,26.35,131.76,158.11,OLSI - Burgess Bar,Catering Supplies,61900
http://statistics.data.gov.uk/id/local-authority/12UE,Huntingdonshire District Council,200113,BOOKER CASH AND CARRY BOOKER CASH AND CARRY,29232,10/01/2020,2109859614,OL ST IVES,06/02/2020,0,18.9,18.9,OLSI - Burgess Bar,Catering Supplies,61900
http://statistics.data.gov.uk/id/local-authority/12UE,Huntingdonshire District Council,200113,BOOKER CASH AND CARRY BOOKER CASH AND CARRY,29232,10/01/2020,2109859614,OL ST IVES,06/02/2020,36.69,183.46,220.15,OLSI - Burgess Bar,Catering Supplies,61900
http://statistics.data.gov.uk/id/local-authority/12UE,Huntingdonshire District Council,200113,BOOKER CASH AND CARRY BOOKER CASH AND CARRY,30416,12/01/2020,2109866051,OL ST IVES,20/02/2020,42.49,212.46,254.95,OLSI - Burgess Bar,Catering Supplies,61900
http://statistics.data.gov.uk/id/local-authority/12UE,Huntingdonshire District Council,200113,BOOKER CASH AND CARRY BOOKER CASH AND CARRY,30416,12/01/2020,2109866051,OL ST IVES,20/02/2020,13.41,67.03,80.44,OLSI - Burgess Bar,Catering Supplies,61900
http://statistics.data.gov.uk/id/local-authority/12UE,Huntingdonshire District Council,200723,SLUSH PUPPIE LTD SLUSH PUPPIE LTD,28715,09/01/2020,INVGB056193,OL ST IVES,06/02/2020,81.97,409.86,491.83,OLSI - Hospitality,Catering Supplies,61900
http://statistics.data.gov.uk/id/local-authority/12UE,Huntingdonshire District Council,200113,BOOKER CASH AND CARRY BOOKER CASH AND CARRY,28078,20/11/2019,2109474704,OL ST IVES,09/01/2020,0,8.74,8.74,OLSI - Hospitality,Catering Supplies,61900
http://statistics.data.gov.uk/id/local-authority/12UE,Huntingdonshire District Council,200113,BOOKER CASH AND CARRY BOOKER CASH AND CARRY,28078,20/11/2019,2109474704,OL ST IVES,09/01/2020,1.86,9.3,11.16,OLSI - Hospitality,Catering Supplies,61900
http://statistics.data.gov.uk/id/local-authority/12UE,Huntingdonshire District Council,200113,BOOKER CASH AND CARRY BOOKER CASH AND CARRY,28078,20/11/2019,2109474704,OL ST IVES,09/01/2020,56.37,281.84,338.21,OLSI - Hospitality,Catering Supplies,61900
http://statistics.data.gov.uk/id/local-authority/12UE,Huntingdonshire District Council,200723,SLUSH PUPPIE LTD SLUSH PUPPIE LTD,30871,19/02/2020,INVGB072035,OL ST IVES,12/03/2020,68.31,341.55,409.86,OLSI - Hospitality,Catering Supplies,61900
http://statistics.data.gov.uk/id/local-authority/12UE,Huntingdonshire District Council,200845,WESTMINSTER FOODSERVICE WESTMINSTER FOODSERVICE,31169,27/02/2020,6487,OL ST IVES,26/03/2020,0,150.87,150.87,OLSI - Hospitality,Catering Supplies,61900
http://statistics.data.gov.uk/id/local-authority/12UE,Huntingdonshire District Council,200845,WESTMINSTER FOODSERVICE WESTMINSTER FOODSERVICE,31169,27/02/2020,6487,OL ST IVES,26/03/2020,28.83,144.16,172.99,OLSI - Hospitality,Catering Supplies,61900
http://statistics.data.gov.uk/id/local-authority/12UE,Huntingdonshire District Council,200845,WESTMINSTER FOODSERVICE WESTMINSTER FOODSERVICE,31169,27/02/2020,6487,OL ST IVES,26/03/2020,6.65,33.24,39.89,OLSI - Hospitality,Catering Supplies,61900
http://statistics.data.gov.uk/id/local-authority/12UE,Huntingdonshire District Council,202087,ATHLETE NUTRITION LTD T/A AMSPORT UK,30275,13/02/2020,991270,OL HUNTINGDON,20/02/2020,22.7,113.51,136.21,OLSI - Hospitality,Catering Supplies,61900
http://statistics.data.gov.uk/id/local-authority/12UE,Huntingdonshire District Council,200845,WESTMINSTER FOODSERVICE WESTMINSTER FOODSERVICE,27276,05/12/2019,3091,OL ST IVES,02/01/2020,0,170.7,170.7,OLSI - Hospitality,Catering Supplies,61900
http://statistics.data.gov.uk/id/local-authority/12UE,Huntingdonshire District Council,200845,WESTMINSTER FOODSERVICE WESTMINSTER FOODSERVICE,27276,05/12/2019,3091,OL ST IVES,02/01/2020,24.85,124.27,149.12,OLSI - Hospitality,Catering Supplies,61900
http://statistics.data.gov.uk/id/local-authority/12UE,Huntingdonshire District Council,200845,WESTMINSTER FOODSERVICE WESTMINSTER FOODSERVICE,27276,05/12/2019,3091,OL ST IVES,02/01/2020,5.05,25.24,30.29,OLSI - Hospitality,Catering Supplies,61900
http://statistics.data.gov.uk/id/local-authority/12UE,Huntingdonshire District Council,200845,WESTMINSTER FOODSERVICE WESTMINSTER FOODSERVICE,27716,12/12/2019,3404,OL ST IVES,09/01/2020,0,169.64,169.64,OLSI - Hospitality,Catering Supplies,61900
http://statistics.data.gov.uk/id/local-authority/12UE,Huntingdonshire District Council,200845,WESTMINSTER FOODSERVICE WESTMINSTER FOODSERVICE,27716,12/12/2019,3404,OL ST IVES,09/01/2020,30.29,151.47,181.76,OLSI - Hospitality,Catering Supplies,61900
http://statistics.data.gov.uk/id/local-authority/12UE,Huntingdonshire District Council,200845,WESTMINSTER FOODSERVICE WESTMINSTER FOODSERVICE,27716,12/12/2019,3404,OL ST IVES,09/01/2020,3.32,16.62,19.94,OLSI - Hospitality,Catering Supplies,61900
http://statistics.data.gov.uk/id/local-authority/12UE,Huntingdonshire District Council,200845,WESTMINSTER FOODSERVICE WESTMINSTER FOODSERVICE,28037,19/12/2019,3736,OL ST IVES,16/01/2020,0,172.51,172.51,OLSI - Hospitality,Catering Supplies,61900
http://statistics.data.gov.uk/id/local-authority/12UE,Huntingdonshire District Council,200845,WESTMINSTER FOODSERVICE WESTMINSTER FOODSERVICE,28037,19/12/2019,3736,OL ST IVES,16/01/2020,5.05,25.24,30.29,OLSI - Hospitality,Catering Supplies,61900
http://statistics.data.gov.uk/id/local-authority/12UE,Huntingdonshire District Council,200845,WESTMINSTER FOODSERVICE WESTMINSTER FOODSERVICE,28037,19/12/2019,3736,OL ST IVES,16/01/2020,24.58,122.91,147.49,OLSI - Hospitality,Catering Supplies,61900
http://statistics.data.gov.uk/id/local-authority/12UE,Huntingdonshire District Council,200845,WESTMINSTER FOODSERVICE WESTMINSTER FOODSERVICE,30647,13/02/2020,5877,OL ST IVES,12/03/2020,0,115.04,115.04,OLSI - Hospitality,Catering Supplies,61900
http://statistics.data.gov.uk/id/local-authority/12UE,Huntingdonshire District Council,200845,WESTMINSTER FOODSERVICE WESTMINSTER FOODSERVICE,30647,13/02/2020,5877,OL ST IVES,12/03/2020,33.08,165.41,198.49,OLSI - Hospitality,Catering Supplies,61900
http://statistics.data.gov.uk/id/local-authority/12UE,Huntingdonshire District Council,200845,WESTMINSTER FOODSERVICE WESTMINSTER FOODSERVICE,30647,13/02/2020,5877,OL ST IVES,12/03/2020,5.05,25.24,30.29,OLSI - Hospitality,Catering Supplies,61900
http://statistics.data.gov.uk/id/local-authority/12UE,Huntingdonshire District Council,200509,LUCOZADE RIBENA SUNTORY LTD LUCOZADE RIBENA SUNTORY LTD,30648,13/02/2020,9000175085,OL ST IVES,12/03/2020,60.57,302.84,363.41,OLSI - Hospitality,Catering Supplies,61900
http://statistics.data.gov.uk/id/local-authority/12UE,Huntingdonshire District Council,200726,SNACKLINE DIRECT LTD SNACKLINE DIRECT LTD,29341,20/01/2020,114172,OL ST IVES,13/02/2020,33.86,169.28,203.14,OLSI - Hospitality,Catering Supplies,61900
http://statistics.data.gov.uk/id/local-authority/12UE,Huntingdonshire District Council,200726,SNACKLINE DIRECT LTD SNACKLINE DIRECT LTD,29341,20/01/2020,114172,OL ST IVES,13/02/2020,12.39,61.96,74.35,OLSI - Hospitality,Catering Supplies,61900
http://statistics.data.gov.uk/id/local-authority/12UE,Huntingdonshire District Council,200726,SNACKLINE DIRECT LTD SNACKLINE DIRECT LTD,29341,20/01/2020,114172,OL ST IVES,13/02/2020,10.69,53.46,64.15,OLSI - Hospitality,Catering Supplies,61900
http://statistics.data.gov.uk/id/local-authority/12UE,Huntingdonshire District Council,200726,SNACKLINE DIRECT LTD SNACKLINE DIRECT LTD,29341,20/01/2020,114172,OL ST IVES,13/02/2020,0,9.15,9.15,OLSI - Hospitality,Catering Supplies,61900
http://statistics.data.gov.uk/id/local-authority/12UE,Huntingdonshire District Council,200845,WESTMINSTER FOODSERVICE WESTMINSTER FOODSERVICE,30218,06/02/2020,5552,OLSI DRINKS,05/03/2020,0,125.38,125.38,OLSI - Hospitality,Catering Supplies,61900
http://statistics.data.gov.uk/id/local-authority/12UE,Huntingdonshire District Council,200845,WESTMINSTER FOODSERVICE WESTMINSTER FOODSERVICE,30218,06/02/2020,5552,OLSI DRINKS,05/03/2020,23.12,115.6,138.72,OLSI - Hospitality,Catering Supplies,61900
http://statistics.data.gov.uk/id/local-authority/12UE,Huntingdonshire District Council,200845,WESTMINSTER FOODSERVICE WESTMINSTER FOODSERVICE,30218,06/02/2020,5552,OLSI DRINKS,05/03/2020,6.65,33.24,39.89,OLSI - Hospitality,Catering Supplies,61900
http://statistics.data.gov.uk/id/local-authority/12UE,Huntingdonshire District Council,200845,WESTMINSTER FOODSERVICE WESTMINSTER FOODSERVICE,28714,09/01/2020,4217,OL ST IVES,06/02/2020,0,130.28,130.28,OLSI - Hospitality,Catering Supplies,61900
http://statistics.data.gov.uk/id/local-authority/12UE,Huntingdonshire District Council,200845,WESTMINSTER FOODSERVICE WESTMINSTER FOODSERVICE,28714,09/01/2020,4217,OL ST IVES,06/02/2020,21.93,109.65,131.58,OLSI - Hospitality,Catering Supplies,61900
http://statistics.data.gov.uk/id/local-authority/12UE,Huntingdonshire District Council,200845,WESTMINSTER FOODSERVICE WESTMINSTER FOODSERVICE,28714,09/01/2020,4217,OL ST IVES,06/02/2020,3.2,16,19.2,OLSI - Hospitality,Catering Supplies,61900
http://statistics.data.gov.uk/id/local-authority/12UE,Huntingdonshire District Council,200845,WESTMINSTER FOODSERVICE WESTMINSTER FOODSERVICE,29367,23/01/2020,4882,OL ST IVES,20/02/2020,0,146.44,146.44,OLSI - Hospitality,Catering Supplies,61900
http://statistics.data.gov.uk/id/local-authority/12UE,Huntingdonshire District Council,200845,WESTMINSTER FOODSERVICE WESTMINSTER FOODSERVICE,29367,23/01/2020,4882,OL ST IVES,20/02/2020,18.73,93.67,112.4,OLSI - Hospitality,Catering Supplies,61900
http://statistics.data.gov.uk/id/local-authority/12UE,Huntingdonshire District Council,200845,WESTMINSTER FOODSERVICE WESTMINSTER FOODSERVICE,29367,23/01/2020,4882,OL ST IVES,20/02/2020,6.65,33.24,39.89,OLSI - Hospitality,Catering Supplies,61900
http://statistics.data.gov.uk/id/local-authority/12UE,Huntingdonshire District Council,200845,WESTMINSTER FOODSERVICE WESTMINSTER FOODSERVICE,29723,30/01/2020,5214,OL ST IVES,27/02/2020,0,120.5,120.5,OLSI - Hospitality,Catering Supplies,61900
http://statistics.data.gov.uk/id/local-authority/12UE,Huntingdonshire District Council,200845,WESTMINSTER FOODSERVICE WESTMINSTER FOODSERVICE,29723,30/01/2020,5214,OL ST IVES,27/02/2020,25.91,129.54,155.45,OLSI - Hospitality,Catering Supplies,61900
http://statistics.data.gov.uk/id/local-authority/12UE,Huntingdonshire District Council,200845,WESTMINSTER FOODSERVICE WESTMINSTER FOODSERVICE,29723,30/01/2020,5214,OL ST IVES,27/02/2020,1.6,8,9.6,OLSI - Hospitality,Catering Supplies,61900
http://statistics.data.gov.uk/id/local-authority/12UE,Huntingdonshire District Council,200734,SOUTH LINCS FOOD SERVICE SOUTH LINCS FOOD SERVICE,27274,07/12/2019,252228,OL ST IVES,02/01/2020,0,252.3,252.3,OLSI - Hospitality,Catering Supplies,61900
http://statistics.data.gov.uk/id/local-authority/12UE,Huntingdonshire District Council,200734,SOUTH LINCS FOOD SERVICE SOUTH LINCS FOOD SERVICE,27274,07/12/2019,252228,OL ST IVES,02/01/2020,1.15,5.76,6.91,OLSI - Hospitality,Catering Supplies,61900
http://statistics.data.gov.uk/id/local-authority/12UE,Huntingdonshire District Council,200734,SOUTH LINCS FOOD SERVICE SOUTH LINCS FOOD SERVICE,27274,07/12/2019,252228,OL ST IVES,02/01/2020,0,10.04,10.04,OLSI - Hospitality,Catering Supplies,61900
http://statistics.data.gov.uk/id/local-authority/12UE,Huntingdonshire District Council,200726,SNACKLINE DIRECT LTD SNACKLINE DIRECT LTD,30877,10/02/2020,114992,OL ST IVES,05/03/2020,22.46,112.31,134.77,OLSI - Hospitality,Catering Supplies,61900
http://statistics.data.gov.uk/id/local-authority/12UE,Huntingdonshire District Council,200726,SNACKLINE DIRECT LTD SNACKLINE DIRECT LTD,30877,10/02/2020,114992,OL ST IVES,05/03/2020,0,9.15,9.15,OLSI - Hospitality,Catering Supplies,61900
http://statistics.data.gov.uk/id/local-authority/12UE,Huntingdonshire District Council,200726,SNACKLINE DIRECT LTD SNACKLINE DIRECT LTD,30877,10/02/2020,114992,OL ST IVES,05/03/2020,18.59,92.94,111.53,OLSI - Hospitality,Catering Supplies,61900
http://statistics.data.gov.uk/id/local-authority/12UE,Huntingdonshire District Council,200726,SNACKLINE DIRECT LTD SNACKLINE DIRECT LTD,30877,10/02/2020,114992,OL ST IVES,05/03/2020,10.58,52.9,63.48,OLSI - Hospitality,Catering Supplies,61900
http://statistics.data.gov.uk/id/local-authority/12UE,Huntingdonshire District Council,200726,SNACKLINE DIRECT LTD SNACKLINE DIRECT LTD,31465,02/03/2020,115743,OL ST IVES,26/03/2020,48.96,244.8,293.76,OLSI - Hospitality,Catering Supplies,61900
http://statistics.data.gov.uk/id/local-authority/12UE,Huntingdonshire District Council,200726,SNACKLINE DIRECT LTD SNACKLINE DIRECT LTD,31465,02/03/2020,115743,OL ST IVES,26/03/2020,0,13.49,13.49,OLSI - Hospitality,Catering Supplies,61900
http://statistics.data.gov.uk/id/local-authority/12UE,Huntingdonshire District Council,200471,LACONS LACONS,28929,10/01/2020,822518,OL ST IVES,06/02/2020,148.3,741.51,889.81,OLSIO - Hospitality,Catering Supplies,61900
http://statistics.data.gov.uk/id/local-authority/12UE,Huntingdonshire District Council,200471,LACONS LACONS,32133,28/02/2020,829066,OL ST IVES,26/03/2020,104.1,520.48,624.58,OLSIO - Hospitality,Catering Supplies,61900
http://statistics.data.gov.uk/id/local-authority/12UE,Huntingdonshire District Council,200471,LACONS LACONS,30211,07/02/2020,826272,OLSI GROCERY,05/03/2020,91.53,457.65,549.18,OLSIO - Hospitality,Catering Supplies,61900
http://statistics.data.gov.uk/id/local-authority/12UE,Huntingdonshire District Council,200471,LACONS LACONS,29521,24/01/2020,824350,OL ST IVES,20/02/2020,87.2,435.98,523.18,OLSIO - Hospitality,Catering Supplies,61900
http://statistics.data.gov.uk/id/local-authority/12UE,Huntingdonshire District Council,200113,BOOKER CASH AND CARRY BOOKER CASH AND CARRY,28078,20/11/2019,2109474704,OL ST IVES,09/01/2020,4,20,24,OLSIO - Hospitality,Catering Supplies,61900
http://statistics.data.gov.uk/id/local-authority/12UE,Huntingdonshire District Council,200471,LACONS LACONS,30873,14/02/2020,827185,OL ST IVES,12/03/2020,58.55,292.77,351.32,OLSIO - Hospitality,Catering Supplies,61900
http://statistics.data.gov.uk/id/local-authority/12UE,Huntingdonshire District Council,200734,SOUTH LINCS FOOD SERVICE SOUTH LINCS FOOD SERVICE,28926,11/01/2020,263104,OL ST IVES,06/02/2020,0,260.08,260.08,OLSIO - Hospitality,Catering Supplies,61900
http://statistics.data.gov.uk/id/local-authority/12UE,Huntingdonshire District Council,200726,SNACKLINE DIRECT LTD SNACKLINE DIRECT LTD,30656,17/02/2020,115277,OL ST NEOTS,12/03/2020,92.29,461.45,553.74,OLSN - Hospitality,Catering Supplies,61900
http://statistics.data.gov.uk/id/local-authority/12UE,Huntingdonshire District Council,200726,SNACKLINE DIRECT LTD SNACKLINE DIRECT LTD,30656,17/02/2020,115277,OL ST NEOTS,12/03/2020,0,36.97,36.97,OLSN - Hospitality,Catering Supplies,61900
http://statistics.data.gov.uk/id/local-authority/12UE,Huntingdonshire District Council,200726,SNACKLINE DIRECT LTD SNACKLINE DIRECT LTD,28711,13/01/2020,113892,OL ST NEOTS,06/02/2020,0,36.97,36.97,OLSN - Hospitality,Catering Supplies,61900
http://statistics.data.gov.uk/id/local-authority/12UE,Huntingdonshire District Council,200726,SNACKLINE DIRECT LTD SNACKLINE DIRECT LTD,28711,13/01/2020,113892,OL ST NEOTS,06/02/2020,89.01,445.05,534.06,OLSN - Hospitality,Catering Supplies,61900
http://statistics.data.gov.uk/id/local-authority/12UE,Huntingdonshire District Council,200113,BOOKER CASH AND CARRY BOOKER CASH AND CARRY,28078,20/11/2019,2109474704,OL ST IVES,09/01/2020,0,7.89,7.89,OLSN - Hospitality,Catering Supplies,61900
http://statistics.data.gov.uk/id/local-authority/12UE,Huntingdonshire District Council,200113,BOOKER CASH AND CARRY BOOKER CASH AND CARRY,28078,20/11/2019,2109474704,OL ST IVES,09/01/2020,4.93,24.63,29.56,OLSN - Hospitality,Catering Supplies,61900
http://statistics.data.gov.uk/id/local-authority/12UE,Huntingdonshire District Council,202087,ATHLETE NUTRITION LTD T/A AMSPORT UK,30275,13/02/2020,991270,OL HUNTINGDON,20/02/2020,22.7,113.52,136.22,OLSN - Hospitality,Catering Supplies,61900
http://statistics.data.gov.uk/id/local-authority/12UE,Huntingdonshire District Council,200509,LUCOZADE RIBENA SUNTORY LTD LUCOZADE RIBENA SUNTORY LTD,28934,15/01/2020,90000169948,OL ST IVES,06/02/2020,58.3,291.49,349.79,OLSN - Hospitality,Catering Supplies,61900
http://statistics.data.gov.uk/id/local-authority/12UE,Huntingdonshire District Council,200723,SLUSH PUPPIE LTD SLUSH PUPPIE LTD,30654,11/02/2020,INVGB068766,OL ST NEOTS,05/03/2020,54.65,273.24,327.89,OLSN - Hospitality,Catering Supplies,61900
http://statistics.data.gov.uk/id/local-authority/12UE,Huntingdonshire District Council,200462,KING BROS KING BROS,28864,09/01/2020,133619,COUNTRY PARK,06/02/2020,13.85,69.25,83.1,Countryside Service Management,Catering Supplies,61900
http://statistics.data.gov.uk/id/local-authority/12UE,Huntingdonshire District Council,200113,BOOKER CASH AND CARRY BOOKER CASH AND CARRY,30701,30/12/2019,2109780917,COUNTRY PARK,27/02/2020,101.42,507.09,608.51,Hinchingbrooke Park Cafe,Catering Supplies,61900
http://statistics.data.gov.uk/id/local-authority/12UE,Huntingdonshire District Council,200113,BOOKER CASH AND CARRY BOOKER CASH AND CARRY,30701,30/12/2019,2109780917,COUNTRY PARK,27/02/2020,0,83.96,83.96,Hinchingbrooke Park Cafe,Catering Supplies,61900
http://statistics.data.gov.uk/id/local-authority/12UE,Huntingdonshire District Council,200462,KING BROS KING BROS,28367,02/01/2020,133199,COUNTRY PARK,30/01/2020,0,339.06,339.06,Hinchingbrooke Park Cafe,Catering Supplies,61900
http://statistics.data.gov.uk/id/local-authority/12UE,Huntingdonshire District Council,200462,KING BROS KING BROS,28367,02/01/2020,133199,COUNTRY PARK,30/01/2020,39.51,197.54,237.05,Hinchingbrooke Park Cafe,Catering Supplies,61900
http://statistics.data.gov.uk/id/local-authority/12UE,Huntingdonshire District Council,200113,BOOKER CASH AND CARRY BOOKER CASH AND CARRY,28328,29/12/2019,2109771173,COUNTRY PARK,23/01/2020,0,28.13,28.13,Hinchingbrooke Park Cafe,Catering Supplies,61900
http://statistics.data.gov.uk/id/local-authority/12UE,Huntingdonshire District Council,200113,BOOKER CASH AND CARRY BOOKER CASH AND CARRY,28328,29/12/2019,2109771173,COUNTRY PARK,23/01/2020,67.08,335.38,402.46,Hinchingbrooke Park Cafe,Catering Supplies,61900
http://statistics.data.gov.uk/id/local-authority/12UE,Huntingdonshire District Council,200462,KING BROS KING BROS,28255,19/12/2019,132070,COUNTRY PARK,16/01/2020,0,337.46,337.46,Hinchingbrooke Park Cafe,Catering Supplies,61900
http://statistics.data.gov.uk/id/local-authority/12UE,Huntingdonshire District Council,200462,KING BROS KING BROS,28255,19/12/2019,132070,COUNTRY PARK,16/01/2020,17.53,87.67,105.2,Hinchingbrooke Park Cafe,Catering Supplies,61900
http://statistics.data.gov.uk/id/local-authority/12UE,Huntingdonshire District Council,200462,KING BROS KING BROS,30705,17/02/2020,138423,COUNTRY PARK,12/03/2020,13.04,65.21,78.25,Hinchingbrooke Park Cafe,Catering Supplies,61900
http://statistics.data.gov.uk/id/local-authority/12UE,Huntingdonshire District Council,200462,KING BROS KING BROS,30705,17/02/2020,138423,COUNTRY PARK,12/03/2020,0,274.28,274.28,Hinchingbrooke Park Cafe,Catering Supplies,61900
http://statistics.data.gov.uk/id/local-authority/12UE,Huntingdonshire District Council,200462,KING BROS KING BROS,28258,23/12/2019,132619,COUNTRY PARK,16/01/2020,0,242.02,242.02,Hinchingbrooke Park Cafe,Catering Supplies,61900
http://statistics.data.gov.uk/id/local-authority/12UE,Huntingdonshire District Council,200462,KING BROS KING BROS,28258,23/12/2019,132619,COUNTRY PARK,16/01/2020,6.05,30.27,36.32,Hinchingbrooke Park Cafe,Catering Supplies,61900
http://statistics.data.gov.uk/id/local-authority/12UE,Huntingdonshire District Council,200462,KING BROS KING BROS,29916,06/02/2020,136875,COUNTRY PARK,05/03/2020,0,258.61,258.61,Hinchingbrooke Park Cafe,Catering Supplies,61900
http://statistics.data.gov.uk/id/local-authority/12UE,Huntingdonshire District Council,200462,KING BROS KING BROS,28864,09/01/2020,133619,COUNTRY PARK,06/02/2020,0,206.38,206.38,Hinchingbrooke Park Cafe,Catering Supplies,61900
http://statistics.data.gov.uk/id/local-authority/12UE,Huntingdonshire District Council,200462,KING BROS KING BROS,30800,24/02/2020,139148,COUNTRY PARK,19/03/2020,19.19,95.96,115.15,Hinchingbrooke Park Cafe,Catering Supplies,61900
http://statistics.data.gov.uk/id/local-authority/12UE,Huntingdonshire District Council,200462,KING BROS KING BROS,30800,24/02/2020,139148,COUNTRY PARK,19/03/2020,0,155.98,155.98,Hinchingbrooke Park Cafe,Catering Supplies,61900
http://statistics.data.gov.uk/id/local-authority/12UE,Huntingdonshire District Council,200113,BOOKER CASH AND CARRY BOOKER CASH AND CARRY,30596,04/01/2020,2109811649,COUNTRY PARK,20/02/2020,-74.76,-373.79,-448.55,Hinchingbrooke Park Cafe,Catering Supplies,61900
http://statistics.data.gov.uk/id/local-authority/12UE,Huntingdonshire District Council,201495,PLA EVENTS LTD,29986,20/01/2020,200120,CATERING,13/02/2020,0,984,984,Domestic Waste Collection,Catering Supplies,61900
http://statistics.data.gov.uk/id/local-authority/12UE,Huntingdonshire District Council,200130,BROOKES BROOKES,31352,26/02/2020,102136,CATERING,12/03/2020,0,420.7,420.7,Pathfinder House,Catering Supplies,61900
http://statistics.data.gov.uk/id/local-authority/12UE,Huntingdonshire District Council,200130,BROOKES BROOKES,27972,20/12/2019,102131,CATERING 09-20/12/19,02/01/2020,0,384.7,384.7,Pathfinder House,Catering Supplies,61900
http://statistics.data.gov.uk/id/local-authority/12UE,Huntingdonshire District Council,200129,BRITISH TELECOMMUNICATIONS PLC BRITISH TELECOMMUNICATIONS PLC,28844,29/12/2019,I001QB,BROOK STREET CAR PARK,23/01/2020,215.53,1077.65,1293.18,Cctv - Wireless,Cctv Cameras,69319
http://statistics.data.gov.uk/id/local-authority/12UE,Huntingdonshire District Council,200119,BRENNTAG UK LTD BRENNTAG UK LTD,29995,04/02/2020,38SI 3910194,CHEMICALS,27/02/2020,101.53,507.66,609.19,OLH - Site & Centre Management,Chemicals,64000
http://statistics.data.gov.uk/id/local-authority/12UE,Huntingdonshire District Council,200119,BRENNTAG UK LTD BRENNTAG UK LTD,27733,18/12/2019,38SI 3907927,OL RAMSEY,09/01/2020,136.27,681.35,817.62,OLR - Swimming,Chemicals,64000
http://statistics.data.gov.uk/id/local-authority/12UE,Huntingdonshire District Council,200488,LEISURETEQ LEISURETEQ,28219,02/01/2020,84679,OL ST IVES,30/01/2020,24,120,144,OLSI - Site & Centre Management,Chemicals,64000
http://statistics.data.gov.uk/id/local-authority/12UE,Huntingdonshire District Council,200488,LEISURETEQ LEISURETEQ,28219,02/01/2020,84679,OL ST IVES,30/01/2020,24,120,144,OLSI - Site & Centre Management,Chemicals,64000
http://statistics.data.gov.uk/id/local-authority/12UE,Huntingdonshire District Council,200488,LEISURETEQ LEISURETEQ,28219,02/01/2020,84679,OL ST IVES,30/01/2020,24,120,144,OLSI - Site & Centre Management,Chemicals,64000
http://statistics.data.gov.uk/id/local-authority/12UE,Huntingdonshire District Council,200488,LEISURETEQ LEISURETEQ,28219,02/01/2020,84679,OL ST IVES,30/01/2020,24,120,144,OLSI - Site & Centre Management,Chemicals,64000
http://statistics.data.gov.uk/id/local-authority/12UE,Huntingdonshire District Council,200488,LEISURETEQ LEISURETEQ,29941,06/02/2020,85461,OL ST IVES,05/03/2020,24,120,144,OLSI - Site & Centre Management,Chemicals,64000
http://statistics.data.gov.uk/id/local-authority/12UE,Huntingdonshire District Council,200488,LEISURETEQ LEISURETEQ,29941,06/02/2020,85461,OL ST IVES,05/03/2020,24,120,144,OLSI - Site & Centre Management,Chemicals,64000
http://statistics.data.gov.uk/id/local-authority/12UE,Huntingdonshire District Council,200488,LEISURETEQ LEISURETEQ,29941,06/02/2020,85461,OL ST IVES,05/03/2020,24,120,144,OLSI - Site & Centre Management,Chemicals,64000
http://statistics.data.gov.uk/id/local-authority/12UE,Huntingdonshire District Council,200119,BRENNTAG UK LTD BRENNTAG UK LTD,30214,04/02/2020,38SI3910193,OLSI,27/02/2020,112.47,562.36,674.83,OLSI - Swimming,Chemicals,64000
http://statistics.data.gov.uk/id/local-authority/12UE,Huntingdonshire District Council,200119,BRENNTAG UK LTD BRENNTAG UK LTD,29714,30/01/2020,38SI 3909950,OL ST NEOTS,27/02/2020,175.01,875.05,1050.06,OLSN - Swimming,Chemicals,64000
http://statistics.data.gov.uk/id/local-authority/12UE,Huntingdonshire District Council,200119,BRENNTAG UK LTD BRENNTAG UK LTD,27822,17/12/2019,38SI 3907855,OL ST NEOTS,09/01/2020,162.29,811.47,973.76,OLSN - Swimming,Chemicals,64000
http://statistics.data.gov.uk/id/local-authority/12UE,Huntingdonshire District Council,200119,BRENNTAG UK LTD BRENNTAG UK LTD,31140,28/02/2020,38SI 3911825,OL ST NEOTS,26/03/2020,148.96,744.8,893.76,OLSN - Swimming,Chemicals,64000
http://statistics.data.gov.uk/id/local-authority/12UE,Huntingdonshire District Council,200685,RIGBY TAYLOR LTD RIGBY TAYLOR LTD,29634,24/01/2020,RSIN0326244,CHIKARA/TRUSTEE AMENITY/IMPACT XP,20/02/2020,70.8,354,424.8,Grounds Maintenance,Chemicals,64000
http://statistics.data.gov.uk/id/local-authority/12UE,Huntingdonshire District Council,200685,RIGBY TAYLOR LTD RIGBY TAYLOR LTD,29634,24/01/2020,RSIN0326244,CHIKARA/TRUSTEE AMENITY/IMPACT XP,20/02/2020,23.6,118,141.6,Grounds Maintenance,Chemicals,64000
http://statistics.data.gov.uk/id/local-authority/12UE,Huntingdonshire District Council,200685,RIGBY TAYLOR LTD RIGBY TAYLOR LTD,29634,24/01/2020,RSIN0326244,CHIKARA/TRUSTEE AMENITY/IMPACT XP,20/02/2020,296,1480,1776,Grounds Maintenance,Chemicals,64000
http://statistics.data.gov.uk/id/local-authority/12UE,Huntingdonshire District Council,201113,GRANGE EUROPE LTD,31288,27/02/2020,22082,OL ST IVES,26/03/2020,30,150,180,OLH - Impressions,Cleaning Materials,61300
http://statistics.data.gov.uk/id/local-authority/12UE,Huntingdonshire District Council,200514,LYRECO UK LTD LYRECO UK LTD,29996,31/01/2020,6910856534,OL HUNTINGDON,27/02/2020,134.61,673.03,807.64,OLH - Site & Centre Management,Cleaning Materials,61300
http://statistics.data.gov.uk/id/local-authority/12UE,Huntingdonshire District Council,201113,GRANGE EUROPE LTD,31288,27/02/2020,22082,OL ST IVES,26/03/2020,30,150,180,OLR - Impressions,Cleaning Materials,61300
http://statistics.data.gov.uk/id/local-authority/12UE,Huntingdonshire District Council,200113,BOOKER CASH AND CARRY BOOKER CASH AND CARRY,27420,11/12/2019,2109651651,OL ST IVES,02/01/2020,3.03,15.15,18.18,OLSI - Burgess Bar,Cleaning Materials,61300
http://statistics.data.gov.uk/id/local-authority/12UE,Huntingdonshire District Council,200113,BOOKER CASH AND CARRY BOOKER CASH AND CARRY,27931,18/12/2019,2109709042,OL ST IVES,09/01/2020,1.1,5.49,6.59,OLSI - Burgess Bar,Cleaning Materials,61300
http://statistics.data.gov.uk/id/local-authority/12UE,Huntingdonshire District Council,200113,BOOKER CASH AND CARRY BOOKER CASH AND CARRY,30323,05/02/2020,2110060110,OL ST IVES,27/02/2020,7.49,37.45,44.94,OLSI - Burgess Bar,Cleaning Materials,61300
http://statistics.data.gov.uk/id/local-authority/12UE,Huntingdonshire District Council,200282,ESPO ESPO,31755,03/02/2020,5560487,CLEANING PRODUCTS,19/03/2020,34.43,172.13,206.56,OLSI - Burgess Hall,Cleaning Materials,61300
http://statistics.data.gov.uk/id/local-authority/12UE,Huntingdonshire District Council,201113,GRANGE EUROPE LTD,31288,27/02/2020,22082,OL ST IVES,26/03/2020,40,200,240,OLSI - Impressions,Cleaning Materials,61300
http://statistics.data.gov.uk/id/local-authority/12UE,Huntingdonshire District Council,200514,LYRECO UK LTD LYRECO UK LTD,31258,29/02/2020,6910863999,OL ST IVES,26/03/2020,119.6,598.01,717.61,OLSI - Site & Centre Management,Cleaning Materials,61300
http://statistics.data.gov.uk/id/local-authority/12UE,Huntingdonshire District Council,200615,PHS GROUP LTD PHS GROUP LTD,27453,14/12/2019,67168165,OL ST IVES,09/01/2020,100.68,503.4,604.08,OLSI - Site & Centre Management,Cleaning Materials,61300
http://statistics.data.gov.uk/id/local-authority/12UE,Huntingdonshire District Council,200615,PHS GROUP LTD PHS GROUP LTD,28796,15/01/2020,67225031,OL ST IVES,06/02/2020,80.88,404.42,485.3,OLSI - Site & Centre Management,Cleaning Materials,61300
http://statistics.data.gov.uk/id/local-authority/12UE,Huntingdonshire District Council,200113,BOOKER CASH AND CARRY BOOKER CASH AND CARRY,28078,20/11/2019,2109474704,OL ST IVES,09/01/2020,0.66,3.29,3.95,OLSN - Hospitality,Cleaning Materials,61300
http://statistics.data.gov.uk/id/local-authority/12UE,Huntingdonshire District Council,200615,PHS GROUP LTD PHS GROUP LTD,27190,11/12/2019,67163106,OL ST NEOTS,02/01/2020,133.8,668.99,802.79,OLSN - Site & Centre Management,Cleaning Materials,61300
http://statistics.data.gov.uk/id/local-authority/12UE,Huntingdonshire District Council,200462,KING BROS KING BROS,28864,09/01/2020,133619,COUNTRY PARK,06/02/2020,0.86,4.28,5.14,Countryside Service Management,Cleaning Materials,61300
http://statistics.data.gov.uk/id/local-authority/12UE,Huntingdonshire District Council,200462,KING BROS KING BROS,29916,06/02/2020,136875,COUNTRY PARK,05/03/2020,4.32,21.6,25.92,Hinchingbrooke Park Cafe,Cleaning Materials,61300
http://statistics.data.gov.uk/id/local-authority/12UE,Huntingdonshire District Council,200526,MASKEARAID LTD MASKEARAID LTD,29994,10/02/2020,70305,CLEANING PRODUCTS,05/03/2020,103.32,516.6,619.92,Pathfinder House,Cleaning Materials,61300
http://statistics.data.gov.uk/id/local-authority/12UE,Huntingdonshire District Council,200526,MASKEARAID LTD MASKEARAID LTD,29994,10/02/2020,70305,CLEANING PRODUCTS,05/03/2020,51.72,258.6,310.32,Pathfinder House,Cleaning Materials,61300
http://statistics.data.gov.uk/id/local-authority/12UE,Huntingdonshire District Council,200526,MASKEARAID LTD MASKEARAID LTD,29994,10/02/2020,70305,CLEANING PRODUCTS,05/03/2020,33,165,198,Pathfinder House,Cleaning Materials,61300
http://statistics.data.gov.uk/id/local-authority/12UE,Huntingdonshire District Council,200526,MASKEARAID LTD MASKEARAID LTD,29994,10/02/2020,70305,CLEANING PRODUCTS,05/03/2020,29,145,174,Pathfinder House,Cleaning Materials,61300
http://statistics.data.gov.uk/id/local-authority/12UE,Huntingdonshire District Council,200526,MASKEARAID LTD MASKEARAID LTD,29994,10/02/2020,70305,CLEANING PRODUCTS,05/03/2020,5.24,26.2,31.44,Pathfinder House,Cleaning Materials,61300
http://statistics.data.gov.uk/id/local-authority/12UE,Huntingdonshire District Council,200526,MASKEARAID LTD MASKEARAID LTD,29994,10/02/2020,70305,CLEANING PRODUCTS,05/03/2020,1.49,7.46,8.95,Pathfinder House,Cleaning Materials,61300
http://statistics.data.gov.uk/id/local-authority/12UE,Huntingdonshire District Council,200526,MASKEARAID LTD MASKEARAID LTD,29994,10/02/2020,70305,CLEANING PRODUCTS,05/03/2020,1.49,7.46,8.95,Pathfinder House,Cleaning Materials,61300
http://statistics.data.gov.uk/id/local-authority/12UE,Huntingdonshire District Council,200526,MASKEARAID LTD MASKEARAID LTD,29994,10/02/2020,70305,CLEANING PRODUCTS,05/03/2020,5.1,25.5,30.6,Pathfinder House,Cleaning Materials,61300
http://statistics.data.gov.uk/id/local-authority/12UE,Huntingdonshire District Council,200526,MASKEARAID LTD MASKEARAID LTD,29994,10/02/2020,70305,CLEANING PRODUCTS,05/03/2020,4.18,20.89,25.07,Pathfinder House,Cleaning Materials,61300
http://statistics.data.gov.uk/id/local-authority/12UE,Huntingdonshire District Council,200526,MASKEARAID LTD MASKEARAID LTD,29994,10/02/2020,70305,CLEANING PRODUCTS,05/03/2020,5.62,28.12,33.74,Pathfinder House,Cleaning Materials,61300
http://statistics.data.gov.uk/id/local-authority/12UE,Huntingdonshire District Council,200526,MASKEARAID LTD MASKEARAID LTD,28238,06/01/2020,69965,CONSUMABLES,30/01/2020,68.88,344.4,413.28,Pathfinder House,Cleaning Materials,61300
http://statistics.data.gov.uk/id/local-authority/12UE,Huntingdonshire District Council,200526,MASKEARAID LTD MASKEARAID LTD,28238,06/01/2020,69965,CONSUMABLES,30/01/2020,51.72,258.6,310.32,Pathfinder House,Cleaning Materials,61300
http://statistics.data.gov.uk/id/local-authority/12UE,Huntingdonshire District Council,200526,MASKEARAID LTD MASKEARAID LTD,28238,06/01/2020,69965,CONSUMABLES,30/01/2020,5.56,27.8,33.36,Pathfinder House,Cleaning Materials,61300
http://statistics.data.gov.uk/id/local-authority/12UE,Huntingdonshire District Council,200526,MASKEARAID LTD MASKEARAID LTD,28238,06/01/2020,69965,CONSUMABLES,30/01/2020,33,165,198,Pathfinder House,Cleaning Materials,61300
http://statistics.data.gov.uk/id/local-authority/12UE,Huntingdonshire District Council,200526,MASKEARAID LTD MASKEARAID LTD,28238,06/01/2020,69965,CONSUMABLES,30/01/2020,8,40,48,Pathfinder House,Cleaning Materials,61300
http://statistics.data.gov.uk/id/local-authority/12UE,Huntingdonshire District Council,200526,MASKEARAID LTD MASKEARAID LTD,28238,06/01/2020,69965,CONSUMABLES,30/01/2020,11.44,57.2,68.64,Pathfinder House,Cleaning Materials,61300
http://statistics.data.gov.uk/id/local-authority/12UE,Huntingdonshire District Council,200526,MASKEARAID LTD MASKEARAID LTD,28238,06/01/2020,69965,CONSUMABLES,30/01/2020,3.62,18.12,21.74,Pathfinder House,Cleaning Materials,61300
http://statistics.data.gov.uk/id/local-authority/12UE,Huntingdonshire District Council,200344,GLOBAL RADIO SERVICES LTD GLOBAL RADIO SERVICES LTD,28149,31/12/2019,1217413,OL HUNTINGDON,23/01/2020,940,4700,5640,One Leisure Support Team,"Clothes, Uniform And Laundry",62000
http://statistics.data.gov.uk/id/local-authority/12UE,Huntingdonshire District Council,200058,ARCHANT HERTS AND CAMBS ARCHANT HERTS AND CAMBS,29861,31/01/2020,83076819,HUNTS POST 29/01/20,27/02/2020,400,2000,2400,One Leisure Support Team,"Clothes, Uniform And Laundry",62000
http://statistics.data.gov.uk/id/local-authority/12UE,Huntingdonshire District Council,200058,ARCHANT HERTS AND CAMBS ARCHANT HERTS AND CAMBS,29872,04/01/2020,83070037,BURGESS EVENTS,13/02/2020,69,345,414,One Leisure Support Team,"Clothes, Uniform And Laundry",62000
http://statistics.data.gov.uk/id/local-authority/12UE,Huntingdonshire District Council,200058,ARCHANT HERTS AND CAMBS ARCHANT HERTS AND CAMBS,29872,04/01/2020,83070037,BURGESS EVENTS,13/02/2020,29,145,174,One Leisure Support Team,"Clothes, Uniform And Laundry",62000
http://statistics.data.gov.uk/id/local-authority/12UE,Huntingdonshire District Council,200058,ARCHANT HERTS AND CAMBS ARCHANT HERTS AND CAMBS,29872,04/01/2020,83070037,BURGESS EVENTS,13/02/2020,377.51,1887.55,2265.06,One Leisure Support Team,"Clothes, Uniform And Laundry",62000
http://statistics.data.gov.uk/id/local-authority/12UE,Huntingdonshire District Council,200103,BIGPRINTING BIGPRINTING,30526,11/02/2020,1712945,OL ST IVES,05/03/2020,463,2315,2778,One Leisure Support Team,"Clothes, Uniform And Laundry",62000
http://statistics.data.gov.uk/id/local-authority/12UE,Huntingdonshire District Council,200058,ARCHANT HERTS AND CAMBS ARCHANT HERTS AND CAMBS,30527,08/02/2020,83079410,BURGESS EVENTS,05/03/2020,330.01,1650.02,1980.03,One Leisure Support Team,"Clothes, Uniform And Laundry",62000
http://statistics.data.gov.uk/id/local-authority/12UE,Huntingdonshire District Council,200058,ARCHANT HERTS AND CAMBS ARCHANT HERTS AND CAMBS,30527,08/02/2020,83079410,BURGESS EVENTS,05/03/2020,69,345,414,One Leisure Support Team,"Clothes, Uniform And Laundry",62000
http://statistics.data.gov.uk/id/local-authority/12UE,Huntingdonshire District Council,200344,GLOBAL RADIO SERVICES LTD GLOBAL RADIO SERVICES LTD,28148,31/12/2019,1217412,OL HUNTINGDON,23/01/2020,352.66,1763.31,2115.97,One Leisure Support Team,"Clothes, Uniform And Laundry",62000
http://statistics.data.gov.uk/id/local-authority/12UE,Huntingdonshire District Council,200344,GLOBAL RADIO SERVICES LTD GLOBAL RADIO SERVICES LTD,30524,31/01/2020,1220972,OL HUNTINGDON,27/02/2020,336.65,1683.23,2019.88,One Leisure Support Team,"Clothes, Uniform And Laundry",62000
http://statistics.data.gov.uk/id/local-authority/12UE,Huntingdonshire District Council,200058,ARCHANT HERTS AND CAMBS ARCHANT HERTS AND CAMBS,27196,07/12/2019,83062779,BURGESS HALL,02/01/2020,330.01,1650.04,1980.05,One Leisure Support Team,"Clothes, Uniform And Laundry",62000
http://statistics.data.gov.uk/id/local-authority/12UE,Huntingdonshire District Council,200198,CLANPRESS KING'S LYNN LTD CLANPRESS KING'S LYNN LTD,28805,13/12/2019,44603,PRINTING,23/01/2020,325.99,1629.93,1955.92,One Leisure Support Team,"Clothes, Uniform And Laundry",62000
http://statistics.data.gov.uk/id/local-authority/12UE,Huntingdonshire District Council,200344,GLOBAL RADIO SERVICES LTD GLOBAL RADIO SERVICES LTD,30523,31/01/2020,1220973,OL HUNTINGDON,27/02/2020,302.2,1511,1813.2,One Leisure Support Team,"Clothes, Uniform And Laundry",62000
http://statistics.data.gov.uk/id/local-authority/12UE,Huntingdonshire District Council,200927,MEDIA IMAGING SOLUTIONS,30525,17/02/2020,INV000833,PHOTOGRAPHY SERVICES,27/02/2020,140,700,840,One Leisure Support Team,"Clothes, Uniform And Laundry",62000
http://statistics.data.gov.uk/id/local-authority/12UE,Huntingdonshire District Council,200344,GLOBAL RADIO SERVICES LTD GLOBAL RADIO SERVICES LTD,28338,31/12/2019,1217411,OL HUNTINGDON,23/01/2020,114.92,574.62,689.54,One Leisure Support Team,"Clothes, Uniform And Laundry",62000
http://statistics.data.gov.uk/id/local-authority/12UE,Huntingdonshire District Council,200198,CLANPRESS KING'S LYNN LTD CLANPRESS KING'S LYNN LTD,30982,27/02/2020,44877,LEAFLETS,26/03/2020,0,368,368,One Leisure Support Team,"Clothes, Uniform And Laundry",62000
http://statistics.data.gov.uk/id/local-authority/12UE,Huntingdonshire District Council,200198,CLANPRESS KING'S LYNN LTD CLANPRESS KING'S LYNN LTD,30982,27/02/2020,44877,LEAFLETS,26/03/2020,0,196,196,One Leisure Support Team,"Clothes, Uniform And Laundry",62000
http://statistics.data.gov.uk/id/local-authority/12UE,Huntingdonshire District Council,201932,PROFILE DIGITAL AGENCY LTD,30503,17/01/2020,INV-2660,VIDEO,20/02/2020,100,500,600,One Leisure Support Team,"Clothes, Uniform And Laundry",62000
http://statistics.data.gov.uk/id/local-authority/12UE,Huntingdonshire District Council,200344,GLOBAL RADIO SERVICES LTD GLOBAL RADIO SERVICES LTD,28262,31/12/2019,1217414,OL HUNTINGDON,23/01/2020,85.4,427,512.4,One Leisure Support Team,"Clothes, Uniform And Laundry",62000
http://statistics.data.gov.uk/id/local-authority/12UE,Huntingdonshire District Council,200344,GLOBAL RADIO SERVICES LTD GLOBAL RADIO SERVICES LTD,29860,31/12/2019,1217415,OL HUNTINGDON,13/02/2020,85.4,427,512.4,One Leisure Support Team,"Clothes, Uniform And Laundry",62000
http://statistics.data.gov.uk/id/local-authority/12UE,Huntingdonshire District Council,200198,CLANPRESS KING'S LYNN LTD CLANPRESS KING'S LYNN LTD,28807,23/12/2019,44647,SWIMMING TIMETABLES,20/02/2020,0,320,320,One Leisure Support Team,"Clothes, Uniform And Laundry",62000
http://statistics.data.gov.uk/id/local-authority/12UE,Huntingdonshire District Council,200198,CLANPRESS KING'S LYNN LTD CLANPRESS KING'S LYNN LTD,28807,23/12/2019,44647,SWIMMING TIMETABLES,20/02/2020,15.6,78,93.6,One Leisure Support Team,"Clothes, Uniform And Laundry",62000
http://statistics.data.gov.uk/id/local-authority/12UE,Huntingdonshire District Council,200775,TERM TIMES TERM TIMES,31290,01/10/2019,3241/ONE,OL ST IVES,12/03/2020,74,370,444,One Leisure Support Team,"Clothes, Uniform And Laundry",62000
http://statistics.data.gov.uk/id/local-authority/12UE,Huntingdonshire District Council,202035,THE FENS MAGAZINE,28751,23/12/2019,INV-1923,ADVERTISING,16/01/2020,72,360,432,One Leisure Support Team,"Clothes, Uniform And Laundry",62000
http://statistics.data.gov.uk/id/local-authority/12UE,Huntingdonshire District Council,202035,THE FENS MAGAZINE,29873,24/01/2020,INV-2032,ADVERTISING,13/02/2020,72,360,432,One Leisure Support Team,"Clothes, Uniform And Laundry",62000
http://statistics.data.gov.uk/id/local-authority/12UE,Huntingdonshire District Council,200927,MEDIA IMAGING SOLUTIONS,28261,20/12/2019,INV000824,PHOTOGRAPHY SERVICES,09/01/2020,70,350,420,One Leisure Support Team,"Clothes, Uniform And Laundry",62000
http://statistics.data.gov.uk/id/local-authority/12UE,Huntingdonshire District Council,200198,CLANPRESS KING'S LYNN LTD CLANPRESS KING'S LYNN LTD,30717,22/01/2020,44734,ONE LEISURE POSTERS,27/02/2020,66,330,396,One Leisure Support Team,"Clothes, Uniform And Laundry",62000
http://statistics.data.gov.uk/id/local-authority/12UE,Huntingdonshire District Council,201932,PROFILE DIGITAL AGENCY LTD,30481,17/09/2019,INV-2306,ADVERTISING,20/02/2020,50,250,300,One Leisure Support Team,"Clothes, Uniform And Laundry",62000
http://statistics.data.gov.uk/id/local-authority/12UE,Huntingdonshire District Council,200198,CLANPRESS KING'S LYNN LTD CLANPRESS KING'S LYNN LTD,30719,28/01/2020,44756,POSTCARDS,27/02/2020,180.8,904,1084.8,OLSI - Site & Centre Management,"Clothes, Uniform And Laundry",62000
http://statistics.data.gov.uk/id/local-authority/12UE,Huntingdonshire District Council,200282,ESPO ESPO,31755,03/02/2020,5560487,CLEANING PRODUCTS,19/03/2020,1.56,7.79,9.35,OLSI - Site & Centre Management,"Clothes, Uniform And Laundry",62000
http://statistics.data.gov.uk/id/local-authority/12UE,Huntingdonshire District Council,200058,ARCHANT HERTS AND CAMBS ARCHANT HERTS AND CAMBS,29861,31/01/2020,83076819,HUNTS POST 29/01/20,27/02/2020,400,2000,2400,OLSIO - Training Shed,"Clothes, Uniform And Laundry",62000
http://statistics.data.gov.uk/id/local-authority/12UE,Huntingdonshire District Council,200058,ARCHANT HERTS AND CAMBS ARCHANT HERTS AND CAMBS,29861,31/01/2020,83076819,HUNTS POST 29/01/20,27/02/2020,29,145,174,OLSIO - Training Shed,"Clothes, Uniform And Laundry",62000
http://statistics.data.gov.uk/id/local-authority/12UE,Huntingdonshire District Council,200058,ARCHANT HERTS AND CAMBS ARCHANT HERTS AND CAMBS,30527,08/02/2020,83079410,BURGESS EVENTS,05/03/2020,29,145,174,OLSIO - Training Shed,"Clothes, Uniform And Laundry",62000
http://statistics.data.gov.uk/id/local-authority/12UE,Huntingdonshire District Council,202101,TRAINING SHED FAMILY LTD,32193,23/03/2020,INV-0031,OL ST IVES,26/03/2020,128.85,644.27,773.12,OLSIO - Training Shed,"Clothes, Uniform And Laundry",62000
http://statistics.data.gov.uk/id/local-authority/12UE,Huntingdonshire District Council,202101,TRAINING SHED FAMILY LTD,32195,23/03/2020,INV-0025,OL ST IVES,26/03/2020,110,550.01,660.01,OLSIO - Training Shed,"Clothes, Uniform And Laundry",62000
http://statistics.data.gov.uk/id/local-authority/12UE,Huntingdonshire District Council,200058,ARCHANT HERTS AND CAMBS ARCHANT HERTS AND CAMBS,30608,31/01/2020,60136857,THE TRAINING SHED,27/02/2020,94,470,564,OLSIO - Training Shed,"Clothes, Uniform And Laundry",62000
http://statistics.data.gov.uk/id/local-authority/12UE,Huntingdonshire District Council,200216,CORPORATE TRENDS CORPORATE TRENDS,31528,02/12/2019,IN0128686,BLOUSES,12/03/2020,52.6,263,315.6,OLSN - Site & Centre Management,"Clothes, Uniform And Laundry",62000
http://statistics.data.gov.uk/id/local-authority/12UE,Huntingdonshire District Council,200857,XLPRESS LTD XLPRESS LTD,29812,05/02/2020,45444,PRINTING,27/02/2020,0,338,338,Healthy Walks,"Clothes, Uniform And Laundry",62000
http://statistics.data.gov.uk/id/local-authority/12UE,Huntingdonshire District Council,200725,SMI GROUP SMI GROUP,28498,09/01/2020,INV703351,WORK WEAR,06/02/2020,17.28,86.4,103.68,Recycling Collections,"Clothes, Uniform And Laundry",62000
http://statistics.data.gov.uk/id/local-authority/12UE,Huntingdonshire District Council,200725,SMI GROUP SMI GROUP,28498,09/01/2020,INV703351,WORK WEAR,06/02/2020,93.16,465.8,558.96,Recycling Collections,"Clothes, Uniform And Laundry",62000
http://statistics.data.gov.uk/id/local-authority/12UE,Huntingdonshire District Council,200725,SMI GROUP SMI GROUP,29354,13/11/2019,INV685313,WORK WEAR,30/01/2020,3.7,18.5,22.2,Recycling Collections,"Clothes, Uniform And Laundry",62000
http://statistics.data.gov.uk/id/local-authority/12UE,Huntingdonshire District Council,200725,SMI GROUP SMI GROUP,29354,13/11/2019,INV685313,WORK WEAR,30/01/2020,55.66,278.29,333.95,Recycling Collections,"Clothes, Uniform And Laundry",62000
http://statistics.data.gov.uk/id/local-authority/12UE,Huntingdonshire District Council,200725,SMI GROUP SMI GROUP,29333,24/10/2019,INV678014,WORK WEAR,30/01/2020,22.24,111.2,133.44,Street Cleansing,"Clothes, Uniform And Laundry",62000
http://statistics.data.gov.uk/id/local-authority/12UE,Huntingdonshire District Council,200725,SMI GROUP SMI GROUP,29333,24/10/2019,INV678014,WORK WEAR,30/01/2020,2.68,13.4,16.08,Street Cleansing,"Clothes, Uniform And Laundry",62000
http://statistics.data.gov.uk/id/local-authority/12UE,Huntingdonshire District Council,200725,SMI GROUP SMI GROUP,29333,24/10/2019,INV678014,WORK WEAR,30/01/2020,1.44,7.2,8.64,Street Cleansing,"Clothes, Uniform And Laundry",62000
http://statistics.data.gov.uk/id/local-authority/12UE,Huntingdonshire District Council,200725,SMI GROUP SMI GROUP,29333,24/10/2019,INV678014,WORK WEAR,30/01/2020,54,270,324,Street Cleansing,"Clothes, Uniform And Laundry",62000
http://statistics.data.gov.uk/id/local-authority/12UE,Huntingdonshire District Council,200725,SMI GROUP SMI GROUP,29333,24/10/2019,INV678014,WORK WEAR,30/01/2020,26.14,130.69,156.83,Street Cleansing,"Clothes, Uniform And Laundry",62000
http://statistics.data.gov.uk/id/local-authority/12UE,Huntingdonshire District Council,200725,SMI GROUP SMI GROUP,29333,24/10/2019,INV678014,WORK WEAR,30/01/2020,63.29,316.44,379.73,Street Cleansing,"Clothes, Uniform And Laundry",62000
http://statistics.data.gov.uk/id/local-authority/12UE,Huntingdonshire District Council,200725,SMI GROUP SMI GROUP,29333,24/10/2019,INV678014,WORK WEAR,30/01/2020,7.39,36.95,44.34,Street Cleansing,"Clothes, Uniform And Laundry",62000
http://statistics.data.gov.uk/id/local-authority/12UE,Huntingdonshire District Council,200725,SMI GROUP SMI GROUP,29334,30/10/2019,INV680019,WORK WEAR,30/01/2020,23.28,116.4,139.68,Street Cleansing,"Clothes, Uniform And Laundry",62000
http://statistics.data.gov.uk/id/local-authority/12UE,Huntingdonshire District Council,200725,SMI GROUP SMI GROUP,29334,30/10/2019,INV680019,WORK WEAR,30/01/2020,26.5,132.5,159,Street Cleansing,"Clothes, Uniform And Laundry",62000
http://statistics.data.gov.uk/id/local-authority/12UE,Huntingdonshire District Council,200725,SMI GROUP SMI GROUP,29334,30/10/2019,INV680019,WORK WEAR,30/01/2020,30.3,151.5,181.8,Street Cleansing,"Clothes, Uniform And Laundry",62000
http://statistics.data.gov.uk/id/local-authority/12UE,Huntingdonshire District Council,200725,SMI GROUP SMI GROUP,29334,30/10/2019,INV680019,WORK WEAR,30/01/2020,21.12,105.6,126.72,Street Cleansing,"Clothes, Uniform And Laundry",62000
http://statistics.data.gov.uk/id/local-authority/12UE,Huntingdonshire District Council,200725,SMI GROUP SMI GROUP,29334,30/10/2019,INV680019,WORK WEAR,30/01/2020,10.41,52.05,62.46,Street Cleansing,"Clothes, Uniform And Laundry",62000
http://statistics.data.gov.uk/id/local-authority/12UE,Huntingdonshire District Council,200725,SMI GROUP SMI GROUP,31430,14/02/2020,INV716613,WORK WEAR,12/03/2020,74.51,372.55,447.06,Street Cleansing,"Clothes, Uniform And Laundry",62000
http://statistics.data.gov.uk/id/local-authority/12UE,Huntingdonshire District Council,200725,SMI GROUP SMI GROUP,28780,14/01/2020,INV704654,WORK WEAR,06/02/2020,14.98,74.9,89.88,Street Cleansing,"Clothes, Uniform And Laundry",62000
http://statistics.data.gov.uk/id/local-authority/12UE,Huntingdonshire District Council,200725,SMI GROUP SMI GROUP,28780,14/01/2020,INV704654,WORK WEAR,06/02/2020,16.36,81.8,98.16,Street Cleansing,"Clothes, Uniform And Laundry",62000
http://statistics.data.gov.uk/id/local-authority/12UE,Huntingdonshire District Council,200725,SMI GROUP SMI GROUP,28780,14/01/2020,INV704654,WORK WEAR,06/02/2020,13.88,69.4,83.28,Street Cleansing,"Clothes, Uniform And Laundry",62000
http://statistics.data.gov.uk/id/local-authority/12UE,Huntingdonshire District Council,202060,TUDOR (UK) LTD T/A TUDOR ENVIRONMENTAL,30824,13/02/2020,IN0051819,WIPES/COVERALLS/SIGNS,12/03/2020,8.4,42,50.4,Street Cleansing,"Clothes, Uniform And Laundry",62000
http://statistics.data.gov.uk/id/local-authority/12UE,Huntingdonshire District Council,200058,ARCHANT HERTS AND CAMBS ARCHANT HERTS AND CAMBS,30261,07/12/2019,56645313,HUNTS POST 04/12/19,20/02/2020,61.95,309.75,371.7,Waste Minimisation,"Clothes, Uniform And Laundry",62000
http://statistics.data.gov.uk/id/local-authority/12UE,Huntingdonshire District Council,200725,SMI GROUP SMI GROUP,29188,17/01/2020,INV705942,WORK WEAR,13/02/2020,59.92,299.6,359.52,Domestic Waste Collection,"Clothes, Uniform And Laundry",62000
http://statistics.data.gov.uk/id/local-authority/12UE,Huntingdonshire District Council,200725,SMI GROUP SMI GROUP,29188,17/01/2020,INV705942,WORK WEAR,13/02/2020,58.78,293.92,352.7,Domestic Waste Collection,"Clothes, Uniform And Laundry",62000
http://statistics.data.gov.uk/id/local-authority/12UE,Huntingdonshire District Council,200725,SMI GROUP SMI GROUP,29188,17/01/2020,INV705942,WORK WEAR,13/02/2020,15.9,79.5,95.4,Domestic Waste Collection,"Clothes, Uniform And Laundry",62000
http://statistics.data.gov.uk/id/local-authority/12UE,Huntingdonshire District Council,200725,SMI GROUP SMI GROUP,29188,17/01/2020,INV705942,WORK WEAR,13/02/2020,125.77,628.83,754.6,Domestic Waste Collection,"Clothes, Uniform And Laundry",62000
http://statistics.data.gov.uk/id/local-authority/12UE,Huntingdonshire District Council,200381,HOWSAFE LTD HOWSAFE LTD,32161,03/03/2020,SIN0697277,,26/03/2020,62.05,310.25,372.3,Domestic Waste Collection,"Clothes, Uniform And Laundry",62000
http://statistics.data.gov.uk/id/local-authority/12UE,Huntingdonshire District Council,200725,SMI GROUP SMI GROUP,29354,13/11/2019,INV685313,WORK WEAR,30/01/2020,49.11,245.55,294.66,Green Waste Collection,"Clothes, Uniform And Laundry",62000
http://statistics.data.gov.uk/id/local-authority/12UE,Huntingdonshire District Council,201588,CFH DOCMAIL LTD,31012,18/02/2020,CS64386101,ANNUAL BILLING,12/03/2020,292.56,1462.8,1755.36,Benefits Management,"Clothes, Uniform And Laundry",62000
http://statistics.data.gov.uk/id/local-authority/12UE,Huntingdonshire District Council,201588,CFH DOCMAIL LTD,31174,02/03/2020,CS64768701,"PAPER, ARTWORK",26/03/2020,274.2,1371,1645.2,Benefits Management,"Clothes, Uniform And Laundry",62000
http://statistics.data.gov.uk/id/local-authority/12UE,Huntingdonshire District Council,201588,CFH DOCMAIL LTD,31119,02/03/2020,CS64544001,PAPER,26/03/2020,265.6,1328,1593.6,Benefits Management,"Clothes, Uniform And Laundry",62000
http://statistics.data.gov.uk/id/local-authority/12UE,Huntingdonshire District Council,201588,CFH DOCMAIL LTD,31058,12/02/2020,CS64386401,ANNUAL BILLING,05/03/2020,216.2,1081,1297.2,Benefits Management,"Clothes, Uniform And Laundry",62000
http://statistics.data.gov.uk/id/local-authority/12UE,Huntingdonshire District Council,201588,CFH DOCMAIL LTD,30790,25/02/2020,CS64766301,ANNUAL BILLING,19/03/2020,156.48,782.4,938.88,Benefits Management,"Clothes, Uniform And Laundry",62000
http://statistics.data.gov.uk/id/local-authority/12UE,Huntingdonshire District Council,200709,SCI PRINT LIMITED SCI PRINT LIMITED,29976,29/01/2020,4109,POLL CARDS,20/02/2020,179.8,899,1078.8,District Elections,"Clothes, Uniform And Laundry",62000
http://statistics.data.gov.uk/id/local-authority/12UE,Huntingdonshire District Council,200818,VICTOIRE PRESS LTD VICTOIRE PRESS LTD,29547,30/01/2020,98332,PRINTING,27/02/2020,131.4,657,788.4,District Elections,"Clothes, Uniform And Laundry",62000
http://statistics.data.gov.uk/id/local-authority/12UE,Huntingdonshire District Council,200713,SHAW & SONS LIMITED SHAW & SONS LIMITED,31436,02/03/2020,274963,PCCSDR,26/03/2020,356.46,1782.3,2138.76,Elections Police & Crime Cmmr,"Clothes, Uniform And Laundry",62000
http://statistics.data.gov.uk/id/local-authority/12UE,Huntingdonshire District Council,201033,CAMBRIDGESHIRE COUNTY COUNCIL,30709,29/01/2020,4.23001E+11,HIGHWAY SEARCHES Q3 2019/20,27/02/2020,2188.8,10944,13132.8,Land Enquiry Con 29 Full,"Clothes, Uniform And Laundry",62000
http://statistics.data.gov.uk/id/local-authority/12UE,Huntingdonshire District Council,200818,VICTOIRE PRESS LTD VICTOIRE PRESS LTD,30740,18/02/2020,98646,BALLOT PAPERS,12/03/2020,72.2,361,433.2,Neighbourhood Planning,"Clothes, Uniform And Laundry",62000
http://statistics.data.gov.uk/id/local-authority/12UE,Huntingdonshire District Council,200565,NEOPOST NEOPOST,29331,27/01/2020,92645900,ENVELOPES,20/02/2020,251.57,1257.84,1509.41,Printing,"Clothes, Uniform And Laundry",62000
http://statistics.data.gov.uk/id/local-authority/12UE,Huntingdonshire District Council,200312,FREIGHT TRANSPORT ASSOCIATION FREIGHT TRANSPORT ASSOCIATION,27888,19/12/2019,300260432,100 X VC40 DEFECT REPORT PAD,16/01/2020,57,285,342,Vehicle Maintenance,"Clothes, Uniform And Laundry",62000
http://statistics.data.gov.uk/id/local-authority/12UE,Huntingdonshire District Council,200725,SMI GROUP SMI GROUP,29333,24/10/2019,INV678014,WORK WEAR,30/01/2020,36,179.97,215.97,Grounds Maintenance,"Clothes, Uniform And Laundry",62000
http://statistics.data.gov.uk/id/local-authority/12UE,Huntingdonshire District Council,200725,SMI GROUP SMI GROUP,29333,24/10/2019,INV678014,WORK WEAR,30/01/2020,12.11,60.56,72.67,Grounds Maintenance,"Clothes, Uniform And Laundry",62000
http://statistics.data.gov.uk/id/local-authority/12UE,Huntingdonshire District Council,200725,SMI GROUP SMI GROUP,31430,14/02/2020,INV716613,WORK WEAR,12/03/2020,9,45.02,54.02,Grounds Maintenance,"Clothes, Uniform And Laundry",62000
http://statistics.data.gov.uk/id/local-authority/12UE,Huntingdonshire District Council,200725,SMI GROUP SMI GROUP,28780,14/01/2020,INV704654,WORK WEAR,06/02/2020,11.45,57.26,68.71,Grounds Maintenance,"Clothes, Uniform And Laundry",62000
http://statistics.data.gov.uk/id/local-authority/12UE,Huntingdonshire District Council,200725,SMI GROUP SMI GROUP,28780,14/01/2020,INV704654,WORK WEAR,06/02/2020,13.88,69.4,83.28,Grounds Maintenance,"Clothes, Uniform And Laundry",62000
http://statistics.data.gov.uk/id/local-authority/12UE,Huntingdonshire District Council,200149,CAMBRIDGE CITY COUNCIL CAMBRIDGE CITY COUNCIL,27168,10/12/2019,12039732,REIMBURSEMENT RE CENTRAL IT COSTS,02/01/2020,339.23,1696.15,2035.38,IMD Shared Service,"Clothes, Uniform And Laundry",62000
http://statistics.data.gov.uk/id/local-authority/12UE,Huntingdonshire District Council,200952,GET MEDIA LTD,31758,15/02/2020,752,ADVERTISING,19/03/2020,105.38,526.9,632.28,Cambridge City Business Case ,"Clothes, Uniform And Laundry",62000
http://statistics.data.gov.uk/id/local-authority/12UE,Huntingdonshire District Council,200054.01,APSE,28206,19/12/2019,1920/2138,APSE SEMINAR 5-6 DEC 19,16/01/2020,102,510,612,Domestic Waste Collection,Conference Expenses,64300
http://statistics.data.gov.uk/id/local-authority/12UE,Huntingdonshire District Council,200167,CAPITA BUSINESS SERVICES LTD CAPITA BUSINESS SERVICES LTD,30641,19/02/2020,6003954823,ALLPAY COUNCIL TAX & NNDR IMPORT,12/03/2020,1425,7125,8550,Cash Receipting System,Consultancy Fees,62400
http://statistics.data.gov.uk/id/local-authority/12UE,Huntingdonshire District Council,200678,RICHARD HERRMANN ASSOC LTD RICHARD HERRMANN ASSOC LTD,30402,17/02/2020,4816 F,OAKTREE HEALTH CENTRE,12/03/2020,274,1370,1644,Oak Tree Remedial Work,Consultancy Fees,62400
http://statistics.data.gov.uk/id/local-authority/12UE,Huntingdonshire District Council,202093,MARTIN CONTRACTING SERVICES LTD,31573,18/02/2020,001IN001153,ESTATES ALMS CL,12/03/2020,55938.3,279691.51,335629.81,Alms Close,Consultancy Fees,62400
http://statistics.data.gov.uk/id/local-authority/12UE,Huntingdonshire District Council,201344,ANDREW FIREBRACE PARTNERSHIP LTD,29814,31/01/2020,7159,ALMS CLOSE,27/02/2020,600,3000,3600,Alms Close,Consultancy Fees,62400
http://statistics.data.gov.uk/id/local-authority/12UE,Huntingdonshire District Council,201967,PM808 INTERNATIONAL LTD,28144,20/12/2019,HDC/002/ALMS/TK,ALMS CLOSE,09/01/2020,0,2850.8,2850.8,Alms Close,Consultancy Fees,62400
http://statistics.data.gov.uk/id/local-authority/12UE,Huntingdonshire District Council,201344,ANDREW FIREBRACE PARTNERSHIP LTD,28095,31/12/2019,7105,PROF SERVICES - ALMS CLOSE,23/01/2020,567.4,2837,3404.4,Alms Close,Consultancy Fees,62400
http://statistics.data.gov.uk/id/local-authority/12UE,Huntingdonshire District Council,201967,PM808 INTERNATIONAL LTD,31343,02/03/2020,HDC/003/ALMS/TK,ALMS CLOSE,26/03/2020,0,1600,1600,Alms Close,Consultancy Fees,62400
http://statistics.data.gov.uk/id/local-authority/12UE,Huntingdonshire District Council,202043,DYNO ROD T/A DF STEWART SERVICES LTD,30536,07/02/2020,1894BU989,ALMS CLOSE,27/02/2020,290,1450,1740,Alms Close,Consultancy Fees,62400
http://statistics.data.gov.uk/id/local-authority/12UE,Huntingdonshire District Council,200905,DAVID TURNOCK ARCHITECTS LTD D T ARCHITECTS,30688,20/02/2020,3905,ALMS CLOSE,27/02/2020,156,780,936,Alms Close,Consultancy Fees,62400
http://statistics.data.gov.uk/id/local-authority/12UE,Huntingdonshire District Council,200905,DAVID TURNOCK ARCHITECTS LTD D T ARCHITECTS,30688,20/02/2020,3905,ALMS CLOSE,27/02/2020,0,234,234,Alms Close,Consultancy Fees,62400
http://statistics.data.gov.uk/id/local-authority/12UE,Huntingdonshire District Council,200226,DAL-ROD (CAMRIDGESHIRE) DAL-ROD (CAMRIDGESHIRE),27243,11/12/2019,52305,ALMS CLOSE,02/01/2020,50,250,300,Alms Close,Consultancy Fees,62400
http://statistics.data.gov.uk/id/local-authority/12UE,Huntingdonshire District Council,201345,ROGER PARKER ASSOCIATES LTD,29563,31/01/2020,141118,ALMS CLOSE,27/02/2020,320,1600,1920,Alms Close,Consultancy Fees,62400
http://statistics.data.gov.uk/id/local-authority/12UE,Huntingdonshire District Council,202189,HOWES PERCIVAL LLP,29536,24/12/2019,N322618,PROFESSIONAL SERVICES,06/02/2020,900,4500,5400,One Leisure St Ives New Fitness Offering,Consultancy Fees,62400
http://statistics.data.gov.uk/id/local-authority/12UE,Huntingdonshire District Council,201931,TORNEY LTD,31177,24/02/2020,829,OL ST IVES,19/03/2020,103,515,618,One Leisure St Ives New Fitness Offering,Consultancy Fees,62400
http://statistics.data.gov.uk/id/local-authority/12UE,Huntingdonshire District Council,202115,BONSKA CONSULTANCY LTD,28597,13/01/2020,OL_INVES_2_DEC19,SCOPING PROJECT,23/01/2020,0,758.55,758.55,One Leisure Support Team,Consultancy Fees,62400
http://statistics.data.gov.uk/id/local-authority/12UE,Huntingdonshire District Council,200809,UKACTIVE UKACTIVE,30897,26/02/2020,117139,OL ST IVES,19/03/2020,6479.6,32398,38877.6,OLSIO - Site & Centre Management,Consultancy Fees,62400
http://statistics.data.gov.uk/id/local-authority/12UE,Huntingdonshire District Council,201112,PETERBOROUGH POLICE AMATEUR BOXING CLUB,27166,10/12/2019,74,COACHING - YAXLEY,02/01/2020,0,550,550,Sports Development,Consultancy Fees,62400
http://statistics.data.gov.uk/id/local-authority/12UE,Huntingdonshire District Council,201300,PLANNING SOLUTIONS CONSULTING LTD,29922,06/11/2019,791,CONSULTANCY,13/02/2020,349.02,1745.12,2094.14,Countryside Service Management,Consultancy Fees,62400
http://statistics.data.gov.uk/id/local-authority/12UE,Huntingdonshire District Council,202153,DAVEY ESTATES LTD,30283,05/02/2020,HDC05022020,CONSULTANCY,20/02/2020,1560,7800,9360,Corporate Director (Delivery),Consultancy Fees,62400
http://statistics.data.gov.uk/id/local-authority/12UE,Huntingdonshire District Council,202153,DAVEY ESTATES LTD,31131,28/02/2020,HDC28022020,CONSULTANCY,05/03/2020,1560,7800,9360,Corporate Director (Delivery),Consultancy Fees,62400
http://statistics.data.gov.uk/id/local-authority/12UE,Huntingdonshire District Council,202099,UNBOXED CONSULTING,28866,01/01/2020,INV-3990,TRAINING,23/01/2020,1000,5000,6000,Transformation Programme,Consultancy Fees,62400
http://statistics.data.gov.uk/id/local-authority/12UE,Huntingdonshire District Council,202219,DE MANAGEMENT SOLUTIONS LTD,32101,01/03/2020,DE0338,CORPORATE ADVICE,26/03/2020,2100,10500,12600,Programme Delivery Manager,Consultancy Fees,62400
http://statistics.data.gov.uk/id/local-authority/12UE,Huntingdonshire District Council,200609,PENGELLY AND MIZEN PENGELLY AND MIZEN,30510,12/02/2020,672753422,INSPECT KENNELS - SAWTRY,05/03/2020,66.67,333.33,400,Animal Licensing - Inspections,Consultancy Fees,62400
http://statistics.data.gov.uk/id/local-authority/12UE,Huntingdonshire District Council,201556,EPS LTD,29675,27/01/2020,IN6351,GROUND MONITORING,20/02/2020,521.2,2606,3127.2,Contaminated Land,Consultancy Fees,62400
http://statistics.data.gov.uk/id/local-authority/12UE,Huntingdonshire District Council,200197,CIVICA UK LTD CIVICA UK LTD,29066,21/01/2020,C/HR190801,CONSULTANCY,13/02/2020,338,1690,2028,Food Safety General,Consultancy Fees,62400
http://statistics.data.gov.uk/id/local-authority/12UE,Huntingdonshire District Council,200827,VIVID RESOURCING LIMITED VIVID RESOURCING LIMITED,26987,05/12/2019,42064,REDACTED,02/01/2020,236.8,1184,1420.8,Licensing Common Costs,Consultancy Fees,62400
http://statistics.data.gov.uk/id/local-authority/12UE,Huntingdonshire District Council,200827,VIVID RESOURCING LIMITED VIVID RESOURCING LIMITED,27732,14/11/2019,41466,REDACTED,02/01/2020,236.8,1184,1420.8,Licensing Common Costs,Consultancy Fees,62400
http://statistics.data.gov.uk/id/local-authority/12UE,Huntingdonshire District Council,200827,VIVID RESOURCING LIMITED VIVID RESOURCING LIMITED,27736,12/12/2019,42310,REDACTED,09/01/2020,236.8,1184,1420.8,Licensing Common Costs,Consultancy Fees,62400
http://statistics.data.gov.uk/id/local-authority/12UE,Huntingdonshire District Council,200827,VIVID RESOURCING LIMITED VIVID RESOURCING LIMITED,28801,15/01/2020,43125,REDACTED,06/02/2020,236.8,1184,1420.8,Licensing Common Costs,Consultancy Fees,62400
http://statistics.data.gov.uk/id/local-authority/12UE,Huntingdonshire District Council,200827,VIVID RESOURCING LIMITED VIVID RESOURCING LIMITED,29171,23/12/2019,42638,REDACTED,30/01/2020,236.8,1184,1420.8,Licensing Common Costs,Consultancy Fees,62400
http://statistics.data.gov.uk/id/local-authority/12UE,Huntingdonshire District Council,200827,VIVID RESOURCING LIMITED VIVID RESOURCING LIMITED,29668,29/01/2020,43551,REDACTED,20/02/2020,236.8,1184,1420.8,Licensing Common Costs,Consultancy Fees,62400
http://statistics.data.gov.uk/id/local-authority/12UE,Huntingdonshire District Council,200827,VIVID RESOURCING LIMITED VIVID RESOURCING LIMITED,29856,05/02/2020,43813,REDACTED,27/02/2020,236.8,1184,1420.8,Licensing Common Costs,Consultancy Fees,62400
http://statistics.data.gov.uk/id/local-authority/12UE,Huntingdonshire District Council,200827,VIVID RESOURCING LIMITED VIVID RESOURCING LIMITED,30746,12/02/2020,44043,REDACTED,05/03/2020,236.8,1184,1420.8,Licensing Common Costs,Consultancy Fees,62400
http://statistics.data.gov.uk/id/local-authority/12UE,Huntingdonshire District Council,200827,VIVID RESOURCING LIMITED VIVID RESOURCING LIMITED,30753,19/02/2020,44220,REDACTED,12/03/2020,236.8,1184,1420.8,Licensing Common Costs,Consultancy Fees,62400
http://statistics.data.gov.uk/id/local-authority/12UE,Huntingdonshire District Council,200827,VIVID RESOURCING LIMITED VIVID RESOURCING LIMITED,30928,26/02/2020,44450,REDACTED,19/03/2020,236.8,1184,1420.8,Licensing Common Costs,Consultancy Fees,62400
http://statistics.data.gov.uk/id/local-authority/12UE,Huntingdonshire District Council,200827,VIVID RESOURCING LIMITED VIVID RESOURCING LIMITED,29149,22/01/2020,43339,REDACTED,13/02/2020,220.8,1104,1324.8,Licensing Common Costs,Consultancy Fees,62400
http://statistics.data.gov.uk/id/local-authority/12UE,Huntingdonshire District Council,200827,VIVID RESOURCING LIMITED VIVID RESOURCING LIMITED,28172,02/01/2020,42789,REDACTED,30/01/2020,102.4,512,614.4,Licensing Common Costs,Consultancy Fees,62400
http://statistics.data.gov.uk/id/local-authority/12UE,Huntingdonshire District Council,200827,VIVID RESOURCING LIMITED VIVID RESOURCING LIMITED,28592,08/01/2020,42962,REDACTED,30/01/2020,102.4,512,614.4,Licensing Common Costs,Consultancy Fees,62400
http://statistics.data.gov.uk/id/local-authority/12UE,Huntingdonshire District Council,200827,VIVID RESOURCING LIMITED VIVID RESOURCING LIMITED,29170,19/12/2019,42474,REDACTED,30/01/2020,97.6,488,585.6,Licensing Common Costs,Consultancy Fees,62400
http://statistics.data.gov.uk/id/local-authority/12UE,Huntingdonshire District Council,200038,ALERE TOXICOLOGY PLC ALERE TOXICOLOGY PLC,28499,31/10/2019,698330,COLLECTION AND ANALYSIS SERVICES,16/01/2020,81,405,486,Domestic Waste Collection,Consultancy Fees,62400
http://statistics.data.gov.uk/id/local-authority/12UE,Huntingdonshire District Council,200038,ALERE TOXICOLOGY PLC ALERE TOXICOLOGY PLC,27918,31/10/2019,698378,ANALYSIS SERVICES,02/01/2020,64,320,384,Green Waste Collection,Consultancy Fees,62400
http://statistics.data.gov.uk/id/local-authority/12UE,Huntingdonshire District Council,202153,DAVEY ESTATES LTD,28443,07/01/2020,HDC07012020,CONSULTANCY,16/01/2020,780,3900,4680,Housing Strategy,Consultancy Fees,62400
http://statistics.data.gov.uk/id/local-authority/12UE,Huntingdonshire District Council,201479,REDACTED,30085,12/02/2020,127745,REDACTED,05/03/2020,200,1000,1200,Dm Appeals,Consultancy Fees,62400
http://statistics.data.gov.uk/id/local-authority/12UE,Huntingdonshire District Council,200215,CORNERSTONE BARRISTERS CORNERSTONE BARRISTERS,29997,07/02/2020,147446 07/02/20,CONSULTANCY,05/03/2020,700,3500,4200,Dm Application Processing,Consultancy Fees,62400
http://statistics.data.gov.uk/id/local-authority/12UE,Huntingdonshire District Council,200215,CORNERSTONE BARRISTERS CORNERSTONE BARRISTERS,31874,27/02/2020,147731,MANDENE GARDENS GREAT GRANSDEN,26/03/2020,144,720,864,Dm Application Processing,Consultancy Fees,62400
http://statistics.data.gov.uk/id/local-authority/12UE,Huntingdonshire District Council,200667,READING AGRICULTURAL CONSULTANTS READING AGRICULTURAL CONSULTANTS,31872,03/03/2020,8719/20/167/P,PLANNING APPLICATION CONSULTATION,26/03/2020,120,600,720,Dm Application Processing,Consultancy Fees,62400
http://statistics.data.gov.uk/id/local-authority/12UE,Huntingdonshire District Council,201897,METRO DYNAMICS LTD,30400,17/02/2020,692,CONSULTANCY,20/02/2020,3368.63,16843.16,20211.79,Business & Enterprise Support,Consultancy Fees,62400
http://statistics.data.gov.uk/id/local-authority/12UE,Huntingdonshire District Council,200109,BLUE PRAWN DESIGN LTD BLUE PRAWN DESIGN LTD,28952,01/12/2019,1221,WEB RETAINER MAY 19 - FEB 20,23/01/2020,300,1500,1800,Business & Enterprise Support,Consultancy Fees,62400
http://statistics.data.gov.uk/id/local-authority/12UE,Huntingdonshire District Council,202122,OFFICE FOR NATIONAL STATISTICS,28314,17/12/2019,2463043,CONSULTANCY,09/01/2020,60,300,360,Business & Enterprise Support,Consultancy Fees,62400
http://statistics.data.gov.uk/id/local-authority/12UE,Huntingdonshire District Council,202154,MOTT MacDONALD LTD,29369,28/01/2020,IN00430034,ST NEOTS FUTURE HIGH STREET FUND,20/02/2020,6958.8,34794,41752.8,St Neots High Street Feasilbilty Study,Consultancy Fees,62400
http://statistics.data.gov.uk/id/local-authority/12UE,Huntingdonshire District Council,202154,MOTT MacDONALD LTD,31257,25/02/2020,IN00432017,CONSULTANCY,19/03/2020,2996.2,14981,17977.2,St Neots High Street Feasilbilty Study,Consultancy Fees,62400
http://statistics.data.gov.uk/id/local-authority/12UE,Huntingdonshire District Council,202007,GAEA INVESTMENTS LTD,31774,20/01/2020,2010/6,PROFESSIONAL CHARGES,19/03/2020,1733.6,8668,10401.6,Planning Projects General,Consultancy Fees,62400
http://statistics.data.gov.uk/id/local-authority/12UE,Huntingdonshire District Council,202007,GAEA INVESTMENTS LTD,31775,17/02/2020,2010/7,PROFESSIONAL CHARGES,19/03/2020,1733.6,8668,10401.6,Planning Projects General,Consultancy Fees,62400
http://statistics.data.gov.uk/id/local-authority/12UE,Huntingdonshire District Council,202007,GAEA INVESTMENTS LTD,31157,23/12/2019,2010/5,PROFESSIONAL SERVICES,05/03/2020,1473.56,7367.8,8841.36,Planning Projects General,Consultancy Fees,62400
http://statistics.data.gov.uk/id/local-authority/12UE,Huntingdonshire District Council,200867,GERALD EVE GERALD EVE,29257,28/11/2019,I2019/02/001322,ALCONBURY WEALD VIABILITY REVIEW,30/01/2020,9000,45000,54000,Viability Assessments,Consultancy Fees,62400
http://statistics.data.gov.uk/id/local-authority/12UE,Huntingdonshire District Council,200375,HMRC - VALUATION OFFICE AGENCY HMRC - VALUATION OFFICE AGENCY,28865,19/12/2019,2.50001E+13,RAF UPWOOD SITE,23/01/2020,520,2600,3120,Viability Assessments,Consultancy Fees,62400
http://statistics.data.gov.uk/id/local-authority/12UE,Huntingdonshire District Council,200348,GREENDAY ENERGY LTD GREENDAY ENERGY LTD,27570,16/12/2019,GD965,CONSULTANCY - DEC & RR,09/01/2020,43,215,258,Eastfield House,Consultancy Fees,62400
http://statistics.data.gov.uk/id/local-authority/12UE,Huntingdonshire District Council,201165,TERENCE BARKER,29110,20/01/2020,48319,FUEL TESTS,13/02/2020,96,480,576,Vehicle Maintenance,Consultancy Fees,62400
http://statistics.data.gov.uk/id/local-authority/12UE,Huntingdonshire District Council,200312,FREIGHT TRANSPORT ASSOCIATION FREIGHT TRANSPORT ASSOCIATION,27966,23/12/2019,8361944,2 X AXLED VEHICLE ROADWORTHINESS,16/01/2020,25.7,128.5,154.2,Vehicle Maintenance,Consultancy Fees,62400
http://statistics.data.gov.uk/id/local-authority/12UE,Huntingdonshire District Council,200312,FREIGHT TRANSPORT ASSOCIATION FREIGHT TRANSPORT ASSOCIATION,27966,23/12/2019,8361944,2 X AXLED VEHICLE ROADWORTHINESS,16/01/2020,25.7,128.5,154.2,Vehicle Maintenance,Consultancy Fees,62400
http://statistics.data.gov.uk/id/local-authority/12UE,Huntingdonshire District Council,201178,GARDENWORKS TREE SURGERY LTD,30380,27/11/2019,3616,TREE WORKS,20/02/2020,62,310,372,Arboricultural Team,Consultancy Fees,62400
http://statistics.data.gov.uk/id/local-authority/12UE,Huntingdonshire District Council,201178,GARDENWORKS TREE SURGERY LTD,30380,27/11/2019,3616,TREE WORKS,20/02/2020,153,765,918,Arboricultural Team,Consultancy Fees,62400
http://statistics.data.gov.uk/id/local-authority/12UE,Huntingdonshire District Council,201178,GARDENWORKS TREE SURGERY LTD,30380,27/11/2019,3616,TREE WORKS,20/02/2020,30,150,180,Arboricultural Team,Consultancy Fees,62400
http://statistics.data.gov.uk/id/local-authority/12UE,Huntingdonshire District Council,201178,GARDENWORKS TREE SURGERY LTD,30380,27/11/2019,3616,TREE WORKS,20/02/2020,150,750,900,Arboricultural Team,Consultancy Fees,62400
http://statistics.data.gov.uk/id/local-authority/12UE,Huntingdonshire District Council,201178,GARDENWORKS TREE SURGERY LTD,30380,27/11/2019,3616,TREE WORKS,20/02/2020,93,465,558,Arboricultural Team,Consultancy Fees,62400
http://statistics.data.gov.uk/id/local-authority/12UE,Huntingdonshire District Council,201178,GARDENWORKS TREE SURGERY LTD,30380,27/11/2019,3616,TREE WORKS,20/02/2020,52,260,312,Arboricultural Team,Consultancy Fees,62400
http://statistics.data.gov.uk/id/local-authority/12UE,Huntingdonshire District Council,201178,GARDENWORKS TREE SURGERY LTD,30380,27/11/2019,3616,TREE WORKS,20/02/2020,52,260,312,Arboricultural Team,Consultancy Fees,62400
http://statistics.data.gov.uk/id/local-authority/12UE,Huntingdonshire District Council,201178,GARDENWORKS TREE SURGERY LTD,30380,27/11/2019,3616,TREE WORKS,20/02/2020,42,210,252,Arboricultural Team,Consultancy Fees,62400
http://statistics.data.gov.uk/id/local-authority/12UE,Huntingdonshire District Council,201360,GLOBAL TREE SOLUTIONS LTD,28697,15/01/2020,62162,TREE WORKS,06/02/2020,470,2350,2820,Arboricultural Team,Consultancy Fees,62400
http://statistics.data.gov.uk/id/local-authority/12UE,Huntingdonshire District Council,201360,GLOBAL TREE SOLUTIONS LTD,28697,15/01/2020,62162,TREE WORKS,06/02/2020,90,450,540,Arboricultural Team,Consultancy Fees,62400
http://statistics.data.gov.uk/id/local-authority/12UE,Huntingdonshire District Council,201843,THE CGM GROUP (EAST ANGLIA) LTD,28484,09/01/2020,226697,TREE WORKS,06/02/2020,440,2200,2640,Arboricultural Team,Consultancy Fees,62400
http://statistics.data.gov.uk/id/local-authority/12UE,Huntingdonshire District Council,201360,GLOBAL TREE SOLUTIONS LTD,30062,04/02/2020,62208,TREE WORKS,27/02/2020,360,1800,2160,Arboricultural Team,Consultancy Fees,62400
http://statistics.data.gov.uk/id/local-authority/12UE,Huntingdonshire District Council,201843,THE CGM GROUP (EAST ANGLIA) LTD,28483,31/12/2019,226696,TREE WORKS,23/01/2020,170,850,1020,Arboricultural Team,Consultancy Fees,62400
http://statistics.data.gov.uk/id/local-authority/12UE,Huntingdonshire District Council,201843,THE CGM GROUP (EAST ANGLIA) LTD,30091,12/02/2020,227479,TREE WORKS,05/03/2020,128,640,768,Arboricultural Team,Consultancy Fees,62400
http://statistics.data.gov.uk/id/local-authority/12UE,Huntingdonshire District Council,201843,THE CGM GROUP (EAST ANGLIA) LTD,28485,09/01/2020,226698,TREE WORKS,06/02/2020,106,530,636,Arboricultural Team,Consultancy Fees,62400
http://statistics.data.gov.uk/id/local-authority/12UE,Huntingdonshire District Council,200676,RGS ARBORICULTURAL CONSULTANTS RGS ARBORICULTURAL CONSULTANTS,28482,08/01/2020,15804,OPEN SPACE WORKS,30/01/2020,70,350,420,Arboricultural Team,Consultancy Fees,62400
http://statistics.data.gov.uk/id/local-authority/12UE,Huntingdonshire District Council,200987,YOTTA,32002,11/02/2020,12114,LICENCES & SUPPORT,26/03/2020,500,2500,3000,City Recoverable,Consultancy Fees,62400
http://statistics.data.gov.uk/id/local-authority/12UE,Huntingdonshire District Council,200987,YOTTA,32002,11/02/2020,12114,LICENCES & SUPPORT,26/03/2020,4874,24370,29244,SCDC Recoverable,Consultancy Fees,62400
http://statistics.data.gov.uk/id/local-authority/12UE,Huntingdonshire District Council,200614,PHOENIX SOFTWARE LTD PHOENIX SOFTWARE LTD,30326,27/02/2019,OP/I836609,CONSULTANCY,20/02/2020,10.88,54.42,65.3,SCDC Recoverable,Consultancy Fees,62400
http://statistics.data.gov.uk/id/local-authority/12UE,Huntingdonshire District Council,200614,PHOENIX SOFTWARE LTD PHOENIX SOFTWARE LTD,30325,16/01/2019,OP/I833871,CONSULTANCY,20/02/2020,569.87,2849.33,3419.2,SCDC Recoverable,Consultancy Fees,62400
http://statistics.data.gov.uk/id/local-authority/12UE,Huntingdonshire District Council,200401,IDOX IDOX,31661,27/02/2020,7028614,TRAINING,26/03/2020,580,2900,3480,SCDC Recoverable,Consultancy Fees,62400
http://statistics.data.gov.uk/id/local-authority/12UE,Huntingdonshire District Council,200401,IDOX IDOX,31660,27/02/2020,7028613,TRAINING,26/03/2020,125,625,750,SCDC Recoverable,Consultancy Fees,62400
http://statistics.data.gov.uk/id/local-authority/12UE,Huntingdonshire District Council,200401,IDOX IDOX,31660,27/02/2020,7028613,TRAINING,26/03/2020,375,1875,2250,SCDC Recoverable,Consultancy Fees,62400
http://statistics.data.gov.uk/id/local-authority/12UE,Huntingdonshire District Council,200968,NORTHGATE PUBLIC SERVICES UK LTD,29002,20/01/2020,91429423,CONSULTANCY,13/02/2020,400,2000,2400,SCDC Recoverable,Consultancy Fees,62400
http://statistics.data.gov.uk/id/local-authority/12UE,Huntingdonshire District Council,200987,YOTTA,32002,11/02/2020,12114,LICENCES & SUPPORT,26/03/2020,500,2500,3000,HDC Recoverable,Consultancy Fees,62400
http://statistics.data.gov.uk/id/local-authority/12UE,Huntingdonshire District Council,200401,IDOX IDOX,30756,24/02/2020,7028501,CONSULTANCY,19/03/2020,190,950,1140,IMD Shared Service,Consultancy Fees,62400
http://statistics.data.gov.uk/id/local-authority/12UE,Huntingdonshire District Council,200166,CAPITA CAPITA,28068,23/01/2019,6003853779,EXPENSES,09/01/2020,70.3,351.5,421.8,IMD Shared Service,Consultancy Fees,62400
http://statistics.data.gov.uk/id/local-authority/12UE,Huntingdonshire District Council,201370,TRUSTED BUSINESS INTELLIGENCE LTD,28650,31/12/2019,3250,CONSULTANCY,23/01/2020,190,950,1140,Cambridge City Business Case ,Consultancy Fees,62400
http://statistics.data.gov.uk/id/local-authority/12UE,Huntingdonshire District Council,201497,CASTLETON SOFTWARE SOLUTIONS LTD,29910,07/02/2020,CTLSI001190,CONSULTANCY,05/03/2020,100,500,600,Cambridge City Business Case ,Consultancy Fees,62400
http://statistics.data.gov.uk/id/local-authority/12UE,Huntingdonshire District Council,200197,CIVICA UK LTD CIVICA UK LTD,30184,06/02/2020,C/RB191605,DUMP & RELOAD SERVICE,05/03/2020,300,1500,1800,SCDC Business Case ,Consultancy Fees,62400
http://statistics.data.gov.uk/id/local-authority/12UE,Huntingdonshire District Council,200197,CIVICA UK LTD CIVICA UK LTD,30184,06/02/2020,C/RB191605,DUMP & RELOAD SERVICE,05/03/2020,900,4500,5400,SCDC Business Case ,Consultancy Fees,62400
http://statistics.data.gov.uk/id/local-authority/12UE,Huntingdonshire District Council,200783,THE INFORMATION LAB THE INFORMATION LAB,30478,30/04/2019,9232,CONSULTANCY,20/02/2020,246.61,1233.05,1479.66,HDC Business Case ,Consultancy Fees,62400
http://statistics.data.gov.uk/id/local-authority/12UE,Huntingdonshire District Council,200614,PHOENIX SOFTWARE LTD PHOENIX SOFTWARE LTD,30387,13/01/2020,OP/I858025,CONSULTANCY,20/02/2020,200,1000,1200,HDC Business Case ,Consultancy Fees,62400
http://statistics.data.gov.uk/id/local-authority/12UE,Huntingdonshire District Council,200401,IDOX IDOX,28113,06/12/2019,7027694,ORACLE UPGRADE,09/01/2020,190,950,1140,HDC Business Case ,Consultancy Fees,62400
http://statistics.data.gov.uk/id/local-authority/12UE,Huntingdonshire District Council,200614,PHOENIX SOFTWARE LTD PHOENIX SOFTWARE LTD,30326,27/02/2019,OP/I836609,CONSULTANCY,20/02/2020,1742.25,8711.25,10453.5,Council Anywhere Holding Acc,Consultancy Fees,62400
http://statistics.data.gov.uk/id/local-authority/12UE,Huntingdonshire District Council,200149,CAMBRIDGE CITY COUNCIL CAMBRIDGE CITY COUNCIL,31974,28/01/2020,12041827,LEGAL SHARED SERVICE QE DEC 19,26/03/2020,10303,51515,61818,Legal,Consultancy Fees,62400
http://statistics.data.gov.uk/id/local-authority/12UE,Huntingdonshire District Council,200059,ARLINGCLOSE ARLINGCLOSE,31225,17/02/2020,ACF2224,TREASURY ADVISORY SERVICES,12/03/2020,2650,13250,15900,Finance,Consultancy Fees,62400
http://statistics.data.gov.uk/id/local-authority/12UE,Huntingdonshire District Council,201922,EDDISONS COMMERCIAL LTD,29046,03/12/2019,602023551,HDC ASSET VALUATION UPDATE 2018/19,23/01/2020,960,4800,5760,Finance,Consultancy Fees,62400
http://statistics.data.gov.uk/id/local-authority/12UE,Huntingdonshire District Council,200769,TECHNOLOGY ONE LTD TECHNOLOGY ONE LTD,28306,27/12/2019,U003213,REDACTED,23/01/2020,390,1950,2340,Finance,Consultancy Fees,62400
http://statistics.data.gov.uk/id/local-authority/12UE,Huntingdonshire District Council,200769,TECHNOLOGY ONE LTD TECHNOLOGY ONE LTD,31118,02/03/2020,U003310,CONSULTANCY,26/03/2020,390,1950,2340,Finance,Consultancy Fees,62400
http://statistics.data.gov.uk/id/local-authority/12UE,Huntingdonshire District Council,201054,CAMBRIDGESHIRE PENSION FUND,29047,04/01/2020,4.233E+11,FRS/IAS STD ACC REPORT FEE MARCH 19,30/01/2020,60,300,360,Finance,Consultancy Fees,62400
http://statistics.data.gov.uk/id/local-authority/12UE,Huntingdonshire District Council,201054,CAMBRIDGESHIRE PENSION FUND,29047,04/01/2020,4.233E+11,FRS/IAS STD ACC REPORT FEE MARCH 19,30/01/2020,40,200,240,Finance,Consultancy Fees,62400
http://statistics.data.gov.uk/id/local-authority/12UE,Huntingdonshire District Council,201054,CAMBRIDGESHIRE PENSION FUND,29047,04/01/2020,4.233E+11,FRS/IAS STD ACC REPORT FEE MARCH 19,30/01/2020,190,950,1140,Finance,Consultancy Fees,62400
http://statistics.data.gov.uk/id/local-authority/12UE,Huntingdonshire District Council,200769,TECHNOLOGY ONE LTD TECHNOLOGY ONE LTD,29559,30/11/2019,U003168,CONSULTANCY,06/02/2020,195,975,1170,Finance,Consultancy Fees,62400
http://statistics.data.gov.uk/id/local-authority/12UE,Huntingdonshire District Council,201054,CAMBRIDGESHIRE PENSION FUND,29048,03/01/2020,4.233E+11,FRS/IAS STD ACC REPORT FEE MARCH 19,30/01/2020,60,300,360,Finance,Consultancy Fees,62400
http://statistics.data.gov.uk/id/local-authority/12UE,Huntingdonshire District Council,201054,CAMBRIDGESHIRE PENSION FUND,29048,03/01/2020,4.233E+11,FRS/IAS STD ACC REPORT FEE MARCH 19,30/01/2020,50,250,300,Finance,Consultancy Fees,62400
http://statistics.data.gov.uk/id/local-authority/12UE,Huntingdonshire District Council,201054,CAMBRIDGESHIRE PENSION FUND,29048,03/01/2020,4.233E+11,FRS/IAS STD ACC REPORT FEE MARCH 19,30/01/2020,50,250,300,Finance,Consultancy Fees,62400
http://statistics.data.gov.uk/id/local-authority/12UE,Huntingdonshire District Council,200827,VIVID RESOURCING LIMITED VIVID RESOURCING LIMITED,28442,08/01/2020,42960,REDACTED,30/01/2020,724.5,3622.5,4347,Commercial Team,Consultancy Fees,62400
http://statistics.data.gov.uk/id/local-authority/12UE,Huntingdonshire District Council,200827,VIVID RESOURCING LIMITED VIVID RESOURCING LIMITED,30927,19/02/2020,44218,REDACTED,12/03/2020,285.75,1428.75,1714.5,Commercial Team,Consultancy Fees,62400
http://statistics.data.gov.uk/id/local-authority/12UE,Huntingdonshire District Council,200827,VIVID RESOURCING LIMITED VIVID RESOURCING LIMITED,30927,19/02/2020,44218,REDACTED,12/03/2020,344.25,1721.25,2065.5,Commercial Team,Consultancy Fees,62400
http://statistics.data.gov.uk/id/local-authority/12UE,Huntingdonshire District Council,200827,VIVID RESOURCING LIMITED VIVID RESOURCING LIMITED,29820,05/02/2020,43811,REDACTED,27/02/2020,427.5,2137.5,2565,Commercial Team,Consultancy Fees,62400
http://statistics.data.gov.uk/id/local-authority/12UE,Huntingdonshire District Council,200827,VIVID RESOURCING LIMITED VIVID RESOURCING LIMITED,28115,19/12/2019,42472,REDACTED,16/01/2020,420.75,2103.75,2524.5,Commercial Team,Consultancy Fees,62400
http://statistics.data.gov.uk/id/local-authority/12UE,Huntingdonshire District Council,200827,VIVID RESOURCING LIMITED VIVID RESOURCING LIMITED,29671,29/01/2020,43549,REDACTED,20/02/2020,393.75,1968.75,2362.5,Commercial Team,Consultancy Fees,62400
http://statistics.data.gov.uk/id/local-authority/12UE,Huntingdonshire District Council,200827,VIVID RESOURCING LIMITED VIVID RESOURCING LIMITED,29172,22/01/2020,43338,REDACTED,13/02/2020,391.5,1957.5,2349,Commercial Team,Consultancy Fees,62400
http://statistics.data.gov.uk/id/local-authority/12UE,Huntingdonshire District Council,200827,VIVID RESOURCING LIMITED VIVID RESOURCING LIMITED,29328,15/01/2020,43123,REDACTED,06/02/2020,391.5,1957.5,2349,Commercial Team,Consultancy Fees,62400
http://statistics.data.gov.uk/id/local-authority/12UE,Huntingdonshire District Council,200827,VIVID RESOURCING LIMITED VIVID RESOURCING LIMITED,27569,12/12/2019,42308,REDACTED,09/01/2020,382.5,1912.5,2295,Commercial Team,Consultancy Fees,62400
http://statistics.data.gov.uk/id/local-authority/12UE,Huntingdonshire District Council,200827,VIVID RESOURCING LIMITED VIVID RESOURCING LIMITED,27425,05/12/2019,42062,REDACTED,02/01/2020,355.5,1777.5,2133,Commercial Team,Consultancy Fees,62400
http://statistics.data.gov.uk/id/local-authority/12UE,Huntingdonshire District Council,200827,VIVID RESOURCING LIMITED VIVID RESOURCING LIMITED,30899,26/02/2020,44448,REDACTED,19/03/2020,344.25,1721.25,2065.5,Commercial Team,Consultancy Fees,62400
http://statistics.data.gov.uk/id/local-authority/12UE,Huntingdonshire District Council,200827,VIVID RESOURCING LIMITED VIVID RESOURCING LIMITED,28116,02/01/2020,42785,REDACTED,30/01/2020,342,1710,2052,Commercial Team,Consultancy Fees,62400
http://statistics.data.gov.uk/id/local-authority/12UE,Huntingdonshire District Council,200132,BRYAN LECOCHE LTD BRYAN LECOCHE LTD,28962,20/01/2020,4561,EVICTION OF TRAVELLERS,13/02/2020,76,380,456,Env Protection,Consultancy Fees,62400
http://statistics.data.gov.uk/id/local-authority/12UE,Huntingdonshire District Council,200856,WRIGHT CONSULTING WRIGHT CONSULTING,30634,17/02/2020,2020/33-HUNT01-02-01,CONSULTANCY,12/03/2020,114.18,570.9,685.08,Development Management,Consultancy Fees,62400
http://statistics.data.gov.uk/id/local-authority/12UE,Huntingdonshire District Council,201659,INTELLIGENT PLANS AND EXAMINATIONS (IPE) LTD,27824,23/12/2019,1411,NEIGHBOURHOOD PLAN EXAMINATION,16/01/2020,953.74,4768.7,5722.44,Planning Policy,Consultancy Fees,62400
http://statistics.data.gov.uk/id/local-authority/12UE,Huntingdonshire District Council,200348,GREENDAY ENERGY LTD GREENDAY ENERGY LTD,27570,16/12/2019,GD965,CONSULTANCY - DEC & RR,09/01/2020,43,215,258,Pathfinder House,Consultancy Fees,62400
http://statistics.data.gov.uk/id/local-authority/12UE,Huntingdonshire District Council,200083,BARKER STOREY MATTHEWS BARKER STOREY MATTHEWS,29184,07/11/2019,602022977,10 ALL SAINTS PASSAGE,30/01/2020,79,395,474,Commercial Properties,Consultancy Fees,62400
http://statistics.data.gov.uk/id/local-authority/12UE,Huntingdonshire District Council,201906,LAMBERT SMITH HAMPTON GROUP LTD,25890,15/11/2019,ARINV/00363896,PROFESSIONAL CHARGES,02/01/2020,370.6,1853,2223.6,Commercial Properties,Consultancy Fees,62400
http://statistics.data.gov.uk/id/local-authority/12UE,Huntingdonshire District Council,200083,BARKER STOREY MATTHEWS BARKER STOREY MATTHEWS,28174,23/12/2019,602024542,ALMS CLOSE,16/01/2020,250,1250,1500,Industrial Properties,Consultancy Fees,62400
http://statistics.data.gov.uk/id/local-authority/12UE,Huntingdonshire District Council,200083,BARKER STOREY MATTHEWS BARKER STOREY MATTHEWS,28943,20/12/2019,602024196,UNIT 17 LEVELLERS LANE,23/01/2020,250,1250,1500,Industrial Properties,Consultancy Fees,62400
http://statistics.data.gov.uk/id/local-authority/12UE,Huntingdonshire District Council,200678,RICHARD HERRMANN ASSOC LTD RICHARD HERRMANN ASSOC LTD,30455,17/02/2020,4815,UNITS 13-15 LEVELLERS LANE,12/03/2020,450,2250,2700,Industrial Properties,Consultancy Fees,62400
http://statistics.data.gov.uk/id/local-authority/12UE,Huntingdonshire District Council,200840,WEIGHTMANS WEIGHTMANS,30274,30/01/2020,1928673,PROFESSIONAL SERVICES,27/02/2020,372.28,1861.41,2233.69,Legal Challenge re Multi Storey Car Park,Consultancy Fees,62400
http://statistics.data.gov.uk/id/local-authority/12UE,Huntingdonshire District Council,200840,WEIGHTMANS WEIGHTMANS,28565,31/10/2019,1911186,PROF SERVICES - OCT 19,16/01/2020,196,980,1176,Legal Challenge re Multi Storey Car Park,Consultancy Fees,62400
http://statistics.data.gov.uk/id/local-authority/12UE,Huntingdonshire District Council,200804,TROWERS AND HAMLINS TROWERS AND HAMLINS,27041,09/12/2019,2934266,PROFESSIONAL SERVICES,02/01/2020,2439.42,12197.08,14636.5,HDC Ventures,Consultancy Fees,62400
http://statistics.data.gov.uk/id/local-authority/12UE,Huntingdonshire District Council,200356,WATSON FUELS WATSON FUELS,28600,06/01/2020,I11551380,DIESEL,30/01/2020,6228.42,31142.07,37370.49,Operations Diesel Stock,Consumable Stores,11600
http://statistics.data.gov.uk/id/local-authority/12UE,Huntingdonshire District Council,200356,WATSON FUELS WATSON FUELS,29145,16/01/2020,I11580733,DIESEL,13/02/2020,6192.97,30964.87,37157.84,Operations Diesel Stock,Consumable Stores,11600
http://statistics.data.gov.uk/id/local-authority/12UE,Huntingdonshire District Council,200356,WATSON FUELS WATSON FUELS,28239,20/12/2019,I11521522,DIESEL,16/01/2020,6037.8,30188.98,36226.78,Operations Diesel Stock,Consumable Stores,11600
http://statistics.data.gov.uk/id/local-authority/12UE,Huntingdonshire District Council,200356,WATSON FUELS WATSON FUELS,29858,31/01/2020,I11619774,DIESEL,27/02/2020,5981.8,29909,35890.8,Operations Diesel Stock,Consumable Stores,11600
http://statistics.data.gov.uk/id/local-authority/12UE,Huntingdonshire District Council,200434,JADE SECURITY SERVICES LTD JADE SECURITY SERVICES LTD,28207,30/11/2019,20830,NON PARKING CASH COLLECTIONS,09/01/2020,48.8,244,292.8,OLH - Site & Centre Management,Contract Charges ,61800
http://statistics.data.gov.uk/id/local-authority/12UE,Huntingdonshire District Council,200434,JADE SECURITY SERVICES LTD JADE SECURITY SERVICES LTD,30140,31/01/2020,21283,NON PARKING CASH COLLECTIONS,27/02/2020,54.9,274.5,329.4,OLH - Site & Centre Management,Contract Charges ,61800
http://statistics.data.gov.uk/id/local-authority/12UE,Huntingdonshire District Council,200434,JADE SECURITY SERVICES LTD JADE SECURITY SERVICES LTD,31217,29/02/2020,21447,NON PARKING CASH COLLECTIONS,26/03/2020,48.8,244,292.8,OLH - Site & Centre Management,Contract Charges ,61800
http://statistics.data.gov.uk/id/local-authority/12UE,Huntingdonshire District Council,200434,JADE SECURITY SERVICES LTD JADE SECURITY SERVICES LTD,28208,31/12/2019,20987,NON PARKING CASH COLLECTIONS,23/01/2020,48.8,244,292.8,OLH - Site & Centre Management,Contract Charges ,61800
http://statistics.data.gov.uk/id/local-authority/12UE,Huntingdonshire District Council,200434,JADE SECURITY SERVICES LTD JADE SECURITY SERVICES LTD,28207,30/11/2019,20830,NON PARKING CASH COLLECTIONS,09/01/2020,12.2,61,73.2,OLR - Site & Centre Management,Contract Charges ,61800
http://statistics.data.gov.uk/id/local-authority/12UE,Huntingdonshire District Council,200434,JADE SECURITY SERVICES LTD JADE SECURITY SERVICES LTD,30140,31/01/2020,21283,NON PARKING CASH COLLECTIONS,27/02/2020,12.2,61,73.2,OLR - Site & Centre Management,Contract Charges ,61800
http://statistics.data.gov.uk/id/local-authority/12UE,Huntingdonshire District Council,200434,JADE SECURITY SERVICES LTD JADE SECURITY SERVICES LTD,31217,29/02/2020,21447,NON PARKING CASH COLLECTIONS,26/03/2020,12.2,61,73.2,OLR - Site & Centre Management,Contract Charges ,61800
http://statistics.data.gov.uk/id/local-authority/12UE,Huntingdonshire District Council,200434,JADE SECURITY SERVICES LTD JADE SECURITY SERVICES LTD,28208,31/12/2019,20987,NON PARKING CASH COLLECTIONS,23/01/2020,9.15,45.75,54.9,OLR - Site & Centre Management,Contract Charges ,61800
http://statistics.data.gov.uk/id/local-authority/12UE,Huntingdonshire District Council,200434,JADE SECURITY SERVICES LTD JADE SECURITY SERVICES LTD,28207,30/11/2019,20830,NON PARKING CASH COLLECTIONS,09/01/2020,12.2,61,73.2,OLS - Site & Centre Management,Contract Charges ,61800
http://statistics.data.gov.uk/id/local-authority/12UE,Huntingdonshire District Council,200434,JADE SECURITY SERVICES LTD JADE SECURITY SERVICES LTD,28207,30/11/2019,20830,NON PARKING CASH COLLECTIONS,09/01/2020,39.65,198.25,237.9,OLSI - Site & Centre Management,Contract Charges ,61800
http://statistics.data.gov.uk/id/local-authority/12UE,Huntingdonshire District Council,200434,JADE SECURITY SERVICES LTD JADE SECURITY SERVICES LTD,30140,31/01/2020,21283,NON PARKING CASH COLLECTIONS,27/02/2020,39.65,198.25,237.9,OLSI - Site & Centre Management,Contract Charges ,61800
http://statistics.data.gov.uk/id/local-authority/12UE,Huntingdonshire District Council,200434,JADE SECURITY SERVICES LTD JADE SECURITY SERVICES LTD,31217,29/02/2020,21447,NON PARKING CASH COLLECTIONS,26/03/2020,39.65,198.25,237.9,OLSI - Site & Centre Management,Contract Charges ,61800
http://statistics.data.gov.uk/id/local-authority/12UE,Huntingdonshire District Council,200434,JADE SECURITY SERVICES LTD JADE SECURITY SERVICES LTD,28208,31/12/2019,20987,NON PARKING CASH COLLECTIONS,23/01/2020,39.65,198.25,237.9,OLSI - Site & Centre Management,Contract Charges ,61800
http://statistics.data.gov.uk/id/local-authority/12UE,Huntingdonshire District Council,200434,JADE SECURITY SERVICES LTD JADE SECURITY SERVICES LTD,28207,30/11/2019,20830,NON PARKING CASH COLLECTIONS,09/01/2020,79.3,396.5,475.8,OLSN - Site & Centre Management,Contract Charges ,61800
http://statistics.data.gov.uk/id/local-authority/12UE,Huntingdonshire District Council,200434,JADE SECURITY SERVICES LTD JADE SECURITY SERVICES LTD,30140,31/01/2020,21283,NON PARKING CASH COLLECTIONS,27/02/2020,73.2,366,439.2,OLSN - Site & Centre Management,Contract Charges ,61800
http://statistics.data.gov.uk/id/local-authority/12UE,Huntingdonshire District Council,200434,JADE SECURITY SERVICES LTD JADE SECURITY SERVICES LTD,31217,29/02/2020,21447,NON PARKING CASH COLLECTIONS,26/03/2020,73.2,366,439.2,OLSN - Site & Centre Management,Contract Charges ,61800
http://statistics.data.gov.uk/id/local-authority/12UE,Huntingdonshire District Council,200434,JADE SECURITY SERVICES LTD JADE SECURITY SERVICES LTD,28208,31/12/2019,20987,NON PARKING CASH COLLECTIONS,23/01/2020,73.2,366,439.2,OLSN - Site & Centre Management,Contract Charges ,61800
http://statistics.data.gov.uk/id/local-authority/12UE,Huntingdonshire District Council,200434,JADE SECURITY SERVICES LTD JADE SECURITY SERVICES LTD,28207,30/11/2019,20830,NON PARKING CASH COLLECTIONS,09/01/2020,3.05,15.25,18.3,Hinchingbrooke Park Cafe,Contract Charges ,61800
http://statistics.data.gov.uk/id/local-authority/12UE,Huntingdonshire District Council,200434,JADE SECURITY SERVICES LTD JADE SECURITY SERVICES LTD,30140,31/01/2020,21283,NON PARKING CASH COLLECTIONS,27/02/2020,3.05,15.25,18.3,Hinchingbrooke Park Cafe,Contract Charges ,61800
http://statistics.data.gov.uk/id/local-authority/12UE,Huntingdonshire District Council,200434,JADE SECURITY SERVICES LTD JADE SECURITY SERVICES LTD,31217,29/02/2020,21447,NON PARKING CASH COLLECTIONS,26/03/2020,6.1,30.5,36.6,Hinchingbrooke Park Cafe,Contract Charges ,61800
http://statistics.data.gov.uk/id/local-authority/12UE,Huntingdonshire District Council,200434,JADE SECURITY SERVICES LTD JADE SECURITY SERVICES LTD,28208,31/12/2019,20987,NON PARKING CASH COLLECTIONS,23/01/2020,6.1,30.5,36.6,Hinchingbrooke Park Cafe,Contract Charges ,61800
http://statistics.data.gov.uk/id/local-authority/12UE,Huntingdonshire District Council,200434,JADE SECURITY SERVICES LTD JADE SECURITY SERVICES LTD,28080,31/12/2019,20988,CASH COLLECTION - PARKING,23/01/2020,1023.6,5118,6141.6,Car Park Management,Contract Charges ,61800
http://statistics.data.gov.uk/id/local-authority/12UE,Huntingdonshire District Council,200434,JADE SECURITY SERVICES LTD JADE SECURITY SERVICES LTD,31252,31/01/2020,21284,PARKING CASH COLLECTIONS,05/03/2020,897.6,4488,5385.6,Car Park Management,Contract Charges ,61800
http://statistics.data.gov.uk/id/local-authority/12UE,Huntingdonshire District Council,200434,JADE SECURITY SERVICES LTD JADE SECURITY SERVICES LTD,31247,29/02/2020,21448,PARKING CASH COLLECTIONS,26/03/2020,789.6,3948,4737.6,Car Park Management,Contract Charges ,61800
http://statistics.data.gov.uk/id/local-authority/12UE,Huntingdonshire District Council,200434,JADE SECURITY SERVICES LTD JADE SECURITY SERVICES LTD,28207,30/11/2019,20830,NON PARKING CASH COLLECTIONS,09/01/2020,64.05,320.25,384.3,Corporate Finance (Non Cm),Contract Charges ,61800
http://statistics.data.gov.uk/id/local-authority/12UE,Huntingdonshire District Council,200434,JADE SECURITY SERVICES LTD JADE SECURITY SERVICES LTD,30140,31/01/2020,21283,NON PARKING CASH COLLECTIONS,27/02/2020,67.1,335.5,402.6,Corporate Finance (Non Cm),Contract Charges ,61800
http://statistics.data.gov.uk/id/local-authority/12UE,Huntingdonshire District Council,200434,JADE SECURITY SERVICES LTD JADE SECURITY SERVICES LTD,31217,29/02/2020,21447,NON PARKING CASH COLLECTIONS,26/03/2020,61,305,366,Corporate Finance (Non Cm),Contract Charges ,61800
http://statistics.data.gov.uk/id/local-authority/12UE,Huntingdonshire District Council,200434,JADE SECURITY SERVICES LTD JADE SECURITY SERVICES LTD,28208,31/12/2019,20987,NON PARKING CASH COLLECTIONS,23/01/2020,61,305,366,Corporate Finance (Non Cm),Contract Charges ,61800
http://statistics.data.gov.uk/id/local-authority/12UE,Huntingdonshire District Council,200179,CERTAS ENERGY T/A PACE FUELCARE CERTAS ENERGY T/A PACE FUELCARE,31300,21/02/2020,3728106,DIESEL,19/03/2020,187.88,939.41,1127.29,OLSIO - Site & Centre Management,Contract Charges (Transport),60900
http://statistics.data.gov.uk/id/local-authority/12UE,Huntingdonshire District Council,200000,A C COMMERCIALS A C COMMERCIALS,29320,23/01/2020,INV0004146,ORDER 1340,20/02/2020,136.8,684,820.8,Recycling Collections,Contract Charges (Transport),60900
http://statistics.data.gov.uk/id/local-authority/12UE,Huntingdonshire District Council,200000,A C COMMERCIALS A C COMMERCIALS,30863,14/02/2020,INV0004633,VEHICLE REPAIRS,12/03/2020,106.95,534.75,641.7,Recycling Collections,Contract Charges (Transport),60900
http://statistics.data.gov.uk/id/local-authority/12UE,Huntingdonshire District Council,200000,A C COMMERCIALS A C COMMERCIALS,28641,18/12/2019,INV0003573,ORDER 1217,16/01/2020,51.66,258.3,309.96,Recycling Collections,Contract Charges (Transport),60900
http://statistics.data.gov.uk/id/local-authority/12UE,Huntingdonshire District Council,200000,A C COMMERCIALS A C COMMERCIALS,28640,24/12/2019,INV0003650,ORDER 1217,16/01/2020,22.81,114.07,136.88,Recycling Collections,Contract Charges (Transport),60900
http://statistics.data.gov.uk/id/local-authority/12UE,Huntingdonshire District Council,200000,A C COMMERCIALS A C COMMERCIALS,27294,10/12/2019,INV0003419,ORDER 1172,02/01/2020,16.8,83.97,100.77,Recycling Collections,Contract Charges (Transport),60900
http://statistics.data.gov.uk/id/local-authority/12UE,Huntingdonshire District Council,200000,A C COMMERCIALS A C COMMERCIALS,29320,23/01/2020,INV0004146,ORDER 1340,20/02/2020,22.8,114,136.8,Street Cleansing,Contract Charges (Transport),60900
http://statistics.data.gov.uk/id/local-authority/12UE,Huntingdonshire District Council,200000,A C COMMERCIALS A C COMMERCIALS,30863,14/02/2020,INV0004633,VEHICLE REPAIRS,12/03/2020,64.17,320.85,385.02,Street Cleansing,Contract Charges (Transport),60900
http://statistics.data.gov.uk/id/local-authority/12UE,Huntingdonshire District Council,200000,A C COMMERCIALS A C COMMERCIALS,28641,18/12/2019,INV0003573,ORDER 1217,16/01/2020,20.66,103.32,123.98,Street Cleansing,Contract Charges (Transport),60900
http://statistics.data.gov.uk/id/local-authority/12UE,Huntingdonshire District Council,200000,A C COMMERCIALS A C COMMERCIALS,28640,24/12/2019,INV0003650,ORDER 1217,16/01/2020,9.13,45.62,54.75,Street Cleansing,Contract Charges (Transport),60900
http://statistics.data.gov.uk/id/local-authority/12UE,Huntingdonshire District Council,200000,A C COMMERCIALS A C COMMERCIALS,27294,10/12/2019,INV0003419,ORDER 1172,02/01/2020,16.8,83.97,100.77,Street Cleansing,Contract Charges (Transport),60900
http://statistics.data.gov.uk/id/local-authority/12UE,Huntingdonshire District Council,200000,A C COMMERCIALS A C COMMERCIALS,29320,23/01/2020,INV0004146,ORDER 1340,20/02/2020,136.8,684,820.8,Domestic Waste Collection,Contract Charges (Transport),60900
http://statistics.data.gov.uk/id/local-authority/12UE,Huntingdonshire District Council,200000,A C COMMERCIALS A C COMMERCIALS,30863,14/02/2020,INV0004633,VEHICLE REPAIRS,12/03/2020,106.95,534.75,641.7,Domestic Waste Collection,Contract Charges (Transport),60900
http://statistics.data.gov.uk/id/local-authority/12UE,Huntingdonshire District Council,200000,A C COMMERCIALS A C COMMERCIALS,28641,18/12/2019,INV0003573,ORDER 1217,16/01/2020,51.66,258.3,309.96,Domestic Waste Collection,Contract Charges (Transport),60900
http://statistics.data.gov.uk/id/local-authority/12UE,Huntingdonshire District Council,200322,G&C COACHWORKS LTD G&C COACHWORKS LTD,27899,18/12/2019,10641,RE HJ67 OWX,09/01/2020,106.41,532.05,638.46,Domestic Waste Collection,Contract Charges (Transport),60900
http://statistics.data.gov.uk/id/local-authority/12UE,Huntingdonshire District Council,200000,A C COMMERCIALS A C COMMERCIALS,28640,24/12/2019,INV0003650,ORDER 1217,16/01/2020,22.82,114.08,136.9,Domestic Waste Collection,Contract Charges (Transport),60900
http://statistics.data.gov.uk/id/local-authority/12UE,Huntingdonshire District Council,200000,A C COMMERCIALS A C COMMERCIALS,27294,10/12/2019,INV0003419,ORDER 1172,02/01/2020,16.8,83.98,100.78,Domestic Waste Collection,Contract Charges (Transport),60900
http://statistics.data.gov.uk/id/local-authority/12UE,Huntingdonshire District Council,200000,A C COMMERCIALS A C COMMERCIALS,29320,23/01/2020,INV0004146,ORDER 1340,20/02/2020,114,570,684,Green Waste Collection,Contract Charges (Transport),60900
http://statistics.data.gov.uk/id/local-authority/12UE,Huntingdonshire District Council,200000,A C COMMERCIALS A C COMMERCIALS,30863,14/02/2020,INV0004633,VEHICLE REPAIRS,12/03/2020,106.95,534.75,641.7,Green Waste Collection,Contract Charges (Transport),60900
http://statistics.data.gov.uk/id/local-authority/12UE,Huntingdonshire District Council,200000,A C COMMERCIALS A C COMMERCIALS,28641,18/12/2019,INV0003573,ORDER 1217,16/01/2020,51.66,258.3,309.96,Green Waste Collection,Contract Charges (Transport),60900
http://statistics.data.gov.uk/id/local-authority/12UE,Huntingdonshire District Council,200000,A C COMMERCIALS A C COMMERCIALS,28640,24/12/2019,INV0003650,ORDER 1217,16/01/2020,22.82,114.08,136.9,Green Waste Collection,Contract Charges (Transport),60900
http://statistics.data.gov.uk/id/local-authority/12UE,Huntingdonshire District Council,200000,A C COMMERCIALS A C COMMERCIALS,27294,10/12/2019,INV0003419,ORDER 1172,02/01/2020,16.8,83.98,100.78,Green Waste Collection,Contract Charges (Transport),60900
http://statistics.data.gov.uk/id/local-authority/12UE,Huntingdonshire District Council,200714,SHB HIRE LTD SHB HIRE LTD,27964,24/12/2019,11204902,VEHICLE HIRE 03-16/12/19,16/01/2020,88.2,441,529.2,Parliamentary Elections,Contract Charges (Transport),60900
http://statistics.data.gov.uk/id/local-authority/12UE,Huntingdonshire District Council,200714,SHB HIRE LTD SHB HIRE LTD,27964,24/12/2019,11204902,VEHICLE HIRE 03-16/12/19,16/01/2020,14,70,84,Parliamentary Elections,Contract Charges (Transport),60900
http://statistics.data.gov.uk/id/local-authority/12UE,Huntingdonshire District Council,200714,SHB HIRE LTD SHB HIRE LTD,27965,24/12/2019,11204901,VEHICLE HIRE 03-16/12/19,16/01/2020,88.2,441,529.2,Parliamentary Elections,Contract Charges (Transport),60900
http://statistics.data.gov.uk/id/local-authority/12UE,Huntingdonshire District Council,200714,SHB HIRE LTD SHB HIRE LTD,27965,24/12/2019,11204901,VEHICLE HIRE 03-16/12/19,16/01/2020,14,70,84,Parliamentary Elections,Contract Charges (Transport),60900
http://statistics.data.gov.uk/id/local-authority/12UE,Huntingdonshire District Council,200000,A C COMMERCIALS A C COMMERCIALS,29320,23/01/2020,INV0004146,ORDER 1340,20/02/2020,22.8,114,136.8,Vehicle Maintenance,Contract Charges (Transport),60900
http://statistics.data.gov.uk/id/local-authority/12UE,Huntingdonshire District Council,200000,A C COMMERCIALS A C COMMERCIALS,28641,18/12/2019,INV0003573,ORDER 1217,16/01/2020,10.33,51.66,61.99,Vehicle Maintenance,Contract Charges (Transport),60900
http://statistics.data.gov.uk/id/local-authority/12UE,Huntingdonshire District Council,200000,A C COMMERCIALS A C COMMERCIALS,28640,24/12/2019,INV0003650,ORDER 1217,16/01/2020,4.56,22.81,27.37,Vehicle Maintenance,Contract Charges (Transport),60900
http://statistics.data.gov.uk/id/local-authority/12UE,Huntingdonshire District Council,200071,AUTOELEC CAMBS AUTOELEC CAMBS,31732,28/02/2020,257018,ORDER 1477,26/03/2020,53,265,318,Vehicle Maintenance,Contract Charges (Transport),60900
http://statistics.data.gov.uk/id/local-authority/12UE,Huntingdonshire District Council,200000,A C COMMERCIALS A C COMMERCIALS,29320,23/01/2020,INV0004146,ORDER 1340,20/02/2020,22.8,114,136.8,Grounds Maintenance,Contract Charges (Transport),60900
http://statistics.data.gov.uk/id/local-authority/12UE,Huntingdonshire District Council,200000,A C COMMERCIALS A C COMMERCIALS,30863,14/02/2020,INV0004633,VEHICLE REPAIRS,12/03/2020,42.78,213.9,256.68,Grounds Maintenance,Contract Charges (Transport),60900
http://statistics.data.gov.uk/id/local-authority/12UE,Huntingdonshire District Council,200000,A C COMMERCIALS A C COMMERCIALS,28641,18/12/2019,INV0003573,ORDER 1217,16/01/2020,20.67,103.32,123.99,Grounds Maintenance,Contract Charges (Transport),60900
http://statistics.data.gov.uk/id/local-authority/12UE,Huntingdonshire District Council,200000,A C COMMERCIALS A C COMMERCIALS,28640,24/12/2019,INV0003650,ORDER 1217,16/01/2020,9.13,45.63,54.76,Grounds Maintenance,Contract Charges (Transport),60900
http://statistics.data.gov.uk/id/local-authority/12UE,Huntingdonshire District Council,202221,KINGSPAN TIMBER SOLUTIONS LTD,31493,10/03/2020,18/00958/FUL,OVERPAYMENT OF VIABILITY WORK,12/03/2020,184.7,923.5,1108.2,Viability Assessments,Costs Recovered,53100
http://statistics.data.gov.uk/id/local-authority/12UE,Huntingdonshire District Council,201012,COACH & HORSES,32113,23/03/2020,428,16-22/03/20,26/03/2020,8,40,48,Homelessness,Costs Recovered,53100
http://statistics.data.gov.uk/id/local-authority/12UE,Huntingdonshire District Council,201313,DENNIS EASTON FUNERAL SERVICE,29728,28/01/2020,60251649/522642 0,FUNERAL SERVICE 10/02/20,13/02/2020,0,1051,1051,Burials Under Health Act,Cremation And Burial Costs,62600
http://statistics.data.gov.uk/id/local-authority/12UE,Huntingdonshire District Council,201313,DENNIS EASTON FUNERAL SERVICE,27820,13/12/2019,60248559/522642 0,FUNERAL SERVICE 19/12/19,02/01/2020,0,887,887,Burials Under Health Act,Cremation And Burial Costs,62600
http://statistics.data.gov.uk/id/local-authority/12UE,Huntingdonshire District Council,201313,DENNIS EASTON FUNERAL SERVICE,28583,15/01/2020,60249836/522642,FUNERAL SERVICE 15/01/20,16/01/2020,0,887,887,Burials Under Health Act,Cremation And Burial Costs,62600
http://statistics.data.gov.uk/id/local-authority/12UE,Huntingdonshire District Council,201313,DENNIS EASTON FUNERAL SERVICE,30305,10/02/2020,80252635/522642 0,FUNERAL SERVICE 18/02/20,20/02/2020,0,887,887,Burials Under Health Act,Cremation And Burial Costs,62600
http://statistics.data.gov.uk/id/local-authority/12UE,Huntingdonshire District Council,201313,DENNIS EASTON FUNERAL SERVICE,29538,13/05/2019,522642/60234330 362794,FUNERAL SERVICE 13/05/19,06/02/2020,0,256.91,256.91,Burials Under Health Act,Cremation And Burial Costs,62600
http://statistics.data.gov.uk/id/local-authority/12UE,Huntingdonshire District Council,200569,NEWLYN PLC NEWLYN PLC,30983,29/02/2020,5626,CT BAILIFF (FEB) NET AMOUNT,26/03/2020,0,1528,1528,Council Tax Management,Debt Collection And Recovery Costs,62700
http://statistics.data.gov.uk/id/local-authority/12UE,Huntingdonshire District Council,200569,NEWLYN PLC NEWLYN PLC,28317,31/12/2019,5528,CT BAILIFF (DEC) NET AMOUNT,23/01/2020,0,1075.44,1075.44,Council Tax Management,Debt Collection And Recovery Costs,62700
http://statistics.data.gov.uk/id/local-authority/12UE,Huntingdonshire District Council,200569,NEWLYN PLC NEWLYN PLC,30985,29/02/2020,5627,NNDR BAILIFF (FEB) NET AMOUNT,26/03/2020,0,287.95,287.95,Council Tax Management,Debt Collection And Recovery Costs,62700
http://statistics.data.gov.uk/id/local-authority/12UE,Huntingdonshire District Council,200433,JACOBS JACOBS,29584,05/02/2020,B030220,CT BAILIFF (JAN) NET AMOUNT,27/02/2020,0,481.16,481.16,N D R  Management,Debt Collection And Recovery Costs,62700
http://statistics.data.gov.uk/id/local-authority/12UE,Huntingdonshire District Council,200433,JACOBS JACOBS,31171,04/03/2020,B020320,CT BAILIFF (FEB) NET AMOUNT,26/03/2020,0,429.56,429.56,N D R  Management,Debt Collection And Recovery Costs,62700
http://statistics.data.gov.uk/id/local-authority/12UE,Huntingdonshire District Council,200433,JACOBS JACOBS,28047,04/01/2020,B020120,CT BAILIFF (DEC) NET AMOUNT,30/01/2020,28.72,359.03,387.75,N D R  Management,Debt Collection And Recovery Costs,62700
http://statistics.data.gov.uk/id/local-authority/12UE,Huntingdonshire District Council,200050,ANTALIS LTD ANTALIS LTD,29730,04/02/2020,9128597,PAPER,27/02/2020,103.22,516.1,619.32,Printing,Design And Photographic Costs,62800
http://statistics.data.gov.uk/id/local-authority/12UE,Huntingdonshire District Council,200050,ANTALIS LTD ANTALIS LTD,27178,11/12/2019,9030901,PAPER,02/01/2020,99.2,496,595.2,Printing,Design And Photographic Costs,62800
http://statistics.data.gov.uk/id/local-authority/12UE,Huntingdonshire District Council,200050,ANTALIS LTD ANTALIS LTD,31263,11/02/2020,9144019,PAPER,12/03/2020,99.2,496,595.2,Printing,Design And Photographic Costs,62800
http://statistics.data.gov.uk/id/local-authority/12UE,Huntingdonshire District Council,200148,CALLCREDIT LTD CALLCREDIT LTD,31261,01/03/2020,836344,USAGE,26/03/2020,0.42,2.1,2.52,Car Park Management,Enquiries,63400
http://statistics.data.gov.uk/id/local-authority/12UE,Huntingdonshire District Council,200148,CALLCREDIT LTD CALLCREDIT LTD,29966,01/02/2020,834123,USAGE,27/02/2020,2.94,14.7,17.64,Car Park Management,Enquiries,63400
http://statistics.data.gov.uk/id/local-authority/12UE,Huntingdonshire District Council,200148,CALLCREDIT LTD CALLCREDIT LTD,28339,01/01/2020,829011,USAGE,23/01/2020,1.26,6.3,7.56,Car Park Management,Enquiries,63400
http://statistics.data.gov.uk/id/local-authority/12UE,Huntingdonshire District Council,200148,CALLCREDIT LTD CALLCREDIT LTD,31261,01/03/2020,836344,USAGE,26/03/2020,246.12,1230.6,1476.72,Benefits Management,Enquiries,63400
